Ref No,Fund Type,Dept,Cost Centre Description    ,Description    ,Creditor Name    ,GL Code Net Amount,Payment date        
2,Revenue,CCHD,Bed Purchasing - Elderly - South,Permanent Nursing,Cedar Care Homes,1425, 15-Apr-2014
3,Revenue,CCHD,Bed Purchasing - Elderly - South,Permanent Nursing,Cedar Care Homes,1205.25, 15-Apr-2014
4,Revenue,CCHD,Bed purchasing - Elderly S117 - South,Permanent Nursing,Cedar Care Homes,1796.85, 15-Apr-2014
5,Revenue,CCHD,Bed purchasing - Elderly S117 - South,Permanent Nursing,Cedar Care Homes,590.21, 15-Apr-2014
6,Revenue,CCHD,Bed Purchasing - Elderly - South,Permanent Nursing,Cedar Care Homes,2831.13, 15-Apr-2014
7,Revenue,CCHD,Bed Purchasing - Frenchay Hospital,Permanent Nursing,Cedar Care Homes,1860.61, 15-Apr-2014
8,Revenue,CCHD,Supporting People Programme,Grants to Voluntary Bodies,1625 Independent People,16692.5, 04-Apr-2014
9,Revenue,CCHD,Home Care - Elderly - South,Other Small Contracts,3 Trees Community Support Ltd,196.68, 07-Apr-2014
10,Revenue,CCHD,Home Care - Elderly - North,Other Small Contracts,3 Trees Community Support Ltd,2695.41, 07-Apr-2014
11,Revenue,CCHD,Day Care - North,Private & Voluntary Day Care,3 Trees Community Support Ltd,53.64, 07-Apr-2014
12,Revenue,CCHD,Home Care - Elderly - South,Other Small Contracts,3 Trees Community Support Ltd,196.68, 16-Apr-2014
13,Revenue,CCHD,Home Care - Elderly - North,Other Small Contracts,3 Trees Community Support Ltd,2762.46, 16-Apr-2014
14,Revenue,CCHD,Day Care - North,Private & Voluntary Day Care,3 Trees Community Support Ltd,53.64, 16-Apr-2014
15,Revenue,CCHD,Home Care - Elderly - South,Other Small Contracts,3 Trees Community Support Ltd,89.4, 30-Apr-2014
16,Revenue,CCHD,Home Care - Elderly - North,Other Small Contracts,3 Trees Community Support Ltd,2677.53, 30-Apr-2014
17,Revenue,CCHD,Day Care - North,Private & Voluntary Day Care,3 Trees Community Support Ltd,53.64, 30-Apr-2014
18,Revenue,CCHD,Supported Living - South,Private & Voluntary Home Care,3 Trees Community Support Ltd,653.53, 02-Apr-2014
19,Revenue,CCHD,Supported Living - South,Private & Voluntary Home Care,3 Trees Community Support Ltd,1737.19, 01-Apr-2014
20,Revenue,CCHD,Purchase of Non-Res Care - North,Private & Voluntary Day Care,3 Trees Community Support Ltd,6311.24, 07-Apr-2014
21,Revenue,CCHD,Supported Living - South,Private & Voluntary Home Care,3 Trees Community Support Ltd,570.23, 24-Apr-2014
22,Revenue,CCHD,Supported Living - South,Private & Voluntary Home Care,3 Trees Community Support Ltd,1678.78, 15-Apr-2014
23,Revenue,CCHD,Purchase of Non-Res Care - North,Private & Voluntary Day Care,3 Trees Community Support Ltd,4272.59, 24-Apr-2014
24,Revenue,CCHD,Purchase of Non-Res Care - North,Private & Voluntary Day Care,3 Trees Community Support Ltd,1843.68, 29-Apr-2014
25,Revenue,CCHD,Purchase of Non-Res Care - North,Private & Voluntary Day Care,3 Trees Community Support Ltd,1665.87, 24-Apr-2014
26,Revenue,CCHD,Purchase of Non-Res Care - North,Private & Voluntary Day Care,3 Trees Community Support Ltd,1350.56, 24-Apr-2014
27,Revenue,CCHD,Purchase of Non-Res Care - North,Private & Voluntary Day Care,3 Trees Community Support Ltd,6257.55, 24-Apr-2014
28,Revenue,CCHD,Supported Living - South,Private & Voluntary Home Care,3 Trees Community Support Ltd,9498.1, 29-Apr-2014
29,Revenue,CCHD,Supported Living - North,Private & Voluntary Home Care,3 Trees Community Support Ltd,9541, 29-Apr-2014
30,Revenue,CCHD,Bed Purchasing - Under 65s PWLD - South,Permanent Residential,5Th Floor Harlech Court,15828.36, 15-Apr-2014
31,Revenue,CCHD,Bed Purchasing - Under 65s PWLD - South,Permanent Residential,5Th Floor Harlech Court,12046.65, 15-Apr-2014
32,Revenue,CCHD,Bed Purchasing - Under 65s PWLD - South,Permanent Residential,5Th Floor Harlech Court,3957.09, 15-Apr-2014
33,Revenue,CCHD,Bed purchasing - Under 65s PWLD - North,Permanent Residential,5Th Floor Harlech Court,13450.64, 15-Apr-2014
34,Revenue,CCHD,Bed purchasing - Under 65s PWLD - North,Permanent Residential,5Th Floor Harlech Court,10235.91, 15-Apr-2014
35,Revenue,CCHD,Bed purchasing - Under 65s PWLD - North,Permanent Residential,5Th Floor Harlech Court,3362.66, 15-Apr-2014
36,Revenue,CCHD,Bed purchasing - Under 65s PWLD - North,Permanent Residential,5Th Floor Harlech Court,13758.48, 15-Apr-2014
37,Revenue,CCHD,Bed purchasing - Under 65s PWLD - North,Permanent Residential,5Th Floor Harlech Court,10471.71, 15-Apr-2014
38,Revenue,CCHD,Bed purchasing - Under 65s PWLD - North,Permanent Residential,5Th Floor Harlech Court,3439.62, 15-Apr-2014
39,Revenue,CCHD,Bed purchasing - Under 65s PWLD - North,Permanent Residential,5Th Floor Harlech Court,16352.68, 15-Apr-2014
40,Revenue,CCHD,Bed purchasing - Under 65s PWLD - North,Permanent Residential,5Th Floor Harlech Court,12442.29, 15-Apr-2014
41,Revenue,CCHD,Bed purchasing - Under 65s PWLD - North,Permanent Residential,5Th Floor Harlech Court,4088.17, 15-Apr-2014
42,Revenue,CCHD,Bed purchasing - Under 65s PWLD - North,Permanent Residential,5Th Floor Harlech Court,15524.72, 15-Apr-2014
43,Revenue,CCHD,Bed purchasing - Under 65s PWLD - North,Permanent Residential,5Th Floor Harlech Court,11815.59, 15-Apr-2014
44,Revenue,CCHD,Bed purchasing - Under 65s PWLD - North,Permanent Residential,5Th Floor Harlech Court,3881.18, 15-Apr-2014
45,Revenue,CCHD,Direct Payments - Phys Dis - North,Grants to Voluntary Bodies,A4E Management Limited,23434.92, 24-Apr-2014
46,Revenue,CCHD,Bed Purchasing - Frenchay Hospital,Permanent Nursing,Aabletone Nursing Home,814.11, 15-Apr-2014
47,Revenue,CCHD,Bed Purchasing - Frenchay Hospital,Permanent Residential,Abbey Grange,959.91, 15-Apr-2014
48,Revenue,CCHD,Bed Purchasing - Frenchay Hospital,Respite Emergency - Residential,Abbey Grange,1732, 15-Apr-2014
49,Revenue,CCHD,Bed purchasing - Phys Dis - North,Permanent Nursing,ABI Development Limited,6946.27, 15-Apr-2014
50,Revenue,CCHD,Bed and Breakfast,Storage & Removal,Ablemove-Wottons,420, 17-Apr-2014
51,Revenue,CCHD,Bed and Breakfast,Storage & Removal,Ablemove-Wottons,520, 28-Apr-2014
52,Revenue,CCHD,Bed and Breakfast,Storage & Removal,Ablemove-Wottons,420, 28-Apr-2014
53,Revenue,CCHD,Day Care - South,Private & Voluntary Day Care,About Me Care and Support Limited,852.84, 04-Apr-2014
54,Revenue,CCHD,Day Care - North,Private & Voluntary Day Care,About Me Care and Support Limited,1238.74, 07-Apr-2014
55,Revenue,CCHD,Day Care - South,Private & Voluntary Day Care,About Me Care and Support Limited,780.15, 04-Apr-2014
56,Revenue,CCHD,Bed purchasing - Under 65s PWLD - North,Permanent Residential,Acorn Care Providers,5808.3, 15-Apr-2014
57,Revenue,CCHD,Older People's Commissioned Se,Grants to Voluntary Bodies,Action for Blind People,24242.25, 25-Apr-2014
58,Revenue,CCHD,Day Care - North,Private & Voluntary Day Care,Action on Hearing Loss,538.4, 22-Apr-2014
59,Revenue,CCHD,Miscellaneous,Other Supplies & Services,Age UK South Gloucestershire,18500, 01-Apr-2014
60,Revenue,CCHD,SLA Grants - Support Serv,Grants to Voluntary Bodies,Age UK South Gloucestershire,5437.75, 10-Apr-2014
61,Revenue,CCHD,Home Care - Elderly - South,Other Small Contracts,Agincare Chippenham,1375.6, 10-Apr-2014
62,Revenue,CCHD,Home Care - Elderly - South,Other Small Contracts,Agincare Chippenham,1558, 10-Apr-2014
63,Revenue,CCHD,Home Care - Elderly - South,Other Small Contracts,Agincare Chippenham,1254, 10-Apr-2014
64,Revenue,CCHD,Home Care - Elderly - South,Other Small Contracts,Agincare Chippenham,1257.8, 10-Apr-2014
65,Revenue,CCHD,Home Care - Elderly - South,Other Small Contracts,Agincare Chippenham,1254, 11-Apr-2014
66,Revenue,CCHD,Home Care - Elderly - South,Other Small Contracts,Agincare UK Limited,581.4, 11-Apr-2014
67,Revenue,CCHD,Home Care - Elderly - North,Other Small Contracts,Agincare UK Limited,87.4, 11-Apr-2014
68,Revenue,CCHD,Elderly MH Day Care North,Private & Voluntary Day Care,Agincare UK Limited,45.6, 11-Apr-2014
69,Revenue,CCHD,Home Care - Elderly - South,Other Small Contracts,Agincare UK Limited,589, 11-Apr-2014
70,Revenue,CCHD,Home Care - Elderly - North,Other Small Contracts,Agincare UK Limited,79.8, 11-Apr-2014
71,Revenue,CCHD,Elderly MH Day Care North,Private & Voluntary Day Care,Agincare UK Limited,57, 11-Apr-2014
72,Revenue,CCHD,Home Care - Elderly - North,Other Small Contracts,Agincare UK Nutfield,718.2, 11-Apr-2014
73,Revenue,CCHD,Home Care - Elderly - South,Other Small Contracts,AliMo Care Ltd,759.93, 03-Apr-2014
74,Revenue,CCHD,Home Care - Elderly - North,Other Small Contracts,AliMo Care Ltd,1627.14, 03-Apr-2014
75,Revenue,CCHD,Home Care - Elderly - South,Other Small Contracts,AliMo Care Ltd,838.4, 09-Apr-2014
76,Revenue,CCHD,Home Care - Elderly - North,Other Small Contracts,AliMo Care Ltd,1610.62, 09-Apr-2014
77,Revenue,CCHD,Home Care - Elderly - South,Other Small Contracts,AliMo Care Ltd,714.5, 24-Apr-2014
78,Revenue,CCHD,Home Care - Elderly - North,Other Small Contracts,AliMo Care Ltd,1610.62, 24-Apr-2014
79,Revenue,CCHD,Home Care - Elderly - South,Other Small Contracts,AliMo Care Ltd,739.28, 24-Apr-2014
80,Revenue,CCHD,Home Care - Elderly - North,Other Small Contracts,AliMo Care Ltd,1618.88, 24-Apr-2014
81,Revenue,CCHD,Home Care - Elderly - South,Other Small Contracts,AliMo Care Ltd,673.2, 30-Apr-2014
82,Revenue,CCHD,Home Care - Elderly - North,Other Small Contracts,AliMo Care Ltd,1606.49, 30-Apr-2014
83,Revenue,CCHD,SLA Grants - Support Serv,Grants to Voluntary Bodies,Alive Activities Limited,7905, 24-Apr-2014
84,Revenue,CCHD,Bed Purchasing - Southmead Hospital,Permanent Nursing,Ambleside Nusing Ho!,1439.22, 15-Apr-2014
85,Revenue,CCHD,Bed purchasing - Under 65s PWLD - North,Permanent Residential,Ark Care Homes Ltd,10276.92, 15-Apr-2014
86,Revenue,CCHD,Home Care - Elderly - South,Other Small Contracts,Ashley Commercial Finance Ltd,1055.01, 16-Apr-2014
87,Revenue,CCHD,Home Care - Elderly - North,Other Small Contracts,Ashley Commercial Finance Ltd,2693.82, 16-Apr-2014
88,Revenue,CCHD,Bed and Breakfast,Bed & Breakfast,Ashley Guest Houses Limited,840, 09-Apr-2014
89,Revenue,CCHD,Bed and Breakfast,Bed & Breakfast,Ashley Guest Houses Limited,660, 16-Apr-2014
90,Revenue,CCHD,Bed and Breakfast,Bed & Breakfast,Ashley Guest Houses Limited,810, 23-Apr-2014
91,Revenue,CCHD,Bed and Breakfast,Bed & Breakfast,Ashley Guest Houses Limited,720, 30-Apr-2014
92,Revenue,CCHD,Bed purchasing - Under 65s PWLD - North,Permanent Residential,Aspects 2 Limited,6335.14, 15-Apr-2014
93,Revenue,CCHD,Supporting People Programme,Grants to Voluntary Bodies,Aspects and Milestones Trust,3219.58, 04-Apr-2014
94,Revenue,CCHD,Supporting People Programme,Grants to Voluntary Bodies,Aspects and Milestones Trust,1614.17, 04-Apr-2014
95,Revenue,CCHD,Supporting People Programme,Grants to Voluntary Bodies,Aspects and Milestones Trust,1966.08, 04-Apr-2014
96,Revenue,CCHD,Supporting People Programme,Grants to Voluntary Bodies,Aspects and Milestones Trust,2450.08, 04-Apr-2014
97,Revenue,CCHD,Supported Living - South,Private & Voluntary Home Care,Aspirations Support Bristol Limited,9436.86, 23-Apr-2014
98,Revenue,CCHD,Supported Living - South,Private & Voluntary Home Care,Aspirations Support Bristol Limited,523.9, 23-Apr-2014
99,Revenue,CCHD,Supported Living - South,Private & Voluntary Home Care,Aspirations Support Bristol Limited,3919.58, 24-Apr-2014
100,Revenue,CCHD,Supported Living - South,Private & Voluntary Home Care,Aspirations Support Bristol Limited,3842.99, 16-Apr-2014
101,Revenue,CCHD,Purchase of Non-Res Care - South,Private & Voluntary Day Care,Aspirations Support Bristol Limited,2499.48, 28-Apr-2014
102,Revenue,CCHD,Supported Living - South,Private & Voluntary Home Care,Aspirations Support Bristol Limited,515.84, 28-Apr-2014
103,Revenue,CCHD,Tenancy Start Up Scheme,Other Supplies & Services,Attwoods Estate and Letting Agents,1300, 23-Apr-2014
104,Revenue,CCHD,Bed Purchasing - Under 65s PWLD - South,Permanent Residential,Autism Specialised Care Homes,5604.4, 15-Apr-2014
105,Revenue,CCHD,Younger Adult Mental Health,Health Services (Third Party Payments),Avon & Wiltshire Mental Health,5000, 02-Apr-2014
106,Revenue,CCHD,Purchase of Non-Res Care - North,Private & Voluntary Day Care,Avon Autistic Foundation Limited,2877, 29-Apr-2014
107,Revenue,CCHD,Purchase of Non-Res Care - North,Private & Voluntary Day Care,Avon Autistic Foundation Limited,4222.55, 29-Apr-2014
108,Revenue,CCHD,Obesity - Adults,Project Funding,Bawa Healthcare & Leisure,1073.74, 24-Apr-2014
109,Revenue,CCHD,Bed Purchasing - Frenchay Hospital,Permanent Nursing,Bayview Nursing & Residential Home,1477.64, 15-Apr-2014
110,Revenue,CCHD,Bed Purchasing - Elderly - North,Permanent Nursing,Beaufort Grange Care Home,693.03, 15-Apr-2014
111,Revenue,CCHD,Bed Purchasing - Elderly - North,Permanent Nursing,Beaufort Grange Care Home,1146.15, 15-Apr-2014
112,Revenue,CCHD,Bed Purchasing - Elderly - North,Respite Planned - Nursing,Beaufort Grange Care Home,940.21, 15-Apr-2014
113,Revenue,CCHD,Swift Dump Code,Permanent Residential,Beaufort House,4601.8, 15-Apr-2014
114,Revenue,CCHD,Bed Purchasing - Elderly - North,Permanent Residential,Beaufort House,1425.24, 15-Apr-2014
115,Revenue,CCHD,Swift Dump Code,Permanent Residential,Beaufort House,1386.5, 15-Apr-2014
116,Revenue,CCHD,Bed purchasing - Elderly MH - North,Permanent Residential,Beaufort House,1153.44, 15-Apr-2014
117,Revenue,CCHD,Bed purchasing - Elderly MH - North,Permanent Residential,Beaufort House,1047.09, 15-Apr-2014
118,Revenue,CCHD,Bed Purchasing - Elderly - North,Permanent Residential,Beaufort House,1395.48, 15-Apr-2014
119,Revenue,CCHD,Bed Purchasing - Elderly - North,Permanent Residential,Beaufort House,1316.31, 15-Apr-2014
120,Revenue,CCHD,Bed purchasing - Elderly MH - North,Permanent Residential,Beaufort House,1279.83, 15-Apr-2014
121,Revenue,CCHD,Bed Purchasing - Elderly - North,Permanent Residential,Beaufort House,1151.1, 15-Apr-2014
122,Revenue,CCHD,Bed purchasing - Elderly PWLD - South,Permanent Residential,Bedrock Lodge,2939.43, 15-Apr-2014
123,Revenue,CCHD,Section 117 Placements MH Younger,Permanent Residential,Bedrock Lodge,1858.08, 15-Apr-2014
124,Revenue,CCHD,Bed Purchasing - Elderly - North,Permanent Nursing,Beech House,1783.86, 15-Apr-2014
125,Revenue,CCHD,Bed Purchasing - Elderly - North,Permanent Nursing,Beech House,586.71, 15-Apr-2014
126,Revenue,CCHD,Bed Purchasing - Elderly - North,Permanent Nursing,Beech House,780.72, 15-Apr-2014
127,Revenue,CCHD,Bed purchasing - Elderly MH - North,Permanent Nursing,Beech House,1833, 15-Apr-2014
128,Revenue,CCHD,Bed purchasing - Elderly MH - North,Permanent Nursing,Beech House,1116.14, 15-Apr-2014
129,Revenue,CCHD,Bed purchasing - Elderly MH - North,Permanent Nursing,Beech House,601, 15-Apr-2014
130,Revenue,CCHD,Bed Purchasing - Elderly - North,Permanent Nursing,Beech House,5600.94, 15-Apr-2014
131,Revenue,CCHD,Bed Purchasing - Elderly - North,Permanent Nursing,Beech House,626.71, 15-Apr-2014
132,Revenue,CCHD,South Glos Users in South Glos Homes,Permanent Nursing,Beech House,941.06, 15-Apr-2014
133,Revenue,CCHD,Bed Purchasing - Elderly - North,Permanent Residential,Beech House,1425, 15-Apr-2014
134,Revenue,CCHD,Bed Purchasing - Elderly - North,Permanent Nursing,Beech House,1595.4, 15-Apr-2014
135,Revenue,CCHD,Bed Purchasing - Elderly - North,Permanent Nursing,Beech House,523.92, 15-Apr-2014
136,Revenue,CCHD,Bed Purchasing - Elderly - North,Permanent Nursing,Beech House,540.33, 15-Apr-2014
137,Revenue,CCHD,Bed Purchasing - Elderly - North,Permanent Residential,Beech House,1045.56, 15-Apr-2014
138,Revenue,CCHD,Swift Dump Code,Permanent Residential,Beech House,610.71, 15-Apr-2014
139,Revenue,CCHD,Bed Purchasing - Elderly - North,Permanent Nursing,Beech House,1274.34, 15-Apr-2014
140,Revenue,CCHD,Bed Purchasing - Elderly - North,Permanent Nursing,Blossom Field,1394.82, 15-Apr-2014
141,Revenue,CCHD,South Glos Users in South Glos Homes,Permanent Nursing,Blossom Field,831.27, 15-Apr-2014
142,Revenue,CCHD,Bed Purchasing - Elderly - North,Permanent Nursing,Blossom Field,1451.73, 15-Apr-2014
143,Revenue,CCHD,Bed Purchasing - Elderly - North,Permanent Nursing,Blossom Field,1752.75, 15-Apr-2014
144,Revenue,CCHD,Bed Purchasing - Elderly - North,Permanent Nursing,Blossom Field,567.75, 15-Apr-2014
145,Revenue,CCHD,Bed purchasing - Elderly MH - North,Permanent Nursing,Blossom Field,1065.54, 15-Apr-2014
146,Revenue,CCHD,Bed Purchasing - Elderly - South,Permanent Nursing,Blossom Field,1432.38, 15-Apr-2014
147,Revenue,CCHD,Bed Purchasing - Elderly - North,Permanent Nursing,Blossom Fields,4876.69, 15-Apr-2014
148,Revenue,CCHD,Bed Purchasing - Southmead Hospital,Permanent Nursing,Blossom Fields,3203.97, 15-Apr-2014
149,Revenue,CCHD,South Glos Users in South Glos Homes,Permanent Nursing,Blossom Fields,439.16, 15-Apr-2014
150,Revenue,CCHD,Bed purchasing - Elderly MH - North,Permanent Nursing,Blossom Fields,213.6, 15-Apr-2014
151,Revenue,CCHD,Bed purchasing - Under 65s PWLD - North,Permanent Residential,Bradbury House,8728.32, 15-Apr-2014
152,Revenue,CCHD,Home Care - Elderly - North,Other Small Contracts,Bradley House Home Care Services,2143.81, 08-Apr-2014
153,Revenue,CCHD,Day Care - North,Private & Voluntary Day Care,Bradley House Home Care Services,101.04, 08-Apr-2014
154,Revenue,CCHD,Home Care - Elderly - North,Other Small Contracts,Bradley House Home Care Services,1439.82, 16-Apr-2014
155,Revenue,CCHD,Day Care - North,Private & Voluntary Day Care,Bradley House Home Care Services,101.04, 16-Apr-2014
156,Revenue,CCHD,Woodleaze,"Provisions (Food, etc)",Brake Bros,756.09, 02-Apr-2014
157,Revenue,CCHD,Woodleaze,"Provisions (Food, etc)",Brake Bros,892.32, 09-Apr-2014
158,Revenue,CCHD,Alexandra Way,"Provisions (Food, etc)",Brake Bros,503.46, 23-Apr-2014
159,Revenue,CCHD,Woodleaze,"Provisions (Food, etc)",Brake Bros,662.07, 08-Apr-2014
160,Revenue,CCHD,Alexandra Way,"Provisions (Food, etc)",Brake Bros,593.23, 23-Apr-2014
161,Revenue,CCHD,Woodleaze,"Provisions (Food, etc)",Brake Bros,1208.2, 25-Apr-2014
162,Revenue,CCHD,Bed Purchasing - S28A - Over 65- North,Permanent Residential,Brandon Trust,2322.81, 15-Apr-2014
163,Revenue,CCHD,Bed Purchasing - S28A - Over 65- North,Permanent Residential,Brandon Trust,763.62, 15-Apr-2014
164,Revenue,CCHD,Bed Purchasing - Under 65s PWLD - South,Permanent Residential,Brandon Trust,7701.33, 15-Apr-2014
165,Revenue,CCHD,Bed Purchasing - Under 65s PWLD - South,Permanent Residential,Brandon Trust,2529.56, 15-Apr-2014
166,Revenue,CCHD,Bed Purchasing - Under 65s PWLD - South,Permanent Residential,Brandon Trust,3027.09, 15-Apr-2014
167,Revenue,CCHD,Bed Purchasing - Under 65s PWLD - South,Permanent Residential,Brandon Trust,994.2, 15-Apr-2014
168,Revenue,CCHD,Bed purchasing - Elderly PWLD - South,Permanent Residential,Brandon Trust,2594.94, 15-Apr-2014
169,Revenue,CCHD,Bed purchasing - Elderly PWLD - South,Permanent Residential,Brandon Trust,853.01, 15-Apr-2014
170,Revenue,CCHD,Bed Purchasing - LD S28A- Over 65- South,Permanent Nursing,Brandon Trust,3645.33, 15-Apr-2014
171,Revenue,CCHD,Bed Purchasing - LD S28A- Over 65- South,Permanent Nursing,Brandon Trust,1198.03, 15-Apr-2014
172,Revenue,CCHD,Bed Purchasing - Under 65s PWLD - South,Permanent Nursing,Brandon Trust,3777.63, 15-Apr-2014
173,Revenue,CCHD,Bed Purchasing - Under 65s PWLD - South,Permanent Nursing,Brandon Trust,1240.73, 15-Apr-2014
174,Revenue,CCHD,Bed purchasing - S28A Under 65 - South,Permanent Nursing,Brandon Trust,4019.34, 15-Apr-2014
175,Revenue,CCHD,Bed purchasing - S28A Under 65 - South,Permanent Nursing,Brandon Trust,1320.13, 15-Apr-2014
176,Revenue,CCHD,Bed purchasing - S28A Under 65 - South,Permanent Residential,Brandon Trust,3675.87, 15-Apr-2014
177,Revenue,CCHD,Bed purchasing - S28A Under 65 - South,Permanent Residential,Brandon Trust,1208.15, 15-Apr-2014
178,Revenue,CCHD,Bed purchasing - S28A Under 65 - South,Permanent Nursing,Brandon Trust,4019.34, 15-Apr-2014
179,Revenue,CCHD,Bed purchasing - S28A Under 65 - South,Permanent Nursing,Brandon Trust,1320.13, 15-Apr-2014
180,Revenue,CCHD,Bed Purchasing - LD S28A- Over 65- South,Permanent Nursing,Brandon Trust,3887.04, 15-Apr-2014
181,Revenue,CCHD,Bed Purchasing - LD S28A- Over 65- South,Permanent Nursing,Brandon Trust,1277.43, 15-Apr-2014
182,Revenue,CCHD,Bed Purchasing - LD S28A- Over 65- South,Permanent Nursing,Brandon Trust,1194.45, 15-Apr-2014
183,Revenue,CCHD,Bed Purchasing - Under 65s PWLD - South,Permanent Residential,Brandon Trust,2455.11, 15-Apr-2014
184,Revenue,CCHD,Bed Purchasing - Under 65s PWLD - South,Permanent Residential,Brandon Trust,806.32, 15-Apr-2014
185,Revenue,CCHD,Bed Purchasing - S28A - Over 65- North,Permanent Nursing,Brandon Trust,4793.38, 15-Apr-2014
186,Revenue,CCHD,Bed purchasing - S28A Under 65 - South,Permanent Residential,Brandon Trust,3902.07, 15-Apr-2014
187,Revenue,CCHD,Bed purchasing - S28A Under 65 - South,Permanent Residential,Brandon Trust,1281.61, 15-Apr-2014
188,Revenue,CCHD,Bed purchasing - S28A Under 65 - South,Permanent Residential,Brandon Trust,3943.83, 15-Apr-2014
189,Revenue,CCHD,Bed purchasing - S28A Under 65 - South,Permanent Residential,Brandon Trust,1295.32, 15-Apr-2014
190,Revenue,CCHD,Bed Purchasing - S28A - Over 65- North,Permanent Residential,Brandon Trust,8247.21, 15-Apr-2014
191,Revenue,CCHD,Bed Purchasing - S28A - Over 65- North,Permanent Residential,Brandon Trust,2709.62, 15-Apr-2014
192,Revenue,CCHD,Bed purchasing - S28A Under 65 - South,Permanent Nursing,Brandon Trust,4049.34, 15-Apr-2014
193,Revenue,CCHD,Bed purchasing - S28A Under 65 - South,Permanent Nursing,Brandon Trust,1320.13, 15-Apr-2014
194,Revenue,CCHD,Bed purchasing - S28A Under 65 - South,Permanent Nursing,Brandon Trust,4019.34, 15-Apr-2014
195,Revenue,CCHD,Bed purchasing - S28A Under 65 - South,Permanent Nursing,Brandon Trust,1320.13, 15-Apr-2014
196,Revenue,CCHD,Bed purchasing -S28A  Under 65 - North,Permanent Nursing,Brandon Trust,4765.61, 15-Apr-2014
197,Revenue,CCHD,Bed purchasing - S28A Under 65 - South,Permanent Residential,Brandon Trust,3943.83, 15-Apr-2014
198,Revenue,CCHD,Bed purchasing - S28A Under 65 - South,Permanent Residential,Brandon Trust,1295.32, 15-Apr-2014
199,Revenue,CCHD,Bed Purchasing - LD S28A- Over 65- South,Permanent Residential,Brandon Trust,3561.15, 15-Apr-2014
200,Revenue,CCHD,Bed Purchasing - LD S28A- Over 65- South,Permanent Residential,Brandon Trust,1170.38, 15-Apr-2014
201,Revenue,CCHD,Bed Purchasing - Elderly - North,Permanent Residential,Bridge House Care Home,752.31, 15-Apr-2014
202,Revenue,CCHD,Bed Purchasing - Elderly - North,Permanent Residential,Bridge House Care Home,875.49, 15-Apr-2014
203,Revenue,CCHD,Training - Adult Services,Training Expenses,Bridget Rothwell,500, 25-Apr-2014
204,Revenue,CCHD,TSG Practice Placements,Training Expenses,Bridget Rothwell,500, 25-Apr-2014
205,Revenue,CCHD,Bed Purchasing - Elderly MH - South,Permanent Residential,Brightbow,1571.46, 15-Apr-2014
206,Revenue,CCHD,Bed Purchasing - Elderly MH - South,Permanent Residential,Brightbow,516.82, 15-Apr-2014
207,Revenue,CCHD,MH Purchasing - Younger,Permanent Residential,Brightbow,1110.18, 15-Apr-2014
208,Revenue,CCHD,Older People's Commissioned Se,Grants to Voluntary Bodies,Bristol Area Stroke Foundation,5000, 25-Apr-2014
209,Revenue,CCHD,Miscellaneous,Other Supplies & Services,Bristol City Council,3500, 01-Apr-2014
210,Revenue,CCHD,Miscellaneous,Other Supplies & Services,Bristol City Council,8393.75, 01-Apr-2014
211,Revenue,CCHD,Sexual Health Services - STI & Treatment,Other Supplies & Services,Bristol City Council,60081.5, 01-Apr-2014
212,Revenue,CCHD,Miscellaneous,Other Supplies & Services,Bristol City Council,41259, 01-Apr-2014
213,Revenue,CCHD,Sexual Health Services - STI & Treatment,Other Supplies & Services,Bristol City Council,3320.5, 11-Apr-2014
214,Revenue,CCHD,NTS Grant - Trainee Social Wor,Training Expenses,Bristol City Council,5000, 07-Apr-2014
215,Revenue,CCHD,SLA Grants - Support Serv,Grants to Voluntary Bodies,Bristol City Council,6400, 09-Apr-2014
216,Revenue,CCHD,Purchase of RAC places,Other L.A.'s - General,Bristol City Council,9892.75, 16-Apr-2014
217,Revenue,CCHD,Supported Living - North,Private & Voluntary Home Care,Bristol Houses UK Limited,1056.6, 29-Apr-2014
218,Revenue,CCHD,Supported Living - North,Private & Voluntary Home Care,Bristol Houses UK Limited,605.6, 29-Apr-2014
219,Revenue,CCHD,Supported Living - North,Private & Voluntary Home Care,Bristol Houses UK Limited,968.96, 24-Apr-2014
220,Revenue,CCHD,Day Care - North,Private & Voluntary Day Care,Bristol Houses UK Limited,605.6, 04-Apr-2014
221,Revenue,CCHD,Day Care - North,Private & Voluntary Day Care,Bristol Houses UK Limited,605.6, 24-Apr-2014
222,Revenue,CCHD,Supported Living - North,Private & Voluntary Home Care,Bristol Houses UK Limited,654.81, 24-Apr-2014
223,Revenue,CCHD,Bed and Breakfast,Bed & Breakfast,Bristol Housing & Support Limited,910, 07-Apr-2014
224,Revenue,CCHD,Bed and Breakfast,Bed & Breakfast,Bristol Housing & Support Limited,1120, 07-Apr-2014
225,Revenue,CCHD,Bed and Breakfast,Bed & Breakfast,Bristol Housing & Support Limited,1400, 07-Apr-2014
226,Revenue,CCHD,Bed and Breakfast,Bed & Breakfast,Bristol Housing & Support Limited,1100, 17-Apr-2014
227,Revenue,CCHD,Bed and Breakfast,Bed & Breakfast,Bristol Housing & Support Limited,1680, 17-Apr-2014
228,Revenue,CCHD,Bed and Breakfast,Bed & Breakfast,Bristol Housing & Support Limited,1120, 28-Apr-2014
229,Revenue,CCHD,Alexandra Way,Water Charges,Bristol Wessex Billing Services Limited,5273.32, 01-Apr-2014
230,Revenue,CCHD,Day Care - South,Private & Voluntary Day Care,Britannia House,676.2, 15-Apr-2014
231,Revenue,CCHD,Day Care - South,Private & Voluntary Day Care,Britannia House,682.08, 15-Apr-2014
232,Revenue,CCHD,Day Care - South,Private & Voluntary Day Care,Britannia House,511.56, 15-Apr-2014
233,Revenue,CCHD,Day Care - North,Private & Voluntary Day Care,Britannia House,682.08, 15-Apr-2014
234,Revenue,CCHD,Day Care - South,Private & Voluntary Day Care,Britannia House,511.56, 15-Apr-2014
235,Revenue,CCHD,Day Care - North,Private & Voluntary Day Care,Britannia House,682.08, 15-Apr-2014
236,Revenue,CCHD,Day Care - South,Private & Voluntary Day Care,Britannia House,852.6, 15-Apr-2014
237,Revenue,CCHD,Home Care - Elderly - South,Other Small Contracts,Britannia House,511.56, 15-Apr-2014
238,Revenue,CCHD,Day Care - South,Private & Voluntary Day Care,Britannia House,511.56, 15-Apr-2014
239,Revenue,CCHD,Day Care - South,Private & Voluntary Day Care,Britannia House,511.56, 15-Apr-2014
240,Revenue,CCHD,Supporting People Programme,Grants to Voluntary Bodies,Bromford Housing Group,14050.25, 04-Apr-2014
241,Revenue,CCHD,Minor Adaptations Service,Operational Equipment,Brown and Partners Ltd,1160.44, 17-Apr-2014
242,Revenue,CCHD,Home Care - Elderly - North,Private & Voluntary Home Care,Brunelcare,23160, 04-Apr-2014
243,Revenue,CCHD,Home Care - Elderly - North,Private & Voluntary Home Care,Brunelcare,21577.4, 07-Apr-2014
244,Revenue,CCHD,Home Care - Elderly - North,Private & Voluntary Home Care,Brunelcare,21577.4, 14-Apr-2014
245,Revenue,CCHD,Home Care - Elderly - North,Private & Voluntary Home Care,Brunelcare,21577.4, 17-Apr-2014
246,Revenue,CCHD,Home Care - Elderly - North,Private & Voluntary Home Care,Brunelcare,21577.4, 28-Apr-2014
247,Revenue,CCHD,S75 CCG Interim Beds,Permanent Nursing,Brunelcare,7600, 24-Apr-2014
248,Revenue,CCHD,Home Care - Elderly - South,Other Small Contracts,Brunelcare,2737.68, 11-Apr-2014
249,Revenue,CCHD,Home Care - Elderly - North,Other Small Contracts,Brunelcare,4552.88, 11-Apr-2014
250,Revenue,CCHD,Day Care - South,Private & Voluntary Day Care,Brunelcare,28.56, 11-Apr-2014
251,Revenue,CCHD,Day Care - North,Private & Voluntary Day Care,Brunelcare,53.04, 11-Apr-2014
252,Revenue,CCHD,Home Care - Elderly - South,Other Small Contracts,Brunelcare,2815.2, 11-Apr-2014
253,Revenue,CCHD,Home Care - Elderly - North,Other Small Contracts,Brunelcare,4410.48, 11-Apr-2014
254,Revenue,CCHD,Day Care - South,Private & Voluntary Day Care,Brunelcare,28.56, 11-Apr-2014
255,Revenue,CCHD,Day Care - North,Private & Voluntary Day Care,Brunelcare,44.88, 11-Apr-2014
256,Revenue,CCHD,Information Systems - Software,Computer Equipment - Purchase,BT Global Services Solutions,983.59, 08-Apr-2014
257,Revenue,CCHD,Bed Purchasing - Southmead Hospital,Permanent Nursing,Bupa Care Services  Bridge House,1426.8, 15-Apr-2014
258,Revenue,CCHD,Bed Purchasing - Southmead Hospital,Permanent Nursing,Bupa Care Services  Bridge House,1210.74, 15-Apr-2014
259,Revenue,CCHD,Bed purchasing - Phys Dis - North,Permanent Nursing,Bupa Care Services  Bridge House,5916.63, 15-Apr-2014
260,Revenue,CCHD,South Glos Users in all other LA Homes,Permanent Nursing,Bupa Care Services  Bridge House,610.23, 15-Apr-2014
261,Revenue,CCHD,Bed purchasing - Elderly MH - North,Permanent Residential,Bupa Care Services  Bridge House,1979.99, 15-Apr-2014
262,Revenue,CCHD,Supported Living - North,Private & Voluntary Home Care,Camphill Communities Thornbury Limited,1753.08, 03-Apr-2014
263,Revenue,CCHD,Supported Living - North,Private & Voluntary Home Care,Camphill Communities Thornbury Limited,2498.76, 02-Apr-2014
264,Revenue,CCHD,Supported Living - North,Private & Voluntary Home Care,Camphill Communities Thornbury Limited,2597.48, 02-Apr-2014
265,Revenue,CCHD,Supported Living - North,Private & Voluntary Home Care,Camphill Communities Thornbury Limited,1822.24, 04-Apr-2014
266,Revenue,CCHD,Supported Living - North,Private & Voluntary Home Care,Camphill Communities Thornbury Limited,2290.92, 09-Apr-2014
267,Revenue,CCHD,Supported Living - North,Private & Voluntary Home Care,Camphill Communities Thornbury Limited,2049.76, 09-Apr-2014
268,Revenue,CCHD,Supported Living - North,Private & Voluntary Home Care,Camphill Communities Thornbury Limited,2016.48, 09-Apr-2014
269,Revenue,CCHD,Supported Living - North,Private & Voluntary Home Care,Camphill Communities Thornbury Limited,2563.76, 14-Apr-2014
270,Revenue,CCHD,Supported Living - North,Private & Voluntary Home Care,Camphill Communities Thornbury Limited,2132.92, 16-Apr-2014
271,Revenue,CCHD,Supported Living - North,Private & Voluntary Home Care,Camphill Communities Thornbury Limited,2450.96, 16-Apr-2014
272,Revenue,CCHD,Supported Living - North,Private & Voluntary Home Care,Camphill Communities Thornbury Limited,2479.4, 17-Apr-2014
273,Revenue,CCHD,Supported Living - North,Private & Voluntary Home Care,Camphill Communities Thornbury Limited,2237.32, 17-Apr-2014
274,Revenue,CCHD,Supported Living - North,Private & Voluntary Home Care,Camphill Communities Thornbury Limited,1792.96, 17-Apr-2014
275,Revenue,CCHD,Supported Living - North,Private & Voluntary Home Care,Camphill Communities Thornbury Limited,2303.08, 17-Apr-2014
276,Revenue,CCHD,Supported Living - North,Private & Voluntary Home Care,Camphill Communities Thornbury Limited,2203.08, 17-Apr-2014
277,Revenue,CCHD,Supported Living - North,Private & Voluntary Home Care,Camphill Communities Thornbury Limited,2793.8, 24-Apr-2014
278,Revenue,CCHD,Supported Living - South,Private & Voluntary Home Care,Camphill Communities Thornbury Limited,1753.08, 30-Apr-2014
279,Revenue,CCHD,Supported Living - North,Private & Voluntary Home Care,Camphill Communities Thornbury Limited,2498.76, 30-Apr-2014
280,Revenue,CCHD,Supported Living - North,Private & Voluntary Home Care,Camphill Communities Thornbury Limited,2597.48, 30-Apr-2014
281,Revenue,CCHD,Bed Purchasing - Elderly S117- North,Permanent Residential,Canjayor,2325.53, 15-Apr-2014
282,Revenue,CCHD,Home Care - Elderly - South,Other Small Contracts,Care 1st Homecare,3771.6, 04-Apr-2014
283,Revenue,CCHD,Home Care - Elderly - North,Other Small Contracts,Care 1st Homecare,3288.6, 04-Apr-2014
284,Revenue,CCHD,Home care - Elderly MH - North,Other Small Contracts,Care 1st Homecare,67.2, 04-Apr-2014
285,Revenue,CCHD,Home Care - Elderly - South,Other Small Contracts,Care 1st Homecare,4326, 22-Apr-2014
286,Revenue,CCHD,Home Care - Elderly - North,Other Small Contracts,Care 1st Homecare,2948.4, 22-Apr-2014
287,Revenue,CCHD,Home care - Elderly MH - North,Other Small Contracts,Care 1st Homecare,67.2, 22-Apr-2014
288,Revenue,CCHD,Home Care - Elderly - South,Other Small Contracts,Care 1st Homecare,4086.6, 22-Apr-2014
289,Revenue,CCHD,Home Care - Elderly - North,Other Small Contracts,Care 1st Homecare,3078.6, 22-Apr-2014
290,Revenue,CCHD,Home care - Elderly MH - North,Other Small Contracts,Care 1st Homecare,67.2, 22-Apr-2014
291,Revenue,CCHD,Home Care - Elderly - South,Other Small Contracts,Care 1st Homecare,3964.8, 22-Apr-2014
292,Revenue,CCHD,Home Care - Elderly - North,Other Small Contracts,Care 1st Homecare,4019, 22-Apr-2014
293,Revenue,CCHD,Home care - Elderly MH - North,Other Small Contracts,Care 1st Homecare,67.2, 22-Apr-2014
294,Revenue,CCHD,Home Care - Elderly - South,Other Small Contracts,Care 1st Homecare,4309.2, 30-Apr-2014
295,Revenue,CCHD,Home Care - Elderly - North,Other Small Contracts,Care 1st Homecare,4492.6, 30-Apr-2014
296,Revenue,CCHD,Home care - Elderly MH - North,Other Small Contracts,Care 1st Homecare,46.2, 30-Apr-2014
297,Revenue,CCHD,Home Care - Elderly - South,Other Small Contracts,Care 1st Homecare,4519.2, 30-Apr-2014
298,Revenue,CCHD,Home Care - Elderly - North,Other Small Contracts,Care 1st Homecare,3476.6, 30-Apr-2014
299,Revenue,CCHD,Home care - Elderly MH - North,Other Small Contracts,Care 1st Homecare,67.2, 30-Apr-2014
300,Revenue,CCHD,Bed Purchasing - PWLD S 117 Placements,Permanent Residential,Care Community Ltd,7620.04, 15-Apr-2014
301,Revenue,CCHD,Home Care - Elderly - North,Other Small Contracts,Care Horizons Limited,2154.28, 22-Apr-2014
302,Revenue,CCHD,Day Care - South,Private & Voluntary Day Care,Care Horizons Limited,359.16, 22-Apr-2014
303,Revenue,CCHD,Home Care - Elderly - North,Other Small Contracts,Care Horizons Limited,2154.26, 22-Apr-2014
304,Revenue,CCHD,Day Care - South,Private & Voluntary Day Care,Care Horizons Limited,105.12, 22-Apr-2014
305,Revenue,CCHD,Home Care - Elderly - North,Other Small Contracts,Care Horizons Limited,2141.71, 22-Apr-2014
306,Revenue,CCHD,Day Care - South,Private & Voluntary Day Care,Care Horizons Limited,254.04, 22-Apr-2014
307,Revenue,CCHD,Home Care - Elderly - North,Other Small Contracts,Care Horizons Limited,2144.84, 22-Apr-2014
308,Revenue,CCHD,Day Care - South,Private & Voluntary Day Care,Care Horizons Limited,240.9, 22-Apr-2014
309,Revenue,CCHD,Home Care - Elderly - North,Other Small Contracts,Care Horizons Limited,2144.75, 22-Apr-2014
310,Revenue,CCHD,Day Care - South,Private & Voluntary Day Care,Care Horizons Limited,245.28, 22-Apr-2014
311,Revenue,CCHD,Home Care - Elderly - North,Other Small Contracts,Care Horizons Limited,2157.98, 25-Apr-2014
312,Revenue,CCHD,Day Care - South,Private & Voluntary Day Care,Care Horizons Limited,240.3, 25-Apr-2014
313,Revenue,CCHD,Home Care - Elderly - North,Other Small Contracts,Care Horizons Limited,2148.55, 30-Apr-2014
314,Revenue,CCHD,Day Care - South,Private & Voluntary Day Care,Care Horizons Limited,240.3, 30-Apr-2014
315,Revenue,CCHD,Supported Living - North,Private & Voluntary Home Care,Care Horizons Limited,5373.79, 11-Apr-2014
316,Revenue,CCHD,Purchase of Non-Res Care - North,Private & Voluntary Day Care,Care Horizons Limited,1055.08, 24-Apr-2014
317,Revenue,CCHD,Supported Living - South,Private & Voluntary Home Care,Care Horizons Limited,1859.75, 29-Apr-2014
318,Revenue,CCHD,Purchase of Non-Res Care - North,Private & Voluntary Day Care,Care Horizons Limited,1626.07, 25-Apr-2014
319,Revenue,CCHD,Purchase of Non-Res Care - North,Private & Voluntary Day Care,Care Horizons Limited,1498.32, 25-Apr-2014
320,Revenue,CCHD,Training - Adult Services,Training Expenses,Care Learning Limited,850, 15-Apr-2014
321,Revenue,CCHD,Electronic Home Care Monitoring,Other Supplies & Services,Care Monitoring 2000 Limited,8286.27, 11-Apr-2014
322,Revenue,CCHD,Electronic Home Care Monitoring,Other Supplies & Services,Care Monitoring 2000 Limited,2680, 11-Apr-2014
323,Revenue,CCHD,Electronic Home Care Monitoring,Other Supplies & Services,Care Monitoring 2000 Limited,2680, 28-Apr-2014
324,Revenue,CCHD,Home Care - Elderly - South,Other Small Contracts,Care UK,5323.36, 11-Apr-2014
325,Revenue,CCHD,Home Care - Elderly - North,Other Small Contracts,Care UK,2050.16, 11-Apr-2014
326,Revenue,CCHD,Day Care - South,Private & Voluntary Day Care,Care UK,196, 11-Apr-2014
327,Revenue,CCHD,Day Care - North,Private & Voluntary Day Care,Care UK,407.68, 11-Apr-2014
328,Revenue,CCHD,Home care - Elderly MH - North,Other Small Contracts,Care UK,631.12, 11-Apr-2014
329,Revenue,CCHD,Elderly MH Day Care North,Private & Voluntary Day Care,Care UK,98, 11-Apr-2014
330,Revenue,CCHD,Home Care - Elderly - South,Other Small Contracts,Care UK,5272.4, 11-Apr-2014
331,Revenue,CCHD,Home Care - Elderly - North,Other Small Contracts,Care UK,1952.16, 11-Apr-2014
332,Revenue,CCHD,Day Care - South,Private & Voluntary Day Care,Care UK,199.92, 11-Apr-2014
333,Revenue,CCHD,Day Care - North,Private & Voluntary Day Care,Care UK,399.84, 11-Apr-2014
334,Revenue,CCHD,Home care - Elderly MH - North,Other Small Contracts,Care UK,603.68, 11-Apr-2014
335,Revenue,CCHD,Elderly MH Day Care North,Private & Voluntary Day Care,Care UK,141.12, 11-Apr-2014
336,Revenue,CCHD,Home Care - Elderly - South,Other Small Contracts,Care UK,5197.92, 11-Apr-2014
337,Revenue,CCHD,Home Care - Elderly - North,Other Small Contracts,Care UK,2034.48, 11-Apr-2014
338,Revenue,CCHD,Day Care - South,Private & Voluntary Day Care,Care UK,196, 11-Apr-2014
339,Revenue,CCHD,Day Care - North,Private & Voluntary Day Care,Care UK,478.24, 11-Apr-2014
340,Revenue,CCHD,Home care - Elderly MH - North,Other Small Contracts,Care UK,588, 11-Apr-2014
341,Revenue,CCHD,Elderly MH Day Care North,Private & Voluntary Day Care,Care UK,141.12, 11-Apr-2014
342,Revenue,CCHD,Home Care - Elderly - South,Other Small Contracts,Carers R Us (Bristol) Limited,103.74, 25-Apr-2014
343,Revenue,CCHD,Home Care - Elderly - North,Other Small Contracts,Carers R Us (Bristol) Limited,742.14, 25-Apr-2014
344,Revenue,CCHD,Home Care - Elderly - South,Other Small Contracts,Carers R Us (Bristol) Limited,111.72, 25-Apr-2014
345,Revenue,CCHD,Home Care - Elderly - North,Other Small Contracts,Carers R Us (Bristol) Limited,738.15, 25-Apr-2014
346,Revenue,CCHD,Home Care - Elderly - South,Other Small Contracts,Carers R Us (Bristol) Limited,111.72, 25-Apr-2014
347,Revenue,CCHD,Home Care - Elderly - North,Other Small Contracts,Carers R Us (Bristol) Limited,726.18, 25-Apr-2014
348,Revenue,CCHD,Home Care - Elderly - South,Other Small Contracts,Carers R Us (Bristol) Limited,107.73, 25-Apr-2014
349,Revenue,CCHD,Home Care - Elderly - North,Other Small Contracts,Carers R Us (Bristol) Limited,726.18, 25-Apr-2014
350,Revenue,CCHD,Home Care - Elderly - South,Other Small Contracts,Carers R Us (Bristol) Limited,107.73, 30-Apr-2014
351,Revenue,CCHD,Home Care - Elderly - North,Other Small Contracts,Carers R Us (Bristol) Limited,794.01, 30-Apr-2014
352,Revenue,CCHD,SLA Grants - Support Serv,Grants to Voluntary Bodies,Carers Support Centre,500, 11-Apr-2014
353,Revenue,CCHD,SLA Grants - Support Serv,Grants to Voluntary Bodies,Carers Support Centre,500, 11-Apr-2014
354,Revenue,CCHD,SLA Grants - Support Serv,Grants to Voluntary Bodies,Carers Support Centre,500, 11-Apr-2014
355,Revenue,CCHD,SLA Grants - Support Serv,Grants to Voluntary Bodies,Carers Support Centre,500, 11-Apr-2014
356,Revenue,CCHD,Home Care - Elderly - South,Other Small Contracts,Carewatch (Bristol),1105, 11-Apr-2014
357,Revenue,CCHD,Home Care - Elderly - North,Other Small Contracts,Carewatch (Bristol),2235.5, 11-Apr-2014
358,Revenue,CCHD,Home Care - Elderly - South,Other Small Contracts,Carewatch (Bristol),1003, 11-Apr-2014
359,Revenue,CCHD,Home Care - Elderly - North,Other Small Contracts,Carewatch (Bristol),2031.5, 11-Apr-2014
360,Revenue,CCHD,Social Lettings Agency,Fees - General,Individual,10.1, 04-Apr-2014
361,Revenue,CCHD,Social Lettings Agency,Fees & Charges Income - General,Individual,570.66, 04-Apr-2014
362,Revenue,CCHD,Bed Purchasing - Southmead Hospital,Permanent Residential,Caton House Care Home,1736.1, 15-Apr-2014
363,Revenue,CCHD,Bed Purchasing - Elderly - South,Permanent Residential,Cepen Lodge Care Home,2200.43, 15-Apr-2014
364,Revenue,CCHD,Training - Adult Services,Training Expenses,Chartered Management Institute,785, 25-Apr-2014
365,Revenue,CCHD,Home Care - Elderly - South,Other Small Contracts,Cherish Able Care Limited,5942.25, 03-Apr-2014
366,Revenue,CCHD,Home Care - Elderly - South,Other Small Contracts,Cherish Able Care Limited,5537.76, 10-Apr-2014
367,Revenue,CCHD,Home Care - Elderly - North,One-off Planned Direct Payment,Cherish Able Care Limited,54.21, 10-Apr-2014
368,Revenue,CCHD,Home Care - Elderly - South,Other Small Contracts,Cherish Able Care Limited,5496.06, 17-Apr-2014
369,Revenue,CCHD,Home Care - Elderly - North,One-off Planned Direct Payment,Cherish Able Care Limited,62.55, 17-Apr-2014
370,Revenue,CCHD,Home Care - Elderly - South,Other Small Contracts,Cherish Able Care Limited,5896.38, 24-Apr-2014
371,Revenue,CCHD,Home Care - Elderly - North,One-off Planned Direct Payment,Cherish Able Care Limited,75.06, 24-Apr-2014
372,Revenue,CCHD,Bed purchasing -S28A  Under 65 - North,Permanent Residential,Chescombe Lodge,8665.18, 15-Apr-2014
373,Revenue,CCHD,Bed Purchasing - Under 65s PWLD - South,Permanent Residential,Chosen Court,5259, 15-Apr-2014
374,Revenue,CCHD,Bed Purchasing - Under 65s PWLD - South,Permanent Residential,Chosen Court,1727.54, 15-Apr-2014
375,Revenue,CCHD,Bed Purchasing - PWLD S 117 Placements,Permanent Residential,Chosen Court,6699.09, 15-Apr-2014
376,Revenue,CCHD,Bed Purchasing - PWLD S 117 Placements,Permanent Residential,Chosen Court,2200.46, 15-Apr-2014
377,Revenue,CCHD,Bed Purchasing - Under 65s PWLD - South,Permanent Residential,Chosen Court,4090.98, 15-Apr-2014
378,Revenue,CCHD,Bed Purchasing - Under 65s PWLD - South,Permanent Residential,Chosen Court,1343.87, 15-Apr-2014
379,Revenue,CCHD,Bed purchasing - Under 65s PWLD - North,Permanent Residential,Church House,7880.76, 15-Apr-2014
380,Revenue,CCHD,Bed purchasing - Under 65s PWLD - North,Permanent Residential,Church House,2588.61, 15-Apr-2014
381,Revenue,CCHD,Bed purchasing - Under 65s PWLD - North,Permanent Residential,Church House,4397.67, 15-Apr-2014
382,Revenue,CCHD,Bed purchasing - Under 65s PWLD - North,Permanent Residential,Church House,1455.41, 15-Apr-2014
383,Revenue,CCHD,Section 117 Placements MH Younger,Permanent Residential,Church House,7280.44, 15-Apr-2014
384,Revenue,CCHD,Supported Living - North,Private & Voluntary Home Care,Cintre Community Limited,520.02, 25-Apr-2014
385,Revenue,CCHD,Supported Living - North,Private & Voluntary Home Care,Cintre Community Limited,520.02, 17-Apr-2014
386,Revenue,CCHD,Learning Difficulties,Premises Hire,Circadian Trust,526.5, 24-Apr-2014
387,Revenue,CCHD,Home Care - Elderly - South,Other Small Contracts,Cleeve Care Group,469, 04-Apr-2014
388,Revenue,CCHD,Home Care - Elderly - North,Other Small Contracts,Cleeve Care Group,266, 04-Apr-2014
389,Revenue,CCHD,Home Care - Elderly - South,Other Small Contracts,Cleeve Care Group,567, 11-Apr-2014
390,Revenue,CCHD,Home Care - Elderly - North,Other Small Contracts,Cleeve Care Group,255.5, 11-Apr-2014
391,Revenue,CCHD,Home Care - Elderly - South,Other Small Contracts,Cleeve Care Group,560, 17-Apr-2014
392,Revenue,CCHD,Home Care - Elderly - North,Other Small Contracts,Cleeve Care Group,294, 17-Apr-2014
393,Revenue,CCHD,Home Care - Elderly - South,Other Small Contracts,Cleeve Care Group,535.5, 25-Apr-2014
394,Revenue,CCHD,Home Care - Elderly - North,Other Small Contracts,Cleeve Care Group,192.5, 25-Apr-2014
395,Revenue,CCHD,Bed Purchasing - Southmead Hospital,Permanent Residential,Cleeve Lodge,1092.87, 15-Apr-2014
396,Revenue,CCHD,Bed Purchasing - Elderly - North,Permanent Nursing,Cleeve Lodge,1405.68, 15-Apr-2014
397,Revenue,CCHD,Bed Purchasing - Elderly - South,Permanent Residential,Cleeve Lodge,696.27, 15-Apr-2014
398,Revenue,CCHD,Bed Purchasing - Elderly - South,Permanent Residential,Cleeve Lodge,1344.45, 15-Apr-2014
399,Revenue,CCHD,Bed Purchasing - Elderly - South,Permanent Residential,Cleeve Lodge,1718.91, 15-Apr-2014
400,Revenue,CCHD,Bed Purchasing - Elderly - South,Permanent Residential,Cleeve Lodge,564.61, 15-Apr-2014
401,Revenue,CCHD,Bed Purchasing - Elderly - North,Permanent Residential,Cleeve Lodge,1045.2, 15-Apr-2014
402,Revenue,CCHD,Bed Purchasing - Elderly - South,Permanent Residential,Cleeve Lodge,1354.74, 15-Apr-2014
403,Revenue,CCHD,Bed Purchasing - Elderly - South,Permanent Residential,Collingwood Residential Home,981.93, 15-Apr-2014
404,Revenue,CCHD,Bed Purchasing - Elderly - South,Permanent Residential,Collingwood Residential Home,1070.61, 15-Apr-2014
405,Revenue,CCHD,Bed Purchasing - Elderly - South,Permanent Residential,Collingwood Residential Home,800.99, 15-Apr-2014
406,Revenue,CCHD,Bed Purchasing - Elderly - South,Permanent Residential,Collingwood Residential Home,1086.45, 15-Apr-2014
407,Revenue,CCHD,Bed Purchasing - Elderly MH - South,Permanent Residential,Collingwood Residential Home,992.28, 15-Apr-2014
408,Revenue,CCHD,Bed Purchasing - Elderly - South,Permanent Residential,Collingwood Residential Home,899.88, 15-Apr-2014
409,Revenue,CCHD,Bed Purchasing - Elderly - South,Permanent Residential,Collingwood Residential Home,960.15, 15-Apr-2014
410,Revenue,CCHD,Bed Purchasing - Elderly - South,Permanent Residential,Collingwood Residential Home,1067.4, 15-Apr-2014
411,Revenue,CCHD,Planning and Partnerships procurement,Other Supplies & Services,Community Catalysts C.I.C,3500, 25-Apr-2014
412,Revenue,CCHD,Bed and Breakfast,Bed & Breakfast,Connolly & Callaghan Limited,648.9, 11-Apr-2014
413,Revenue,CCHD,Bed and Breakfast,Bed & Breakfast,Connolly & Callaghan Limited,648.9, 11-Apr-2014
414,Revenue,CCHD,Bed and Breakfast,Bed & Breakfast,Connolly & Callaghan Limited,648.9, 17-Apr-2014
415,Revenue,CCHD,Bed and Breakfast,Bed & Breakfast,Connolly & Callaghan Limited,648.9, 17-Apr-2014
416,Revenue,CCHD,Bed and Breakfast,Bed & Breakfast,Connolly & Callaghan Limited,456.4, 17-Apr-2014
417,Revenue,CCHD,Bed and Breakfast,Bed & Breakfast,Connolly & Callaghan Limited,648.9, 17-Apr-2014
418,Revenue,CCHD,Bed and Breakfast,Bed & Breakfast,Connolly & Callaghan Limited,648.9, 17-Apr-2014
419,Revenue,CCHD,Bed and Breakfast,Bed & Breakfast,Connolly & Callaghan Limited,428.4, 17-Apr-2014
420,Revenue,CCHD,Bed and Breakfast,Bed & Breakfast,Connolly & Callaghan Limited,459.9, 25-Apr-2014
421,Revenue,CCHD,Bed Purchasing - Frenchay Hospital,Permanent Residential,Coombs Wood House,964.49, 15-Apr-2014
422,Revenue,CCHD,Health Promotion,Project Funding,Core Business Systems Limited,3027.67, 23-Apr-2014
423,Revenue,CCHD,Bed Purchasing - S28A - Over 65- North,Permanent Residential,Cream Ii Ltd  Longrun House,8011.02, 15-Apr-2014
424,Revenue,CCHD,Bed Purchasing - Under 65s PWLD - South,Permanent Residential,Cream Ii Ltd  Longrun House,5608, 15-Apr-2014
425,Revenue,CCHD,Bed purchasing -S28A  Under 65 - North,Permanent Residential,Creedy Court,6967.68, 15-Apr-2014
426,Revenue,CCHD,Bed purchasing -S28A  Under 65 - North,Permanent Residential,Creedy Court,2289.33, 15-Apr-2014
427,Revenue,CCHD,Bed Purchasing - S28A - Over 65- North,Permanent Residential,Creedy Court,5795.16, 15-Apr-2014
428,Revenue,CCHD,Bed Purchasing - S28A - Over 65- North,Permanent Residential,Creedy Court,1904.19, 15-Apr-2014
429,Revenue,CCHD,Brokerage and Information Service,Grants to Voluntary Bodies,D H I,13961, 25-Apr-2014
430,Revenue,CCHD,Purchase of Non-Res Care - South,Private & Voluntary Day Care,Daneswood,1472.68, 23-Apr-2014
431,Revenue,CCHD,Bed Purchasing - Under 65s PWLD - South,Permanent Residential,Daneswood,8257.11, 15-Apr-2014
432,Revenue,CCHD,Bed Purchasing - Under 65s PWLD - South,Permanent Residential,Daneswood,2712.11, 15-Apr-2014
433,Revenue,CCHD,Bed purchasing - Under 65s PWLD - North,Permanent Residential,Daneswood,6836.16, 15-Apr-2014
434,Revenue,CCHD,Bed purchasing - Under 65s PWLD - North,Permanent Residential,Daneswood,2246.71, 15-Apr-2014
435,Revenue,CCHD,Bed Purchasing - PWLD S 117 Placements,Permanent Nursing,Danshell Healthcare Group,11486.96, 15-Apr-2014
436,Revenue,CCHD,Learning Difficulties PSL,Other Supplies & Services,Individual,2016.44, 22-Apr-2014
437,Revenue,CCHD,SLA Grants - Support Serv,Grants to Voluntary Bodies,Delia Robins,500, 14-Apr-2014
438,Revenue,CCHD,Purchase of Non-Res Care - North,Private & Voluntary Day Care,Design 4 Life Ltd,1034.4, 29-Apr-2014
439,Revenue,CCHD,Purchase of Non-Res Care - North,Private & Voluntary Day Care,Design 4 Life Ltd,1638, 29-Apr-2014
440,Revenue,CCHD,Bed Purchasing - Under 65s PWLD - South,Permanent Residential,Devon & Cornwall Autistic Community Trus,34771.42, 15-Apr-2014
441,Revenue,CCHD,Home Care - Elderly - South,Other Small Contracts,Dhek Bhal,696.96, 01-Apr-2014
442,Revenue,CCHD,Home Care - Elderly - North,Other Small Contracts,Dhek Bhal,77.44, 01-Apr-2014
443,Revenue,CCHD,Home Care - Elderly - South,Other Small Contracts,Dhek Bhal,522.72, 07-Apr-2014
444,Revenue,CCHD,Home Care - Elderly - North,Other Small Contracts,Dhek Bhal,159.72, 07-Apr-2014
445,Revenue,CCHD,Home Care - Elderly - South,Other Small Contracts,Dhek Bhal,464.64, 14-Apr-2014
446,Revenue,CCHD,Home Care - Elderly - North,Other Small Contracts,Dhek Bhal,193.6, 14-Apr-2014
447,Revenue,CCHD,SLA Grants - Support Serv,Grants to Voluntary Bodies,Dhek Bhal,500, 14-Apr-2014
448,Revenue,CCHD,Bed Purchasing - Under 65s PWLD - South,Permanent Residential,Dimensions (Uk),4862.09, 15-Apr-2014
449,Revenue,CCHD,Home Care - Elderly - South,Other Small Contracts,DoCare Ltd,4721.5, 30-Apr-2014
450,Revenue,CCHD,Home Care - Elderly - North,One-off Planned Direct Payment,DoCare Ltd,90.25, 30-Apr-2014
451,Revenue,CCHD,Home Care - Elderly - North,Other Small Contracts,DoCare Ltd,8227, 30-Apr-2014
452,Revenue,CCHD,Day Care - North,Private & Voluntary Day Care,DoCare Ltd,38, 30-Apr-2014
453,Revenue,CCHD,Bed Purchasing - Under 65s PWLD - South,Permanent Residential,Dudbridge House,6619.18, 15-Apr-2014
454,Revenue,CCHD,MH Purchasing - Younger,Permanent Residential,Dunraven House,1847.44, 15-Apr-2014
455,Revenue,CCHD,Bed and Breakfast,Bed & Breakfast,E J Bartlett,574, 02-Apr-2014
456,Revenue,CCHD,Bed and Breakfast,Bed & Breakfast,E J Bartlett,420, 02-Apr-2014
457,Revenue,CCHD,Bed and Breakfast,Bed & Breakfast,E J Bartlett,434, 02-Apr-2014
458,Revenue,CCHD,Bed and Breakfast,Bed & Breakfast,E J Bartlett,574, 07-Apr-2014
459,Revenue,CCHD,Bed and Breakfast,Bed & Breakfast,E J Bartlett,434, 07-Apr-2014
460,Revenue,CCHD,Bed and Breakfast,Bed & Breakfast,E J Bartlett,574, 08-Apr-2014
461,Revenue,CCHD,Bed and Breakfast,Bed & Breakfast,E J Bartlett,574, 17-Apr-2014
462,Revenue,CCHD,Bed and Breakfast,Bed & Breakfast,E J Bartlett,434, 22-Apr-2014
463,Revenue,CCHD,Bed and Breakfast,Bed & Breakfast,E J Bartlett,574, 25-Apr-2014
464,Revenue,CCHD,Bed and Breakfast,Bed & Breakfast,E J Bartlett,434, 25-Apr-2014
465,Revenue,CCHD,Bed and Breakfast,Bed & Breakfast,E J Bartlett,574, 28-Apr-2014
466,Revenue,CCHD,Bed and Breakfast,Bed & Breakfast,E J Bartlett,434, 28-Apr-2014
467,Revenue,CCHD,Bed purchasing - Under 65s PWLD - North,Permanent Residential,East Court,2205.26, 15-Apr-2014
468,Revenue,CCHD,Bed Purchasing - S28A - Over 65- North,Permanent Residential,Eclipse Office Park,1989.93, 15-Apr-2014
469,Revenue,CCHD,Bed Purchasing - S28A - Over 65- North,Permanent Residential,Eclipse Office Park,654.28, 15-Apr-2014
470,Revenue,CCHD,Bed Purchasing - Elderly - South,Permanent Residential,Eclipse Office Park,1424.09, 15-Apr-2014
471,Revenue,CCHD,Bed Purchasing - Under 65s PWLD - South,Permanent Residential,Eclipse Office Park,4261.38, 15-Apr-2014
472,Revenue,CCHD,Bed Purchasing - Under 65s PWLD - South,Permanent Residential,Eclipse Office Park,1400.39, 15-Apr-2014
473,Revenue,CCHD,Bed purchasing - Elderly PWLD - North,Permanent Residential,Eclipse Office Park,2567.46, 15-Apr-2014
474,Revenue,CCHD,Bed purchasing - Elderly PWLD - North,Permanent Residential,Eclipse Office Park,852.94, 15-Apr-2014
475,Revenue,CCHD,Bed Purchasing - Under 65s PWLD - South,Permanent Residential,Eclipse Office Park,3650.94, 15-Apr-2014
476,Revenue,CCHD,Bed Purchasing - Under 65s PWLD - South,Permanent Residential,Eclipse Office Park,1199.12, 15-Apr-2014
477,Revenue,CCHD,Bed Purchasing - Under 65s PWLD - South,Permanent Residential,Eclipse Office Park,4081.86, 15-Apr-2014
478,Revenue,CCHD,Bed Purchasing - Under 65s PWLD - South,Permanent Residential,Eclipse Office Park,1340.66, 15-Apr-2014
479,Revenue,CCHD,Bed Purchasing - Under 65s PWLD - South,Permanent Nursing,Eclipse Office Park,2113.89, 15-Apr-2014
480,Revenue,CCHD,Bed Purchasing - Under 65s PWLD - South,Permanent Nursing,Eclipse Office Park,696.22, 15-Apr-2014
481,Revenue,CCHD,Bed purchasing - Elderly MH - North,Permanent Nursing,Eclipse Office Park,1085.43, 15-Apr-2014
482,Revenue,CCHD,Section 117 Placements MH Younger,Permanent Nursing,Eclipse Office Park,1229.46, 15-Apr-2014
483,Revenue,CCHD,Bed Purchasing - Elderly MH - South,Permanent Residential,Eclipse Office Park,2704.47, 15-Apr-2014
484,Revenue,CCHD,Bed Purchasing - Elderly MH - South,Permanent Residential,Eclipse Office Park,888.98, 15-Apr-2014
485,Revenue,CCHD,Bed purchasing - Elderly S117 - South,Permanent Nursing,Eclipse Office Park,1494, 15-Apr-2014
486,Revenue,CCHD,Section 117 Placements MH Younger,Permanent Residential,Eclipse Office Park,1351, 15-Apr-2014
487,Revenue,CCHD,Bed purchasing - Elderly S117 - South,Permanent Nursing,Eclipse Office Park,1494, 15-Apr-2014
488,Revenue,CCHD,Bed Purchasing - Elderly - South,Permanent Nursing,Eclipse Office Park,1073.79, 15-Apr-2014
489,Revenue,CCHD,Bed purchasing - Elderly PWLD - South,Permanent Residential,Eclipse Office Park,3093.84, 15-Apr-2014
490,Revenue,CCHD,Bed purchasing - Elderly PWLD - South,Permanent Residential,Eclipse Office Park,1016.88, 15-Apr-2014
491,Revenue,CCHD,Bed Purchasing - Under 65s PWLD - South,Permanent Nursing,Eclipse Office Park,4058.97, 15-Apr-2014
492,Revenue,CCHD,Bed Purchasing - Under 65s PWLD - South,Permanent Nursing,Eclipse Office Park,1333.91, 15-Apr-2014
493,Revenue,CCHD,Bed purchasing -S28A  Under 65 - North,Permanent Residential,Eclipse Office Park,4000.59, 15-Apr-2014
494,Revenue,CCHD,Bed purchasing -S28A  Under 65 - North,Permanent Residential,Eclipse Office Park,1314.72, 15-Apr-2014
495,Revenue,CCHD,Bed purchasing - S28A Under 65 - South,Permanent Residential,Eclipse Office Park,4145.91, 15-Apr-2014
496,Revenue,CCHD,Bed purchasing - S28A Under 65 - South,Permanent Residential,Eclipse Office Park,1361.7, 15-Apr-2014
497,Revenue,CCHD,Bed Purchasing - Elderly MH - South,Permanent Residential,Eclipse Office Park,977.19, 15-Apr-2014
498,Revenue,CCHD,Bed Purchasing - Under 65s PWLD - South,Permanent Residential,Eclipse Office Park,3763.83, 15-Apr-2014
499,Revenue,CCHD,Bed Purchasing - Under 65s PWLD - South,Permanent Residential,Eclipse Office Park,1236.2, 15-Apr-2014
500,Revenue,CCHD,Bed Purchasing - Under 65s PWLD - South,Permanent Residential,Eclipse Office Park,4130.37, 15-Apr-2014
501,Revenue,CCHD,Bed Purchasing - Under 65s PWLD - South,Permanent Residential,Eclipse Office Park,1357.94, 15-Apr-2014
502,Revenue,CCHD,Bed purchasing - S28A Under 65 - South,Permanent Nursing,Eclipse Office Park,5470.74, 15-Apr-2014
503,Revenue,CCHD,Bed purchasing - S28A Under 65 - South,Permanent Nursing,Eclipse Office Park,1797.63, 15-Apr-2014
504,Revenue,CCHD,MH Purchasing - Younger,Permanent Residential,Eclipse Office Park,645.15, 15-Apr-2014
505,Revenue,CCHD,Bed purchasing - Elderly PWLD - South,Permanent Residential,Eclipse Office Park,3843.45, 15-Apr-2014
506,Revenue,CCHD,Bed purchasing - Elderly PWLD - South,Permanent Residential,Eclipse Office Park,1263.14, 15-Apr-2014
507,Revenue,CCHD,Bed purchasing - Elderly PWLD - South,Permanent Residential,Eclipse Office Park,2908.26, 15-Apr-2014
508,Revenue,CCHD,Bed purchasing - Elderly PWLD - South,Permanent Residential,Eclipse Office Park,955.92, 15-Apr-2014
509,Revenue,CCHD,Bed purchasing - Elderly PWLD - North,Permanent Residential,Eclipse Office Park,2257.83, 15-Apr-2014
510,Revenue,CCHD,Bed purchasing - Elderly PWLD - North,Permanent Residential,Eclipse Office Park,742.28, 15-Apr-2014
511,Revenue,CCHD,Bed purchasing -S28A  Under 65 - North,Permanent Residential,Eclipse Office Park,3943.53, 15-Apr-2014
512,Revenue,CCHD,Bed purchasing -S28A  Under 65 - North,Permanent Residential,Eclipse Office Park,1295.68, 15-Apr-2014
513,Revenue,CCHD,Bed purchasing -S28A  Under 65 - North,Permanent Residential,Eclipse Office Park,5294.04, 15-Apr-2014
514,Revenue,CCHD,Bed purchasing -S28A  Under 65 - North,Permanent Residential,Eclipse Office Park,1738.83, 15-Apr-2014
515,Revenue,CCHD,Bed purchasing -S28A  Under 65 - North,Permanent Nursing,Eclipse Office Park,4683.66, 15-Apr-2014
516,Revenue,CCHD,Bed purchasing -S28A  Under 65 - North,Permanent Nursing,Eclipse Office Park,1538.34, 15-Apr-2014
517,Revenue,CCHD,Bed Purchasing - Under 65s PWLD - South,Permanent Residential,Eclipse Office Park,3386.64, 15-Apr-2014
518,Revenue,CCHD,Bed Purchasing - Under 65s PWLD - South,Permanent Residential,Eclipse Office Park,1113.06, 15-Apr-2014
519,Revenue,CCHD,Bed Purchasing - Elderly - South,Permanent Residential,Eclipse Office Park,2407.62, 15-Apr-2014
520,Revenue,CCHD,Bed Purchasing - Elderly - South,Permanent Residential,Eclipse Office Park,790.94, 15-Apr-2014
521,Revenue,CCHD,Bed purchasing -S28A  Under 65 - North,Permanent Residential,Eclipse Office Park,5066.34, 15-Apr-2014
522,Revenue,CCHD,Bed purchasing -S28A  Under 65 - North,Permanent Residential,Eclipse Office Park,1664.04, 15-Apr-2014
523,Revenue,CCHD,Bed purchasing - S28A Under 65 - South,Permanent Residential,Eclipse Office Park,3394.41, 15-Apr-2014
524,Revenue,CCHD,Bed purchasing - S28A Under 65 - South,Permanent Residential,Eclipse Office Park,1114.85, 15-Apr-2014
525,Revenue,CCHD,Bed Purchasing - S28A - Over 65- North,Permanent Residential,Eclipse Office Park,4953.39, 15-Apr-2014
526,Revenue,CCHD,Bed Purchasing - S28A - Over 65- North,Permanent Residential,Eclipse Office Park,1627.69, 15-Apr-2014
527,Revenue,CCHD,Bed Purchasing - LD S28A- Over 65- South,Permanent Residential,Eclipse Office Park,3132.48, 15-Apr-2014
528,Revenue,CCHD,Bed Purchasing - LD S28A- Over 65- South,Permanent Residential,Eclipse Office Park,1029.57, 15-Apr-2014
529,Revenue,CCHD,Bed purchasing -S28A  Under 65 - North,Permanent Residential,Eclipse Office Park,5294.04, 15-Apr-2014
530,Revenue,CCHD,Bed purchasing -S28A  Under 65 - North,Permanent Residential,Eclipse Office Park,1738.83, 15-Apr-2014
531,Revenue,CCHD,Bed purchasing -S28A  Under 65 - North,Permanent Residential,Eclipse Office Park,5294.04, 15-Apr-2014
532,Revenue,CCHD,Bed purchasing -S28A  Under 65 - North,Permanent Residential,Eclipse Office Park,1738.83, 15-Apr-2014
533,Revenue,CCHD,Bed Purchasing - LD S28A- Over 65- South,Permanent Residential,Eclipse Office Park,3073.74, 15-Apr-2014
534,Revenue,CCHD,Bed Purchasing - LD S28A- Over 65- South,Permanent Residential,Eclipse Office Park,1010.29, 15-Apr-2014
535,Revenue,CCHD,Bed purchasing - S28A Under 65 - South,Permanent Residential,Eclipse Office Park,3650.94, 15-Apr-2014
536,Revenue,CCHD,Bed purchasing - S28A Under 65 - South,Permanent Residential,Eclipse Office Park,1199.12, 15-Apr-2014
537,Revenue,CCHD,Bed purchasing - S28A Under 65 - South,Permanent Residential,Eclipse Office Park,3571.02, 15-Apr-2014
538,Revenue,CCHD,Bed purchasing - S28A Under 65 - South,Permanent Residential,Eclipse Office Park,1172.87, 15-Apr-2014
539,Revenue,CCHD,Bed purchasing - S28A Under 65 - South,Permanent Residential,Eclipse Office Park,2747.97, 15-Apr-2014
540,Revenue,CCHD,Bed purchasing - S28A Under 65 - South,Permanent Residential,Eclipse Office Park,902.52, 15-Apr-2014
541,Revenue,CCHD,Bed Purchasing - LD S28A- Over 65- South,Permanent Residential,Eclipse Office Park,3818.34, 15-Apr-2014
542,Revenue,CCHD,Bed Purchasing - LD S28A- Over 65- South,Permanent Residential,Eclipse Office Park,1254.86, 15-Apr-2014
543,Revenue,CCHD,Bed Purchasing - LD S28A- Over 65- South,Permanent Residential,Eclipse Office Park,3773.34, 15-Apr-2014
544,Revenue,CCHD,Bed Purchasing - LD S28A- Over 65- South,Permanent Residential,Eclipse Office Park,1240.08, 15-Apr-2014
545,Revenue,CCHD,Bed Purchasing - LD S28A- Over 65- South,Permanent Residential,Eclipse Office Park,3890.37, 15-Apr-2014
546,Revenue,CCHD,Bed Purchasing - LD S28A- Over 65- South,Permanent Residential,Eclipse Office Park,1278.52, 15-Apr-2014
547,Revenue,CCHD,Bed Purchasing - LD S28A- Over 65- South,Permanent Residential,Eclipse Office Park,3264.96, 15-Apr-2014
548,Revenue,CCHD,Bed Purchasing - LD S28A- Over 65- South,Permanent Residential,Eclipse Office Park,1073.09, 15-Apr-2014
549,Revenue,CCHD,Bed Purchasing - LD S28A- Over 65- South,Permanent Residential,Eclipse Office Park,3877.65, 15-Apr-2014
550,Revenue,CCHD,Bed Purchasing - LD S28A- Over 65- South,Permanent Residential,Eclipse Office Park,1274.34, 15-Apr-2014
551,Revenue,CCHD,Bed purchasing -S28A  Under 65 - North,Permanent Residential,Eclipse Office Park,6867.81, 15-Apr-2014
552,Revenue,CCHD,Bed purchasing -S28A  Under 65 - North,Permanent Residential,Eclipse Office Park,2255.77, 15-Apr-2014
553,Revenue,CCHD,Bed purchasing -S28A  Under 65 - North,Permanent Nursing,Eclipse Office Park,4746.09, 15-Apr-2014
554,Revenue,CCHD,Bed purchasing -S28A  Under 65 - North,Permanent Nursing,Eclipse Office Park,1558.84, 15-Apr-2014
555,Revenue,CCHD,Bed Purchasing - LD S28A- Over 65- South,Permanent Residential,Eclipse Office Park,2245.77, 15-Apr-2014
556,Revenue,CCHD,Bed Purchasing - LD S28A- Over 65- South,Permanent Residential,Eclipse Office Park,738.31, 15-Apr-2014
557,Revenue,CCHD,Bed Purchasing - S28A - Over 65- North,Permanent Residential,Eclipse Office Park,2156.31, 15-Apr-2014
558,Revenue,CCHD,Bed Purchasing - S28A - Over 65- North,Permanent Residential,Eclipse Office Park,708.93, 15-Apr-2014
559,Revenue,CCHD,Section 117 Placements MH Younger,Permanent Residential,Eclipse Office Park,1017, 15-Apr-2014
560,Revenue,CCHD,Bed purchasing - Elderly MH - North,Permanent Residential,Eclipse Office Park,645.15, 15-Apr-2014
561,Revenue,CCHD,Bed purchasing - S28A Under 65 - South,Permanent Residential,Eclipse Office Park,4061.94, 15-Apr-2014
562,Revenue,CCHD,Bed purchasing - S28A Under 65 - South,Permanent Residential,Eclipse Office Park,1334.12, 15-Apr-2014
563,Revenue,CCHD,Bed purchasing - Elderly PWLD - North,Permanent Residential,Eclipse Office Park,3230.58, 15-Apr-2014
564,Revenue,CCHD,Bed purchasing - Elderly PWLD - North,Permanent Residential,Eclipse Office Park,1061.8, 15-Apr-2014
565,Revenue,CCHD,Bed purchasing - Elderly MH - North,Permanent Nursing,Eclipse Office Park,828.36, 15-Apr-2014
566,Revenue,CCHD,Bed Purchasing - Under 65s PWLD - South,Permanent Residential,Eclipse Office Park,1052.19, 15-Apr-2014
567,Revenue,CCHD,Bed purchasing -S28A  Under 65 - North,Permanent Residential,Eclipse Office Park,4256.67, 15-Apr-2014
568,Revenue,CCHD,Bed purchasing -S28A  Under 65 - North,Permanent Residential,Eclipse Office Park,1398.08, 15-Apr-2014
569,Revenue,CCHD,Bed Purchasing - S28A - Over 65- North,Permanent Residential,Eclipse Office Park,2699.31, 15-Apr-2014
570,Revenue,CCHD,Bed Purchasing - S28A - Over 65- North,Permanent Residential,Eclipse Office Park,887.29, 15-Apr-2014
571,Revenue,CCHD,Bed Purchasing - Elderly S117- North,Permanent Residential,Eclipse Office Park,1317, 15-Apr-2014
572,Revenue,CCHD,MH Purchasing - Younger,Permanent Residential,Eclipse Office Park,777.45, 15-Apr-2014
573,Revenue,CCHD,Bed Purchasing - S28A - Over 65- North,Permanent Residential,Eclipse Office Park,792.56, 15-Apr-2014
574,Revenue,CCHD,Bed Purchasing - LD S28A- Over 65- South,Permanent Residential,Eclipse Office Park,2911.56, 15-Apr-2014
575,Revenue,CCHD,Bed Purchasing - LD S28A- Over 65- South,Permanent Residential,Eclipse Office Park,957.01, 15-Apr-2014
576,Revenue,CCHD,Bed purchasing - S28A Under 65 - South,Permanent Residential,Eclipse Office Park,4103.67, 15-Apr-2014
577,Revenue,CCHD,Bed purchasing - S28A Under 65 - South,Permanent Residential,Eclipse Office Park,1347.83, 15-Apr-2014
578,Revenue,CCHD,Bed purchasing - S28A Under 65 - South,Permanent Nursing,Eclipse Office Park,4023.18, 15-Apr-2014
579,Revenue,CCHD,Bed Purchasing - LD S28A- Over 65- South,Permanent Nursing,Eclipse Office Park,3919.14, 15-Apr-2014
580,Revenue,CCHD,Bed Purchasing - LD S28A- Over 65- South,Permanent Nursing,Eclipse Office Park,1287.97, 15-Apr-2014
581,Revenue,CCHD,Bed Purchasing - LD S28A- Over 65- South,Permanent Residential,Eclipse Office Park,3602.16, 15-Apr-2014
582,Revenue,CCHD,Bed Purchasing - LD S28A- Over 65- South,Permanent Residential,Eclipse Office Park,1183.85, 15-Apr-2014
583,Revenue,CCHD,Bed Purchasing - LD S28A- Over 65- South,Permanent Residential,Eclipse Office Park,3393.57, 15-Apr-2014
584,Revenue,CCHD,Bed Purchasing - LD S28A- Over 65- South,Permanent Residential,Eclipse Office Park,1115.33, 15-Apr-2014
585,Revenue,CCHD,Bed Purchasing - LD S28A- Over 65- South,Permanent Residential,Eclipse Office Park,1133.83, 15-Apr-2014
586,Revenue,CCHD,Bed purchasing - S28A Under 65 - South,Permanent Residential,Eclipse Office Park,5372.76, 15-Apr-2014
587,Revenue,CCHD,Bed purchasing - S28A Under 65 - South,Permanent Residential,Eclipse Office Park,1766.79, 15-Apr-2014
588,Revenue,CCHD,Bed Purchasing - LD S28A- Over 65- South,Permanent Residential,Eclipse Office Park,3500.37, 15-Apr-2014
589,Revenue,CCHD,Bed Purchasing - LD S28A- Over 65- South,Permanent Residential,Eclipse Office Park,1150.42, 15-Apr-2014
590,Revenue,CCHD,Bed Purchasing - S28A - Over 65- North,Permanent Residential,Eclipse Office Park,3562.83, 15-Apr-2014
591,Revenue,CCHD,Bed Purchasing - S28A - Over 65- North,Permanent Residential,Eclipse Office Park,1170.95, 15-Apr-2014
592,Revenue,CCHD,Bed Purchasing - Elderly S117- North,Permanent Nursing,Eclipse Office Park,1362, 15-Apr-2014
593,Revenue,CCHD,Bed Purchasing - S28A - Over 65- North,Permanent Residential,Eclipse Office Park,3441.39, 15-Apr-2014
594,Revenue,CCHD,Bed Purchasing - S28A - Over 65- North,Permanent Residential,Eclipse Office Park,1131.04, 15-Apr-2014
595,Revenue,CCHD,Bed Purchasing - S28A - Over 65- North,Permanent Residential,Eclipse Office Park,3569.46, 15-Apr-2014
596,Revenue,CCHD,Bed Purchasing - S28A - Over 65- North,Permanent Residential,Eclipse Office Park,1173.11, 15-Apr-2014
597,Revenue,CCHD,Bed purchasing - S28A Under 65 - South,Permanent Residential,Eclipse Office Park,3567.21, 15-Apr-2014
598,Revenue,CCHD,Bed purchasing - S28A Under 65 - South,Permanent Residential,Eclipse Office Park,1171.61, 15-Apr-2014
599,Revenue,CCHD,Bed Purchasing - S28A - Over 65- North,Permanent Residential,Eclipse Office Park,3377.37, 15-Apr-2014
600,Revenue,CCHD,Bed Purchasing - S28A - Over 65- North,Permanent Residential,Eclipse Office Park,1110.01, 15-Apr-2014
601,Revenue,CCHD,Bed purchasing -S28A  Under 65 - North,Permanent Residential,Eclipse Office Park,5294.04, 15-Apr-2014
602,Revenue,CCHD,Bed purchasing -S28A  Under 65 - North,Permanent Residential,Eclipse Office Park,1738.83, 15-Apr-2014
603,Revenue,CCHD,Bed purchasing -S28A  Under 65 - North,Permanent Residential,Eclipse Office Park,848.08, 15-Apr-2014
604,Revenue,CCHD,Bed purchasing -S28A  Under 65 - North,Permanent Residential,Eclipse Office Park,731.13, 15-Apr-2014
605,Revenue,CCHD,Bed Purchasing - S28A - Over 65- North,Permanent Residential,Eclipse Office Park,2350.29, 15-Apr-2014
606,Revenue,CCHD,Bed Purchasing - S28A - Over 65- North,Permanent Residential,Eclipse Office Park,772.65, 15-Apr-2014
607,Revenue,CCHD,Bed Purchasing - S28A - Over 65- North,Permanent Residential,Eclipse Office Park,3255.69, 15-Apr-2014
608,Revenue,CCHD,Bed Purchasing - LD S28A- Over 65- South,Permanent Residential,Eclipse Office Park,3075.43, 15-Apr-2014
609,Revenue,CCHD,Bed purchasing - Under 65s PWLD - North,Permanent Residential,Eclipse Office Park,5079.87, 15-Apr-2014
610,Revenue,CCHD,Bed purchasing - Under 65s PWLD - North,Permanent Residential,Eclipse Office Park,1668.48, 15-Apr-2014
611,Revenue,CCHD,Bed Purchasing - Elderly - South,Permanent Residential,Eclipse Office Park,989.01, 15-Apr-2014
612,Revenue,CCHD,MH Purchasing - Younger,Permanent Nursing,Eclipse Office Park,703.32, 15-Apr-2014
613,Revenue,CCHD,MH Purchasing - Younger,Permanent Nursing,Eclipse Office Park,714.15, 15-Apr-2014
614,Revenue,CCHD,Bed purchasing - Elderly PWLD - South,Permanent Residential,Eclipse Office Park,2440.68, 15-Apr-2014
615,Revenue,CCHD,Bed purchasing - Elderly PWLD - South,Permanent Residential,Eclipse Office Park,802.34, 15-Apr-2014
616,Revenue,CCHD,Bed purchasing - S28A Under 65 - South,Permanent Residential,Eclipse Office Park,4439.34, 15-Apr-2014
617,Revenue,CCHD,Bed purchasing - S28A Under 65 - South,Permanent Residential,Eclipse Office Park,1458.08, 15-Apr-2014
618,Revenue,CCHD,Bed purchasing - S28A Under 65 - South,Permanent Residential,Eclipse Office Park,4507.62, 15-Apr-2014
619,Revenue,CCHD,Bed purchasing - S28A Under 65 - South,Permanent Residential,Eclipse Office Park,1481.27, 15-Apr-2014
620,Revenue,CCHD,Bed Purchasing - LD S28A- Over 65- South,Permanent Residential,Eclipse Office Park,3264.96, 15-Apr-2014
621,Revenue,CCHD,Bed Purchasing - LD S28A- Over 65- South,Permanent Residential,Eclipse Office Park,1073.09, 15-Apr-2014
622,Revenue,CCHD,Bed Purchasing - Under 65s PWLD - South,Permanent Residential,Eclipse Office Park,4439.64, 15-Apr-2014
623,Revenue,CCHD,Bed Purchasing - Under 65s PWLD - South,Permanent Residential,Eclipse Office Park,1458.18, 15-Apr-2014
624,Revenue,CCHD,Bed Purchasing - LD S28A- Over 65- South,Permanent Nursing,Eclipse Office Park,3396.27, 15-Apr-2014
625,Revenue,CCHD,Bed Purchasing - LD S28A- Over 65- South,Permanent Nursing,Eclipse Office Park,1116.18, 15-Apr-2014
626,Revenue,CCHD,Bed Purchasing - LD S28A- Over 65- South,Permanent Nursing,Eclipse Office Park,1287.97, 15-Apr-2014
627,Revenue,CCHD,Bed Purchasing - LD S28A- Over 65- South,Permanent Residential,Eclipse Office Park,2707.08, 15-Apr-2014
628,Revenue,CCHD,Bed Purchasing - LD S28A- Over 65- South,Permanent Residential,Eclipse Office Park,889.84, 15-Apr-2014
629,Revenue,CCHD,Bed Purchasing - LD S28A- Over 65- South,Permanent Residential,Eclipse Office Park,3257.52, 15-Apr-2014
630,Revenue,CCHD,Bed Purchasing - LD S28A- Over 65- South,Permanent Residential,Eclipse Office Park,1070.65, 15-Apr-2014
631,Revenue,CCHD,Bed Purchasing - LD S28A- Over 65- South,Permanent Residential,Eclipse Office Park,4465.02, 15-Apr-2014
632,Revenue,CCHD,Bed Purchasing - LD S28A- Over 65- South,Permanent Residential,Eclipse Office Park,1467.28, 15-Apr-2014
633,Revenue,CCHD,Bed Purchasing - Elderly MH - South,Permanent Residential,Eclipse Office Park,920.28, 15-Apr-2014
634,Revenue,CCHD,Bed purchasing -S28A  Under 65 - North,Permanent Nursing,Eclipse Office Park,5756.94, 15-Apr-2014
635,Revenue,CCHD,Bed purchasing -S28A  Under 65 - North,Permanent Nursing,Eclipse Office Park,1890.88, 15-Apr-2014
636,Revenue,CCHD,Bed Purchasing - Under 65s PWLD - South,Permanent Residential,Eclipse Office Park,3904.2, 15-Apr-2014
637,Revenue,CCHD,Bed Purchasing - Under 65s PWLD - South,Permanent Residential,Eclipse Office Park,1293.32, 15-Apr-2014
638,Revenue,CCHD,Bed Purchasing - Elderly S117- North,Permanent Nursing,Eclipse Office Park,1494, 15-Apr-2014
639,Revenue,CCHD,Section 117 Placements MH Younger,Permanent Residential,Eclipse Office Park,1351, 15-Apr-2014
640,Revenue,CCHD,Bed purchasing - Elderly PWLD - South,Permanent Nursing,Eclipse Office Park,2542.02, 15-Apr-2014
641,Revenue,CCHD,Bed purchasing - Elderly PWLD - South,Permanent Nursing,Eclipse Office Park,834.73, 15-Apr-2014
642,Revenue,CCHD,Bed Purchasing - Elderly - South,Permanent Residential,Eclipse Office Park,4443.6, 15-Apr-2014
643,Revenue,CCHD,Bed Purchasing - Elderly - South,Permanent Residential,Eclipse Office Park,2542.11, 15-Apr-2014
644,Revenue,CCHD,Bed Purchasing - Elderly - South,Permanent Residential,Eclipse Office Park,834.9, 15-Apr-2014
645,Revenue,CCHD,Bed Purchasing - LD S28A- Over 65- South,Permanent Nursing,Eclipse Office Park,2236.26, 15-Apr-2014
646,Revenue,CCHD,Bed Purchasing - LD S28A- Over 65- South,Permanent Nursing,Eclipse Office Park,735.19, 15-Apr-2014
647,Revenue,CCHD,Bed Purchasing - LD S28A- Over 65- South,Permanent Nursing,Eclipse Office Park,2075.58, 15-Apr-2014
648,Revenue,CCHD,Bed Purchasing - LD S28A- Over 65- South,Permanent Nursing,Eclipse Office Park,682.41, 15-Apr-2014
649,Revenue,CCHD,Bed Purchasing - S28A - Over 65- North,Permanent Nursing,Eclipse Office Park,2775.54, 15-Apr-2014
650,Revenue,CCHD,Bed Purchasing - S28A - Over 65- North,Permanent Nursing,Eclipse Office Park,912.33, 15-Apr-2014
651,Revenue,CCHD,Bed Purchasing - S28A - Over 65- North,Permanent Nursing,Eclipse Office Park,2787.54, 15-Apr-2014
652,Revenue,CCHD,Bed Purchasing - S28A - Over 65- North,Permanent Nursing,Eclipse Office Park,916.33, 15-Apr-2014
653,Revenue,CCHD,MH Purchasing - Younger,Respite Planned - Residential,Eclipse Office Park,3720.86, 15-Apr-2014
654,Revenue,CCHD,Bed Purchasing - Elderly - South,Permanent Residential,Edgecumbe Lodge,1150.35, 15-Apr-2014
655,Revenue,CCHD,Bed Purchasing - Southmead Hospital,Permanent Residential,Edgecumbe Lodge,945.15, 15-Apr-2014
656,Revenue,CCHD,Bed Purchasing - Elderly - South,Permanent Residential,Edgecumbe Lodge,792.27, 15-Apr-2014
657,Revenue,CCHD,Bed Purchasing - Elderly - South,Permanent Residential,Edgecumbe Lodge,1089.99, 15-Apr-2014
658,Revenue,CCHD,Bed Purchasing - Southmead Hospital,Permanent Residential,Edgecumbe Lodge,1598.31, 15-Apr-2014
659,Revenue,CCHD,Bed Purchasing - Southmead Hospital,Permanent Residential,Edgecumbe Lodge,525, 15-Apr-2014
660,Revenue,CCHD,Bed Purchasing - Elderly - South,Permanent Residential,Edgecumbe Lodge,1070.25, 15-Apr-2014
661,Revenue,CCHD,Bed Purchasing - Southmead Hospital,Permanent Residential,Edgecumbe Lodge,1150.35, 15-Apr-2014
662,Revenue,CCHD,Bed Purchasing - Elderly - South,Permanent Residential,Edgecumbe Lodge,855.78, 15-Apr-2014
663,Revenue,CCHD,Bed Purchasing - Elderly - South,Permanent Residential,Edgecumbe Lodge,965.13, 15-Apr-2014
664,Revenue,CCHD,Bed Purchasing - Elderly - South,Permanent Residential,Edgecumbe Lodge,923.76, 15-Apr-2014
665,Revenue,CCHD,Bed Purchasing - Southmead Hospital,Permanent Residential,Edgemont House Ltd,1074.15, 15-Apr-2014
666,Revenue,CCHD,Bed Purchasing - Elderly - South,Permanent Residential,Edgemont House Ltd,1104.69, 15-Apr-2014
667,Revenue,CCHD,Bed Purchasing - Elderly - South,Permanent Residential,Edgemont House Ltd,945.15, 15-Apr-2014
668,Revenue,CCHD,Bed Purchasing - Elderly - South,Permanent Residential,Edgemont House Ltd,945.15, 15-Apr-2014
669,Revenue,CCHD,Bed Purchasing - Elderly - South,Permanent Residential,Edgemont House Ltd,1072.74, 15-Apr-2014
670,Revenue,CCHD,Bed Purchasing - Elderly - South,Permanent Residential,Edgemont House Ltd,965.22, 15-Apr-2014
671,Revenue,CCHD,Bed Purchasing - Elderly - North,Permanent Nursing,Edgemont View Nursing Home,912.93, 15-Apr-2014
672,Revenue,CCHD,Bed Purchasing - Elderly - South,Permanent Nursing,Edgemont View Nursing Home,1084.41, 15-Apr-2014
673,Revenue,CCHD,Bed Purchasing - Elderly - South,Permanent Nursing,Edgemont View Nursing Home,990.15, 15-Apr-2014
674,Revenue,CCHD,Bed Purchasing - Elderly - South,Permanent Nursing,Edgemont View Nursing Home,1226.1, 15-Apr-2014
675,Revenue,CCHD,Bed Purchasing - Elderly - South,Permanent Nursing,Edgemont View Nursing Home,897.51, 15-Apr-2014
676,Revenue,CCHD,Supporting People Programme,Grants to Voluntary Bodies,Elim Housing Association Limited,5018.5, 04-Apr-2014
677,Revenue,CCHD,Home Care - Elderly - South,Other Small Contracts,Elite Home Care Ltd,6860.9, 16-Apr-2014
678,Revenue,CCHD,Home Care - Elderly - North,Other Small Contracts,Elite Home Care Ltd,26.22, 16-Apr-2014
679,Revenue,CCHD,Home Care - Elderly - South,Other Small Contracts,Elite Home Care Ltd,6790.98, 16-Apr-2014
680,Revenue,CCHD,Day Care - South,Private & Voluntary Day Care,Elite Home Care Ltd,1393.15, 22-Apr-2014
681,Revenue,CCHD,Bed Purchasing - Elderly - South,Permanent Residential,Elmbridge Residential Home Ltd,1332.95, 15-Apr-2014
682,Revenue,CCHD,Bed Purchasing - Frenchay Hospital,Permanent Nursing,Elmwood Nursing Home,2242.57, 15-Apr-2014
683,Revenue,CCHD,Day Care - South,Private & Voluntary Day Care,Enham,638.72, 17-Apr-2014
684,Revenue,CCHD,Home Care - Elderly - South,Other Small Contracts,Everycare (Bristol) Ltd,5699.25, 14-Apr-2014
685,Revenue,CCHD,Home Care - Elderly - North,Other Small Contracts,Everycare (Bristol) Ltd,4267, 14-Apr-2014
686,Revenue,CCHD,Day Care - South,Private & Voluntary Day Care,Everycare (Bristol) Ltd,102, 14-Apr-2014
687,Revenue,CCHD,Under 65s -MH  Home Care Purch,Other Small Contracts,Everycare (Bristol) Ltd,51, 14-Apr-2014
688,Revenue,CCHD,Home Care - Elderly - South,Other Small Contracts,Everycare (Bristol) Ltd,5265.75, 16-Apr-2014
689,Revenue,CCHD,Home Care - Elderly - North,Other Small Contracts,Everycare (Bristol) Ltd,4169.25, 16-Apr-2014
690,Revenue,CCHD,Day Care - South,Private & Voluntary Day Care,Everycare (Bristol) Ltd,102, 16-Apr-2014
691,Revenue,CCHD,Home Care - Elderly - South,Other Small Contracts,Everycare (Bristol) Ltd,4764.25, 16-Apr-2014
692,Revenue,CCHD,Home Care - Elderly - North,Other Small Contracts,Everycare (Bristol) Ltd,3854.75, 16-Apr-2014
693,Revenue,CCHD,Day Care - South,Private & Voluntary Day Care,Everycare (Bristol) Ltd,93.5, 16-Apr-2014
694,Revenue,CCHD,Under 65s -MH  Home Care Purch,Other Small Contracts,Everycare (Bristol) Ltd,72.25, 16-Apr-2014
695,Revenue,CCHD,Home Care - Elderly - South,Other Small Contracts,Everycare (Bristol) Ltd,4879, 30-Apr-2014
696,Revenue,CCHD,Home Care - Elderly - North,Other Small Contracts,Everycare (Bristol) Ltd,3405.31, 30-Apr-2014
697,Revenue,CCHD,Day Care - South,Private & Voluntary Day Care,Everycare (Bristol) Ltd,102, 30-Apr-2014
698,Revenue,CCHD,Under 65s -MH  Home Care Purch,Other Small Contracts,Everycare (Bristol) Ltd,85, 30-Apr-2014
699,Revenue,CCHD,Home Care - Elderly - South,Other Small Contracts,Everycare (Bristol) Ltd,5240.25, 30-Apr-2014
700,Revenue,CCHD,Home Care - Elderly - North,Other Small Contracts,Everycare (Bristol) Ltd,3368.75, 30-Apr-2014
701,Revenue,CCHD,Day Care - South,Private & Voluntary Day Care,Everycare (Bristol) Ltd,97.75, 30-Apr-2014
702,Revenue,CCHD,Under 65s -MH  Home Care Purch,Other Small Contracts,Everycare (Bristol) Ltd,51, 30-Apr-2014
703,Revenue,CCHD,Stop Smoking Services and Interventions,Other Supplies & Services,Exchange Supplies Ltd,750, 02-Apr-2014
704,Revenue,CCHD,Bed Purchasing - Elderly MH - South,Permanent Residential,Exmouth House,1415.1, 15-Apr-2014
705,Revenue,CCHD,Bed Purchasing - Southmead Hospital,Permanent Residential,Fairfield House Care Home,1469.79, 15-Apr-2014
706,Revenue,CCHD,Bed Purchasing - Elderly - South,Permanent Nursing,Fairview Court,889.92, 15-Apr-2014
707,Revenue,CCHD,Bed Purchasing - Elderly MH - South,Permanent Nursing,Fairview Court,1410.12, 15-Apr-2014
708,Revenue,CCHD,Bed Purchasing - Elderly MH - South,Permanent Nursing,Fairview Court,1471.92, 15-Apr-2014
709,Revenue,CCHD,South Glos Users in South Glos Homes,Permanent Nursing,Fairview Court,5709.08, 15-Apr-2014
710,Revenue,CCHD,South Glos Users in South Glos Homes,Permanent Nursing,Fairview Court,1113.58, 15-Apr-2014
711,Revenue,CCHD,Bed Purchasing - Elderly MH - South,Permanent Residential,Fairview Court,1074.15, 15-Apr-2014
712,Revenue,CCHD,Bed Purchasing - Elderly - South,Permanent Nursing,Fairview Court,1300.98, 15-Apr-2014
713,Revenue,CCHD,Bed Purchasing - Elderly - South,Permanent Residential,Fairview Court,2015.82, 15-Apr-2014
714,Revenue,CCHD,Bed Purchasing - Elderly - South,Permanent Residential,Fairview Court,662.14, 15-Apr-2014
715,Revenue,CCHD,Bed Purchasing - Elderly MH - South,Permanent Nursing,Fairview Court,1501.11, 15-Apr-2014
716,Revenue,CCHD,Bed Purchasing - Elderly - South,Permanent Nursing,Fairview Court,1394.1, 15-Apr-2014
717,Revenue,CCHD,Bed Purchasing - Frenchay Hospital,Permanent Nursing,Fairview Court,1395.48, 15-Apr-2014
718,Revenue,CCHD,Bed Purchasing - Elderly - South,Permanent Nursing,Fairview Court,2054.97, 15-Apr-2014
719,Revenue,CCHD,Bed Purchasing - Elderly - South,Permanent Nursing,Fairview Court,675, 15-Apr-2014
720,Revenue,CCHD,Bed Purchasing - Elderly - South,Permanent Residential,Fairview Court,2192, 15-Apr-2014
721,Revenue,CCHD,Swift Dump Code,Permanent Residential,Fairview Court,1460.17, 15-Apr-2014
722,Revenue,CCHD,Bed Purchasing - Elderly - South,Permanent Residential,Fairview Court,1397.97, 15-Apr-2014
723,Revenue,CCHD,Bed Purchasing - Elderly MH - South,Permanent Nursing,Fairview Court,1463.58, 15-Apr-2014
724,Revenue,CCHD,Bed purchasing - Elderly MH - North,Permanent Nursing,Fairview Court,1285.44, 15-Apr-2014
725,Revenue,CCHD,Bed Purchasing - Elderly - South,Permanent Nursing,Fairview Court Care Home,1170.12, 15-Apr-2014
726,Revenue,CCHD,Bed Purchasing - Frenchay Hospital,Permanent Nursing,Fairview Court Care Home,1531.89, 15-Apr-2014
727,Revenue,CCHD,South Glos Users in South Glos Homes,Permanent Nursing,Fairview Court Care Home,2431.06, 15-Apr-2014
728,Revenue,CCHD,Bed purchasing - Phys Dis - North,Permanent Nursing,Fairview Court Care Home,2512.15, 15-Apr-2014
729,Revenue,CCHD,Bed Purchasing - Elderly MH - South,Permanent Nursing,Fairview Court Care Home,3054.78, 15-Apr-2014
730,Revenue,CCHD,Bed purchasing - Elderly S117 - South,Permanent Nursing,Fairview Court Care Home,2574.51, 15-Apr-2014
731,Revenue,CCHD,Bed Purchasing - Elderly - South,Permanent Residential,Fairview House,654.24, 15-Apr-2014
732,Revenue,CCHD,Bed Purchasing - Elderly - South,Permanent Residential,Fairview House,965.46, 15-Apr-2014
733,Revenue,CCHD,Bed Purchasing - Elderly - South,Permanent Residential,Fairview House,702.45, 15-Apr-2014
734,Revenue,CCHD,Bed purchasing - Elderly S117 - South,Permanent Residential,Fairview House,1437.63, 15-Apr-2014
735,Revenue,CCHD,Bed Purchasing - Southmead Hospital,Permanent Residential,Fairview House,767.28, 15-Apr-2014
736,Revenue,CCHD,Bed Purchasing - Elderly - South,Permanent Residential,Fairview House,540.93, 15-Apr-2014
737,Revenue,CCHD,Bed Purchasing - Elderly - South,Permanent Residential,Fairview House,894.69, 15-Apr-2014
738,Revenue,CCHD,Bed Purchasing - Southmead Hospital,Permanent Residential,Fairview House,848.22, 15-Apr-2014
739,Revenue,CCHD,Bed Purchasing - Elderly MH - South,Permanent Residential,Fairview House,844.38, 15-Apr-2014
740,Revenue,CCHD,Bed Purchasing - Frenchay Hospital,Permanent Residential,Fairview House,945.15, 15-Apr-2014
741,Revenue,CCHD,Bed Purchasing - Southmead Hospital,Permanent Residential,Fairview House,807.99, 15-Apr-2014
742,Revenue,CCHD,Bed Purchasing - Elderly MH - South,Permanent Residential,Fairview House,779.7, 15-Apr-2014
743,Revenue,CCHD,Bed Purchasing - Frenchay Hospital,Permanent Residential,Faith House,1219.01, 15-Apr-2014
744,Revenue,CCHD,Bed purchasing - Under 65s PWLD - North,Permanent Residential,Fernbank,7677.79, 15-Apr-2014
745,Revenue,CCHD,South Glos Users in South Glos Homes,Permanent Nursing,Field House Care Home,1239.06, 15-Apr-2014
746,Revenue,CCHD,Home Care - Elderly - South,Other Small Contracts,Firstpoint Homecare Ltd,917.76, 30-Apr-2014
747,Revenue,CCHD,Home Care - Elderly - North,Other Small Contracts,Firstpoint Homecare Ltd,1539.41, 30-Apr-2014
748,Revenue,CCHD,Day Care - South,Private & Voluntary Day Care,Firstpoint Homecare Ltd,76.8, 30-Apr-2014
749,Revenue,CCHD,Day Care - North,Private & Voluntary Day Care,Firstpoint Homecare Ltd,84.48, 30-Apr-2014
750,Revenue,CCHD,Under 65s -MH  Home Care Purch,Other Small Contracts,Firstpoint Homecare Ltd,46.08, 30-Apr-2014
751,Revenue,CCHD,Home care - Elderly MH - North,Other Small Contracts,Firstpoint Homecare Ltd,38.4, 30-Apr-2014
752,Revenue,CCHD,Elderly MH Day Care North,Private & Voluntary Day Care,Firstpoint Homecare Ltd,96, 30-Apr-2014
753,Revenue,CCHD,Home Care - Elderly - South,Other Small Contracts,Firstpoint Homecare Ltd,983.04, 30-Apr-2014
754,Revenue,CCHD,Home Care - Elderly - North,Other Small Contracts,Firstpoint Homecare Ltd,2072.6, 30-Apr-2014
755,Revenue,CCHD,Day Care - South,Private & Voluntary Day Care,Firstpoint Homecare Ltd,157.44, 30-Apr-2014
756,Revenue,CCHD,Day Care - North,Private & Voluntary Day Care,Firstpoint Homecare Ltd,80.64, 30-Apr-2014
757,Revenue,CCHD,Under 65s -MH  Home Care Purch,Other Small Contracts,Firstpoint Homecare Ltd,46.08, 30-Apr-2014
758,Revenue,CCHD,Home care - Elderly MH - North,Other Small Contracts,Firstpoint Homecare Ltd,42.24, 30-Apr-2014
759,Revenue,CCHD,Elderly MH Day Care North,Private & Voluntary Day Care,Firstpoint Homecare Ltd,92.16, 30-Apr-2014
760,Revenue,CCHD,Home Care - Elderly - South,Other Small Contracts,Firstpoint Homecare Ltd,898.56, 30-Apr-2014
761,Revenue,CCHD,Home Care - Elderly - North,Other Small Contracts,Firstpoint Homecare Ltd,1966.42, 30-Apr-2014
762,Revenue,CCHD,Day Care - South,Private & Voluntary Day Care,Firstpoint Homecare Ltd,153.6, 30-Apr-2014
763,Revenue,CCHD,Day Care - North,Private & Voluntary Day Care,Firstpoint Homecare Ltd,80.64, 30-Apr-2014
764,Revenue,CCHD,Under 65s -MH  Home Care Purch,Other Small Contracts,Firstpoint Homecare Ltd,46.08, 30-Apr-2014
765,Revenue,CCHD,Home care - Elderly MH - North,Other Small Contracts,Firstpoint Homecare Ltd,46.08, 30-Apr-2014
766,Revenue,CCHD,Elderly MH Day Care North,Private & Voluntary Day Care,Firstpoint Homecare Ltd,88.32, 30-Apr-2014
767,Revenue,CCHD,Home Care - Elderly - South,Other Small Contracts,Firstpoint Homecare Ltd,1025.28, 30-Apr-2014
768,Revenue,CCHD,Home Care - Elderly - North,Other Small Contracts,Firstpoint Homecare Ltd,1810.21, 30-Apr-2014
769,Revenue,CCHD,Day Care - North,Private & Voluntary Day Care,Firstpoint Homecare Ltd,80.64, 30-Apr-2014
770,Revenue,CCHD,Under 65s -MH  Home Care Purch,Other Small Contracts,Firstpoint Homecare Ltd,46.08, 30-Apr-2014
771,Revenue,CCHD,Elderly MH Day Care North,Private & Voluntary Day Care,Firstpoint Homecare Ltd,92.16, 30-Apr-2014
772,Revenue,CCHD,Public Health - Admin,Other Supplies & Services,Five Square Solutions Limited,8750, 07-Apr-2014
773,Revenue,CCHD,Bed Purchasing - Elderly - South,Permanent Nursing,Four Seasons Health Care,1191.95, 15-Apr-2014
774,Revenue,CCHD,Bed Purchasing - Elderly S117- North,Permanent Residential,Four Seasons Health Care,1545.3, 15-Apr-2014
775,Revenue,CCHD,Bed Purchasing - Elderly S117- North,Permanent Residential,Four Seasons Health Care,507.59, 15-Apr-2014
776,Revenue,CCHD,Bed Purchasing - Frenchay Hospital,Permanent Residential,Four Seasons Health Care,1162.98, 15-Apr-2014
777,Revenue,CCHD,Freeways,Permanent Residential,Freeways Trust Limited,46198.71, 15-Apr-2014
778,Revenue,CCHD,Supported Living - South,Private & Voluntary Home Care,Freeways Trust Limited,1278.5, 29-Apr-2014
779,Revenue,CCHD,Bed purchasing - Under 65s PWLD - North,Permanent Residential,Freeways Trust Ltd,2145.03, 15-Apr-2014
780,Revenue,CCHD,Bed purchasing - Under 65s PWLD - North,Permanent Residential,Freeways Trust Ltd,704.47, 15-Apr-2014
781,Revenue,CCHD,Bed purchasing - S28A Under 65 - South,Permanent Residential,Freeways Trust Ltd,2913.52, 15-Apr-2014
782,Revenue,CCHD,Bed purchasing - Under 65s PWLD - North,Permanent Residential,Freeways Trust Ltd,2041.89, 15-Apr-2014
783,Revenue,CCHD,Bed purchasing - Under 65s PWLD - North,Permanent Residential,Freeways Trust Ltd,670.59, 15-Apr-2014
784,Revenue,CCHD,Bed purchasing - Under 65s PWLD - North,Permanent Residential,Freeways Trust Ltd,1715.22, 15-Apr-2014
785,Revenue,CCHD,Bed purchasing - Under 65s PWLD - North,Permanent Residential,Freeways Trust Ltd,563.29, 15-Apr-2014
786,Revenue,CCHD,Bed purchasing - Under 65s PWLD - North,Permanent Residential,Freeways Trust Ltd,2048.52, 15-Apr-2014
787,Revenue,CCHD,Bed purchasing - Under 65s PWLD - North,Permanent Residential,Freeways Trust Ltd,672.77, 15-Apr-2014
788,Revenue,CCHD,Bed Purchasing - Under 65s PWLD - South,Permanent Residential,Freeways Trust Ltd,2504.07, 15-Apr-2014
789,Revenue,CCHD,Bed Purchasing - Under 65s PWLD - South,Permanent Residential,Freeways Trust Ltd,822.4, 15-Apr-2014
790,Revenue,CCHD,Bed purchasing - Elderly PWLD - North,Permanent Residential,Freeways Trust Ltd,1699.8, 15-Apr-2014
791,Revenue,CCHD,Bed purchasing - Elderly PWLD - North,Permanent Residential,Freeways Trust Ltd,558.98, 15-Apr-2014
792,Revenue,CCHD,Bed Purchasing - Under 65s PWLD - South,Permanent Residential,Freeways Trust Ltd,1811.25, 15-Apr-2014
793,Revenue,CCHD,Bed Purchasing - Under 65s PWLD - South,Permanent Residential,Freeways Trust Ltd,595.59, 15-Apr-2014
794,Revenue,CCHD,Bed purchasing - Under 65s PWLD - North,Permanent Residential,Freeways Trust Ltd,2721.29, 15-Apr-2014
795,Revenue,CCHD,Bed purchasing - Elderly PWLD - North,Permanent Residential,Freeways Trust Ltd,2366.79, 15-Apr-2014
796,Revenue,CCHD,Bed purchasing - Elderly PWLD - North,Permanent Residential,Freeways Trust Ltd,778.07, 15-Apr-2014
797,Revenue,CCHD,Section 117 Placements MH Younger,Permanent Residential,Freeways Trust Ltd,3360.9, 15-Apr-2014
798,Revenue,CCHD,Bed purchasing - Under 65s PWLD - North,Permanent Residential,Freeways Trust Ltd,2926.26, 15-Apr-2014
799,Revenue,CCHD,Bed purchasing - Under 65s PWLD - North,Permanent Residential,Freeways Trust Ltd,961.08, 15-Apr-2014
800,Revenue,CCHD,Bed Purchasing - Under 65s PWLD - South,Permanent Residential,Freeways Trust Ltd,4656.72, 15-Apr-2014
801,Revenue,CCHD,Bed Purchasing - Under 65s PWLD - South,Permanent Residential,Freeways Trust Ltd,1529.49, 15-Apr-2014
802,Revenue,CCHD,Bed Purchasing - Frenchay Hospital,Permanent Nursing,Frenchay Park Nursing Home,757.5, 15-Apr-2014
803,Revenue,CCHD,Bed Purchasing - Elderly - South,Permanent Nursing,Frenchay Park Nursing Home,996.15, 15-Apr-2014
804,Revenue,CCHD,Bed Purchasing - Elderly - South,Permanent Nursing,Fshc  1St Floor,672.12, 15-Apr-2014
805,Revenue,CCHD,Bed Purchasing - Frenchay Hospital,Permanent Residential,Fshc  1St Floor,670.59, 15-Apr-2014
806,Revenue,CCHD,Bed Purchasing - Southmead Hospital,Permanent Nursing,Fshc  1St Floor,596.4, 15-Apr-2014
807,Revenue,CCHD,Bed Purchasing - Frenchay Hospital,Permanent Residential,Fshc  1St Floor,945.15, 15-Apr-2014
808,Revenue,CCHD,Bed Purchasing - Frenchay Hospital,Permanent Nursing,Fshc  1St Floor,1041.15, 15-Apr-2014
809,Revenue,CCHD,Bed Purchasing - Elderly - South,Permanent Nursing,Fshc  1St Floor,584.34, 15-Apr-2014
810,Revenue,CCHD,Bed Purchasing - Southmead Hospital,Permanent Nursing,Fshc  1St Floor,1041.15, 15-Apr-2014
811,Revenue,CCHD,Bed Purchasing - Southmead Hospital,Permanent Nursing,Fshc  1St Floor,580.8, 15-Apr-2014
812,Revenue,CCHD,Bed Purchasing - Frenchay Hospital,Permanent Nursing,Fshc  1St Floor,1712.5, 15-Apr-2014
813,Revenue,CCHD,Bed Purchasing - Frenchay Hospital,Permanent Nursing,Fshc  1St Floor,1041.15, 15-Apr-2014
814,Revenue,CCHD,South Glos Users in South Glos Homes,Permanent Nursing,Fshc  1St Floor,909.69, 15-Apr-2014
815,Revenue,CCHD,Bed Purchasing - Elderly - South,Permanent Residential,Fshc  1St Floor,912.15, 15-Apr-2014
816,Revenue,CCHD,Bed Purchasing - Elderly - South,Permanent Nursing,Fshc  1St Floor,759.69, 15-Apr-2014
817,Revenue,CCHD,Bed Purchasing - Southmead Hospital,Permanent Nursing,Fshc  1St Floor,1041.15, 15-Apr-2014
818,Revenue,CCHD,Bed Purchasing - Elderly - South,Permanent Nursing,Fshc  1St Floor,1041.15, 15-Apr-2014
819,Revenue,CCHD,Bed Purchasing - Elderly - South,Permanent Nursing,Fshc  1St Floor,920.01, 15-Apr-2014
820,Revenue,CCHD,Bed Purchasing - Elderly - South,Respite Emergency - Residential,Fshc  1St Floor,1856, 15-Apr-2014
821,Revenue,CCHD,Bed Purchasing - Elderly - South,Permanent Nursing,Fshc  1St Floor,1041.15, 15-Apr-2014
822,Revenue,CCHD,Bed Purchasing - Elderly - South,Respite Emergency - Residential,Fshc  1St Floor,861.71, 15-Apr-2014
823,Revenue,CCHD,Bed Purchasing - Elderly - South,Respite Emergency - Nursing,Fshc  1St Floor,1922.29, 15-Apr-2014
824,Revenue,CCHD,Bed Purchasing - Elderly - South,Respite Emergency - Nursing,Fshc  1St Floor,861.71, 15-Apr-2014
825,Revenue,CCHD,Bed Purchasing - Elderly - South,Permanent Nursing,Fshc  1St Floor,993.36, 15-Apr-2014
826,Revenue,CCHD,Bed Purchasing - Elderly - South,Permanent Nursing,Fshc  1St Floor,2777.06, 15-Apr-2014
827,Revenue,CCHD,Bed Purchasing - Southmead Hospital,Permanent Nursing,Fshc  1St Floor,1041.15, 15-Apr-2014
828,Revenue,CCHD,Bed Purchasing - Southmead Hospital,Permanent Nursing,Fshc  1St Floor,833.91, 15-Apr-2014
829,Revenue,CCHD,Bed Purchasing - Elderly - North,Permanent Nursing,Fshc  1St Floor,1041.15, 15-Apr-2014
830,Revenue,CCHD,South Glos Users in South Glos Homes,Permanent Nursing,Fshc  1St Floor,1584.11, 15-Apr-2014
831,Revenue,CCHD,Bed Purchasing - Frenchay Hospital,Permanent Nursing,Fshc  1St Floor,1413, 15-Apr-2014
832,Revenue,CCHD,Bed Purchasing - Elderly - North,Permanent Nursing,Fshc  1St Floor,1413, 15-Apr-2014
833,Revenue,CCHD,Bed Purchasing - Frenchay Hospital,Permanent Nursing,Fshc  1St Floor,893.97, 15-Apr-2014
834,Revenue,CCHD,Bed Purchasing - Elderly - South,Permanent Nursing,Fshc  1St Floor,1041.15, 15-Apr-2014
835,Revenue,CCHD,Bed Purchasing - Elderly - South,Permanent Nursing,Fshc  1St Floor,1002.84, 15-Apr-2014
836,Revenue,CCHD,Bed Purchasing - Elderly - South,Permanent Nursing,Fshc  1St Floor,1029.15, 15-Apr-2014
837,Revenue,CCHD,Bed Purchasing - Frenchay Hospital,Permanent Nursing,Fshc  1St Floor,822.45, 15-Apr-2014
838,Revenue,CCHD,Bed Purchasing - Elderly MH - South,Permanent Residential,Fshc  1St Floor,848.79, 15-Apr-2014
839,Revenue,CCHD,Bed Purchasing - Elderly - South,Permanent Nursing,Fshc  1St Floor,1014.15, 15-Apr-2014
840,Revenue,CCHD,Bed Purchasing - Southmead Hospital,Permanent Nursing,Fshc  1St Floor,1041.15, 15-Apr-2014
841,Revenue,CCHD,Bed Purchasing - Elderly MH - South,Permanent Nursing,Fshc  1St Floor,922.08, 15-Apr-2014
842,Revenue,CCHD,Bed Purchasing - Southmead Hospital,Permanent Nursing,Fshc  1St Floor,1041.15, 15-Apr-2014
843,Revenue,CCHD,Bed Purchasing - Southmead Hospital,Permanent Nursing,Fshc  1St Floor,587.14, 15-Apr-2014
844,Revenue,CCHD,Bed purchasing - Elderly MH - North,Permanent Nursing,Fshc  1St Floor,586.08, 15-Apr-2014
845,Revenue,CCHD,Bed Purchasing - Elderly - South,Permanent Nursing,Fshc  1St Floor,745.11, 15-Apr-2014
846,Revenue,CCHD,Bed Purchasing - Elderly - North,Permanent Nursing,Fshc  1St Floor,853.08, 15-Apr-2014
847,Revenue,CCHD,Bed Purchasing - Elderly - North,Permanent Nursing,Fshc  1St Floor,739.41, 15-Apr-2014
848,Revenue,CCHD,South Glos Users in South Glos Homes,Permanent Nursing,Fshc  1St Floor,1740.96, 15-Apr-2014
849,Revenue,CCHD,Bed Purchasing - Frenchay Hospital,Permanent Nursing,Fshc  1St Floor,708.36, 15-Apr-2014
850,Revenue,CCHD,Bed Purchasing - Elderly - North,Permanent Nursing,Fshc  1St Floor,968.01, 15-Apr-2014
851,Revenue,CCHD,Bed Purchasing - Frenchay Hospital,Permanent Nursing,Fshc  1St Floor,1173.15, 15-Apr-2014
852,Revenue,CCHD,Bed Purchasing - Frenchay Hospital,Permanent Nursing,Fshc  1St Floor,773, 15-Apr-2014
853,Revenue,CCHD,Bed Purchasing - Elderly - North,Permanent Nursing,Fshc  1St Floor,3894.83, 15-Apr-2014
854,Revenue,CCHD,Bed Purchasing - Elderly - North,Permanent Nursing,Fshc  1St Floor,586.8, 15-Apr-2014
855,Revenue,CCHD,South Glos Users in South Glos Homes,Permanent Nursing,Fshc  1St Floor,1615.48, 15-Apr-2014
856,Revenue,CCHD,Bed Purchasing - Elderly - North,Respite Emergency - Residential,Fshc  1St Floor,2121.14, 15-Apr-2014
857,Revenue,CCHD,Bed Purchasing - Elderly - North,Respite Emergency - Nursing,Fshc  1St Floor,2320, 15-Apr-2014
858,Revenue,CCHD,Bed Purchasing - Frenchay Hospital,Permanent Residential,Fshc  1St Floor,945.15, 15-Apr-2014
859,Revenue,CCHD,Bed Purchasing - Frenchay Hospital,Permanent Residential,Fshc  1St Floor,890, 15-Apr-2014
860,Revenue,CCHD,Bed Purchasing - Elderly - North,Permanent Nursing,Fshc  1St Floor,1010.31, 15-Apr-2014
861,Revenue,CCHD,Bed Purchasing - Southmead Hospital,Permanent Nursing,Fshc  1St Floor,1041.15, 15-Apr-2014
862,Revenue,CCHD,Bed Purchasing - Elderly - North,Permanent Nursing,Fshc  1St Floor,779.7, 15-Apr-2014
863,Revenue,CCHD,Bed Purchasing - Southmead Hospital,Permanent Nursing,Fshc  1St Floor,915.15, 15-Apr-2014
864,Revenue,CCHD,Bed Purchasing - Elderly - North,Permanent Residential,Fshc  1St Floor,807.75, 15-Apr-2014
865,Revenue,CCHD,Bed Purchasing - Elderly - North,Permanent Residential,Fshc  1St Floor,1025.61, 15-Apr-2014
866,Revenue,CCHD,Bed Purchasing - Frenchay Hospital,Permanent Nursing,Fshc  1St Floor,1007.18, 15-Apr-2014
867,Revenue,CCHD,Bed Purchasing - Frenchay Hospital,Permanent Nursing,Fshc  1St Floor,698.88, 15-Apr-2014
868,Revenue,CCHD,Bed Purchasing - Frenchay Hospital,Permanent Nursing,Fshc  1St Floor,828.06, 15-Apr-2014
869,Revenue,CCHD,Bed Purchasing - Frenchay Hospital,Permanent Nursing,Fshc  1St Floor,846.75, 15-Apr-2014
870,Revenue,CCHD,Bed purchasing - Elderly MH - North,Permanent Nursing,Fshc  1St Floor,773.76, 15-Apr-2014
871,Revenue,CCHD,South Glos Users in South Glos Homes,Permanent Nursing,Fshc  1St Floor,2744.75, 15-Apr-2014
872,Revenue,CCHD,Bed Purchasing - Southmead Hospital,Permanent Nursing,Fshc  1St Floor,966.9, 15-Apr-2014
873,Revenue,CCHD,Bed Purchasing - Elderly - North,Permanent Nursing,Fshc  1St Floor,915.12, 15-Apr-2014
874,Revenue,CCHD,Swift Dump Code,Permanent Residential,Fshc  1St Floor,764.68, 15-Apr-2014
875,Revenue,CCHD,Bed Purchasing - Frenchay Hospital,Permanent Nursing,Fshc  1St Floor,1926.31, 15-Apr-2014
876,Revenue,CCHD,Bed Purchasing - Frenchay Hospital,Permanent Nursing,Fshc  1St Floor,846.6, 15-Apr-2014
877,Revenue,CCHD,South Glos Users in South Glos Homes,Permanent Nursing,Fshc  1St Floor,1192.01, 15-Apr-2014
878,Revenue,CCHD,Bed Purchasing - Elderly - South,Permanent Residential,Fshc  1St Floor,849.45, 15-Apr-2014
879,Revenue,CCHD,Swift Dump Code,Permanent Residential,Fshc  1St Floor,4233.32, 15-Apr-2014
880,Revenue,CCHD,Bed Purchasing - Frenchay Hospital,Permanent Nursing,Fshc  1St Floor,1545, 15-Apr-2014
881,Revenue,CCHD,Bed Purchasing - Frenchay Hospital,Permanent Nursing,Fshc  1St Floor,508, 15-Apr-2014
882,Revenue,CCHD,South Glos Users in South Glos Homes,Permanent Nursing,Fshc  1St Floor,1819.38, 15-Apr-2014
883,Revenue,CCHD,Bed Purchasing - Southmead Hospital,Permanent Nursing,Fshc  1St Floor,1173.15, 15-Apr-2014
884,Revenue,CCHD,Bed Purchasing - Frenchay Hospital,Permanent Nursing,Fshc  1St Floor,1041.15, 15-Apr-2014
885,Revenue,CCHD,Bed Purchasing - Southmead Hospital,Permanent Nursing,Fshc  1St Floor,1041.15, 15-Apr-2014
886,Revenue,CCHD,Bed purchasing - Elderly MH - North,Permanent Nursing,Fshc  1St Floor,1117.29, 15-Apr-2014
887,Revenue,CCHD,Bed Purchasing - Elderly - North,Permanent Nursing,Fshc  1St Floor,966.9, 15-Apr-2014
888,Revenue,CCHD,Bed Purchasing - Southmead Hospital,Permanent Nursing,Fshc  1St Floor,951.72, 15-Apr-2014
889,Revenue,CCHD,Bed Purchasing - Frenchay Hospital,Permanent Nursing,Fshc  1St Floor,772.35, 15-Apr-2014
890,Revenue,CCHD,Bed Purchasing - Frenchay Hospital,Permanent Nursing,Fshc  1St Floor,971.04, 15-Apr-2014
891,Revenue,CCHD,Bed Purchasing - Frenchay Hospital,Permanent Nursing,Fshc  1St Floor,1029.42, 15-Apr-2014
892,Revenue,CCHD,Bed Purchasing - Elderly - North,Permanent Nursing,Fshc  1St Floor,787.8, 15-Apr-2014
893,Revenue,CCHD,South Glos Users in South Glos Homes,Permanent Nursing,Fshc  1St Floor,925.37, 15-Apr-2014
894,Revenue,CCHD,Bed Purchasing - Elderly - North,Permanent Residential,Fshc  1St Floor,584.79, 15-Apr-2014
895,Revenue,CCHD,Bed Purchasing - Elderly - North,Permanent Residential,Fshc  1St Floor,3471, 15-Apr-2014
896,Revenue,CCHD,Bed Purchasing - Southmead Hospital,Permanent Nursing,Fshc  1St Floor,1106.61, 15-Apr-2014
897,Revenue,CCHD,Bed Purchasing - Southmead Hospital,Permanent Nursing,Fshc  1St Floor,1173.15, 15-Apr-2014
898,Revenue,CCHD,Bed Purchasing - Elderly MH - South,Permanent Nursing,Fshc  1St Floor,1004.13, 15-Apr-2014
899,Revenue,CCHD,Bed Purchasing - Elderly - North,Permanent Nursing,Fshc  1St Floor,1103.49, 15-Apr-2014
900,Revenue,CCHD,Bed purchasing - Elderly MH - North,Permanent Residential,Fshc  1St Floor,1092.15, 15-Apr-2014
901,Revenue,CCHD,Bed Purchasing - Elderly - North,Permanent Nursing,Fshc  1St Floor,1164.48, 15-Apr-2014
902,Revenue,CCHD,Bed purchasing - Elderly S117 - South,Permanent Nursing,Fshc  1St Floor,1413, 15-Apr-2014
903,Revenue,CCHD,Bed purchasing - Elderly MH - North,Permanent Residential,Fshc  1St Floor,947.97, 15-Apr-2014
904,Revenue,CCHD,Bed Purchasing - Southmead Hospital,Permanent Residential,Fshc  1St Floor,945.15, 15-Apr-2014
905,Revenue,CCHD,Bed purchasing - Phys Dis - North,Respite Planned - Nursing,Fshc  1St Floor,1872.57, 15-Apr-2014
906,Revenue,CCHD,Bed Purchasing - Frenchay Hospital,Permanent Nursing,Fshc  1St Floor,1601.21, 15-Apr-2014
907,Revenue,CCHD,Bed Purchasing - Elderly - North,Permanent Residential,Fshc  1St Floor,878.52, 15-Apr-2014
908,Revenue,CCHD,Bed Purchasing - Elderly - South,Permanent Nursing,Fshc  1St Floor,1435.57, 15-Apr-2014
909,Revenue,CCHD,Bed Purchasing - Elderly - South,Permanent Nursing,Fshc  1St Floor,1173.15, 15-Apr-2014
910,Revenue,CCHD,Bed purchasing - Elderly MH - North,Permanent Residential,Fshc  1St Floor,1051.44, 15-Apr-2014
911,Revenue,CCHD,Bed Purchasing - Elderly - North,Permanent Nursing,Fshc  1St Floor,1018.41, 15-Apr-2014
912,Revenue,CCHD,Bed Purchasing - Southmead Hospital,Permanent Residential,Fshc  1St Floor,1694.78, 15-Apr-2014
913,Revenue,CCHD,Bed Purchasing - Southmead Hospital,Permanent Residential,Fshc  1St Floor,1092.15, 15-Apr-2014
914,Revenue,CCHD,Bed purchasing - Phys Dis - North,Permanent Nursing,Fshc  1St Floor,1041.15, 15-Apr-2014
915,Revenue,CCHD,Bed Purchasing - Elderly - North,Permanent Nursing,Fshc  1St Floor,1041.15, 15-Apr-2014
916,Revenue,CCHD,Bed Purchasing - Elderly - North,Permanent Residential,Fshc  1St Floor,945.15, 15-Apr-2014
917,Revenue,CCHD,Bed Purchasing - Elderly - North,Permanent Nursing,Fshc  1St Floor,864.99, 15-Apr-2014
918,Revenue,CCHD,Bed Purchasing - Frenchay Hospital,Permanent Residential,Fshc  1St Floor,945.15, 15-Apr-2014
919,Revenue,CCHD,South Glos Users in South Glos Homes,Permanent Nursing,Fshc  1St Floor,2717.5, 15-Apr-2014
920,Revenue,CCHD,South Glos Users in South Glos Homes,Permanent Nursing,Fshc  1St Floor,1458.64, 15-Apr-2014
921,Revenue,CCHD,Bed Purchasing - Southmead Hospital,Permanent Nursing,Fshc  1St Floor,1041.15, 15-Apr-2014
922,Revenue,CCHD,South Glos Users in South Glos Homes,Permanent Nursing,Fshc  1St Floor,2164.43, 15-Apr-2014
923,Revenue,CCHD,Bed Purchasing - Frenchay Hospital,Permanent Nursing,Fshc  1St Floor,995.97, 15-Apr-2014
924,Revenue,CCHD,Bed Purchasing - Elderly - North,Permanent Nursing,Fshc  1St Floor,677.64, 15-Apr-2014
925,Revenue,CCHD,Bed Purchasing - Southmead Hospital,Permanent Nursing,Fshc  1St Floor,1321.07, 15-Apr-2014
926,Revenue,CCHD,Bed Purchasing - Southmead Hospital,Permanent Nursing,Fshc  1St Floor,1041.15, 15-Apr-2014
927,Revenue,CCHD,Bed Purchasing - Elderly - North,Permanent Nursing,Fshc  1St Floor,762.9, 15-Apr-2014
928,Revenue,CCHD,Bed Purchasing - Southmead Hospital,Permanent Nursing,Fshc  1St Floor,768.69, 15-Apr-2014
929,Revenue,CCHD,Bed Purchasing - Frenchay Hospital,Permanent Nursing,Fshc  1St Floor,1041.15, 15-Apr-2014
930,Revenue,CCHD,Bed Purchasing - Frenchay Hospital,Respite Planned - Nursing,Fshc  1St Floor,729.14, 15-Apr-2014
931,Revenue,CCHD,Bed Purchasing - Elderly - South,Permanent Nursing,Fshc  1St Floor,1045.59, 15-Apr-2014
932,Revenue,CCHD,Bed Purchasing - Frenchay Hospital,Permanent Nursing,Fshc  1St Floor,991.44, 15-Apr-2014
933,Revenue,CCHD,Bed Purchasing - Frenchay Hospital,Permanent Nursing,Fshc  1St Floor,1041.15, 15-Apr-2014
934,Revenue,CCHD,Bed Purchasing - Elderly - North,Permanent Nursing,Fshc  1St Floor,966.12, 15-Apr-2014
935,Revenue,CCHD,Bed Purchasing - Elderly - North,Permanent Nursing,Fshc  1St Floor,812.31, 15-Apr-2014
936,Revenue,CCHD,Bed Purchasing - Southmead Hospital,Permanent Nursing,Fshc  1St Floor,571.56, 15-Apr-2014
937,Revenue,CCHD,Bed Purchasing - Frenchay Hospital,Permanent Nursing,Fshc  1St Floor,655.41, 15-Apr-2014
938,Revenue,CCHD,Bed Purchasing - Elderly - North,Permanent Nursing,Fshc  1St Floor,1056.15, 15-Apr-2014
939,Revenue,CCHD,Bed Purchasing - Southmead Hospital,Permanent Nursing,Fshc  1St Floor,984.51, 15-Apr-2014
940,Revenue,CCHD,Bed Purchasing - Elderly - North,Permanent Nursing,Fshc  1St Floor,952.65, 15-Apr-2014
941,Revenue,CCHD,Bed Purchasing - Frenchay Hospital,Permanent Nursing,Fshc  1St Floor,1041.15, 15-Apr-2014
942,Revenue,CCHD,Bed Purchasing - Frenchay Hospital,Permanent Nursing,Fshc  1St Floor,880.71, 15-Apr-2014
943,Revenue,CCHD,Bed Purchasing - Elderly - South,Permanent Nursing,Fshc  1St Floor,595.8, 15-Apr-2014
944,Revenue,CCHD,Bed Purchasing - Frenchay Hospital,Permanent Nursing,Fshc  1St Floor,1018.44, 15-Apr-2014
945,Revenue,CCHD,Bed Purchasing - Southmead Hospital,Permanent Nursing,Fshc  1St Floor,1020.24, 15-Apr-2014
946,Revenue,CCHD,Bed Purchasing - Elderly - North,Permanent Residential,Fshc  1St Floor,2250.48, 15-Apr-2014
947,Revenue,CCHD,Bed Purchasing - Elderly - North,Permanent Residential,Fshc  1St Floor,740.01, 15-Apr-2014
948,Revenue,CCHD,Bed purchasing - Phys Dis - North,Permanent Nursing,Fshc  1St Floor,1045.53, 15-Apr-2014
949,Revenue,CCHD,Bed Purchasing - Elderly - South,Permanent Nursing,Fshc  1St Floor,932.07, 15-Apr-2014
950,Revenue,CCHD,Bed Purchasing - Southmead Hospital,Permanent Nursing,Fshc  1St Floor,1041.15, 15-Apr-2014
951,Revenue,CCHD,Bed Purchasing - Southmead Hospital,Permanent Nursing,Fshc  1St Floor,989.46, 15-Apr-2014
952,Revenue,CCHD,Bed Purchasing - Elderly MH - South,Permanent Residential,Fshc  1St Floor,1464, 15-Apr-2014
953,Revenue,CCHD,Bed Purchasing - Frenchay Hospital,Permanent Nursing,Fshc  1St Floor,1035.75, 15-Apr-2014
954,Revenue,CCHD,Bed Purchasing - Southmead Hospital,Permanent Residential,Fshc  1St Floor,1113.15, 15-Apr-2014
955,Revenue,CCHD,Bed Purchasing - Elderly - South,Permanent Residential,Fshc  1St Floor,1068.3, 15-Apr-2014
956,Revenue,CCHD,Bed Purchasing - Elderly - North,Permanent Residential,Fshc  1St Floor,875.34, 15-Apr-2014
957,Revenue,CCHD,Bed Purchasing - Elderly - North,Permanent Nursing,Fshc  1St Floor,857.49, 15-Apr-2014
958,Revenue,CCHD,Bed Purchasing - Southmead Hospital,Permanent Nursing,Fshc  1St Floor,832.41, 15-Apr-2014
959,Revenue,CCHD,Bed Purchasing - Frenchay Hospital,Permanent Nursing,Fshc  1St Floor,936.72, 15-Apr-2014
960,Revenue,CCHD,Bed Purchasing - Elderly - North,Permanent Nursing,Fshc  1St Floor,10126.28, 15-Apr-2014
961,Revenue,CCHD,Bed Purchasing - Elderly - North,Permanent Nursing,Fshc  1St Floor,1041.15, 15-Apr-2014
962,Revenue,CCHD,South Glos Users in South Glos Homes,Permanent Nursing,Fshc  1St Floor,501.9, 15-Apr-2014
963,Revenue,CCHD,Bed purchasing - Elderly MH - North,Permanent Residential,Fshc  1St Floor,1092.15, 15-Apr-2014
964,Revenue,CCHD,Bed Purchasing - Southmead Hospital,Permanent Nursing,Fshc  1St Floor,902.43, 15-Apr-2014
965,Revenue,CCHD,Bed Purchasing - Southmead Hospital,Permanent Nursing,Fshc  1St Floor,1038.15, 15-Apr-2014
966,Revenue,CCHD,Bed Purchasing - Elderly - South,Permanent Residential,Fshc  1St Floor,676.2, 15-Apr-2014
967,Revenue,CCHD,Bed purchasing - Elderly PWLD - South,Permanent Residential,Fshc  1St Floor,945.15, 15-Apr-2014
968,Revenue,CCHD,Bed Purchasing - Frenchay Hospital,Permanent Nursing,Fshc  1St Floor,1041.15, 15-Apr-2014
969,Revenue,CCHD,Bed Purchasing - Southmead Hospital,Permanent Nursing,Fshc  1St Floor,830.61, 15-Apr-2014
970,Revenue,CCHD,Bed Purchasing - Elderly - North,Permanent Residential,Fshc  1St Floor,899.31, 15-Apr-2014
971,Revenue,CCHD,Bed Purchasing - Frenchay Hospital,Permanent Nursing,Fshc  1St Floor,546.42, 15-Apr-2014
972,Revenue,CCHD,Bed Purchasing - Frenchay Hospital,Permanent Nursing,Fshc  1St Floor,1041.15, 15-Apr-2014
973,Revenue,CCHD,Bed Purchasing - Southmead Hospital,Permanent Nursing,Fshc  1St Floor,820.59, 15-Apr-2014
974,Revenue,CCHD,Bed Purchasing - Elderly - South,Permanent Nursing,Fshc  1St Floor,1041.15, 15-Apr-2014
975,Revenue,CCHD,Bed Purchasing - Elderly - South,Permanent Residential,Fshc  1St Floor,604.8, 15-Apr-2014
976,Revenue,CCHD,Bed Purchasing - Southmead Hospital,Permanent Residential,Fshc  1St Floor,1106.73, 15-Apr-2014
977,Revenue,CCHD,Bed Purchasing - Elderly - South,Permanent Nursing,Fshc  1St Floor,920.43, 15-Apr-2014
978,Revenue,CCHD,Bed Purchasing - Elderly - South,Permanent Nursing,Fshc  1St Floor,708.39, 15-Apr-2014
979,Revenue,CCHD,Bed purchasing - Elderly S117 - South,Permanent Nursing,Fshc  1St Floor,1413, 15-Apr-2014
980,Revenue,CCHD,Bed Purchasing - Frenchay Hospital,Permanent Residential,Fshc  1St Floor,841.56, 15-Apr-2014
981,Revenue,CCHD,Bed Purchasing - Elderly - North,Permanent Nursing,Fshc  1St Floor,995.88, 15-Apr-2014
982,Revenue,CCHD,South Glos Users in South Glos Homes,Permanent Nursing,Fshc  1St Floor,855.44, 15-Apr-2014
983,Revenue,CCHD,Bed Purchasing - Elderly - South,Permanent Residential,Fshc  1St Floor,1028.55, 15-Apr-2014
984,Revenue,CCHD,Bed Purchasing - Frenchay Hospital,Respite Emergency - Residential,Fshc  1St Floor,1464, 15-Apr-2014
985,Revenue,CCHD,Bed Purchasing - Frenchay Hospital,Permanent Nursing,Fshc  1St Floor,890.24, 15-Apr-2014
986,Revenue,CCHD,Bed Purchasing - Frenchay Hospital,Permanent Nursing,Fshc  1St Floor,583.35, 15-Apr-2014
987,Revenue,CCHD,Bed Purchasing - Elderly - North,Permanent Residential,Fshc  1St Floor,912.69, 15-Apr-2014
988,Revenue,CCHD,Swift Dump Code,Permanent Residential,Fshc  1St Floor,2376.52, 15-Apr-2014
989,Revenue,CCHD,Bed Purchasing - Elderly - South,Permanent Nursing,Fshc  1St Floor,1942.5, 15-Apr-2014
990,Revenue,CCHD,Bed Purchasing - Elderly - South,Permanent Nursing,Fshc  1St Floor,978.54, 15-Apr-2014
991,Revenue,CCHD,Bed Purchasing - Elderly - South,Permanent Nursing,Fshc  1St Floor,10959.97, 15-Apr-2014
992,Revenue,CCHD,Bed Purchasing - Elderly - South,Permanent Nursing,Fshc  1St Floor,1251.3, 15-Apr-2014
993,Revenue,CCHD,Swift Dump Code,Permanent Residential,Fshc  1St Floor,938.5, 15-Apr-2014
994,Revenue,CCHD,Bed Purchasing - Southmead Hospital,Permanent Nursing,Fshc  1St Floor,1413, 15-Apr-2014
995,Revenue,CCHD,Bed Purchasing - Frenchay Hospital,Permanent Nursing,Fshc  1St Floor,837.42, 15-Apr-2014
996,Revenue,CCHD,Bed Purchasing - Southmead Hospital,Permanent Nursing,Fshc  1St Floor,841.29, 15-Apr-2014
997,Revenue,CCHD,Bed Purchasing - Frenchay Hospital,Permanent Nursing,Fshc  1St Floor,718.98, 15-Apr-2014
998,Revenue,CCHD,Bed Purchasing - Frenchay Hospital,Permanent Nursing,Fshc  1St Floor,982.29, 15-Apr-2014
999,Revenue,CCHD,Bed Purchasing - Frenchay Hospital,Permanent Nursing,Fshc  1St Floor,1161.75, 15-Apr-2014
1000,Revenue,CCHD,Bed Purchasing - Southmead Hospital,Permanent Nursing,Fshc  1St Floor,1370, 15-Apr-2014
1001,Revenue,CCHD,Bed Purchasing - Southmead Hospital,Permanent Nursing,Fshc  1St Floor,1041.15, 15-Apr-2014
1002,Revenue,CCHD,Bed Purchasing - Southmead Hospital,Permanent Nursing,Fshc  1St Floor,1041.15, 15-Apr-2014
1003,Revenue,CCHD,Bed Purchasing - Frenchay Hospital,Permanent Nursing,Fshc  1St Floor,1041.15, 15-Apr-2014
1004,Revenue,CCHD,Bed Purchasing - Southmead Hospital,Permanent Nursing,Fshc  1St Floor,661.35, 15-Apr-2014
1005,Revenue,CCHD,Bed Purchasing - Southmead Hospital,Permanent Nursing,Fshc  1St Floor,560.25, 15-Apr-2014
1006,Revenue,CCHD,Bed Purchasing - Southmead Hospital,Permanent Residential,Fshc  1St Floor,1317, 15-Apr-2014
1007,Revenue,CCHD,Bed Purchasing - Elderly - North,Permanent Nursing,Fshc  1St Floor,13902.45, 15-Apr-2014
1008,Revenue,CCHD,Bed Purchasing - Frenchay Hospital,Permanent Nursing,Fshc  1St Floor,990.15, 15-Apr-2014
1009,Revenue,CCHD,Bed Purchasing - Frenchay Hospital,Permanent Nursing,Fshc  1St Floor,651, 15-Apr-2014
1010,Revenue,CCHD,Bed Purchasing - Elderly - North,Permanent Nursing,Fshc  1St Floor,976.92, 15-Apr-2014
1011,Revenue,CCHD,Bed purchasing - Phys Dis - North,Permanent Nursing,Fshc  1St Floor,791.9, 15-Apr-2014
1012,Revenue,CCHD,Bed Purchasing - Elderly - North,Permanent Nursing,Fshc  1St Floor,1122.15, 15-Apr-2014
1013,Revenue,CCHD,Bed Purchasing - Elderly - North,Permanent Nursing,Fshc  1St Floor,922.02, 15-Apr-2014
1014,Revenue,CCHD,Bed Purchasing - Frenchay Hospital,Permanent Nursing,Fshc  1St Floor,990.15, 15-Apr-2014
1015,Revenue,CCHD,Bed purchasing - Elderly MH - North,Permanent Nursing,Fshc  1St Floor,642.78, 15-Apr-2014
1016,Revenue,CCHD,Bed Purchasing - Southmead Hospital,Permanent Nursing,Fshc  1St Floor,1122.15, 15-Apr-2014
1017,Revenue,CCHD,Bed Purchasing - Elderly - North,Permanent Nursing,Fshc  1St Floor,1026.42, 15-Apr-2014
1018,Revenue,CCHD,Bed Purchasing - Frenchay Hospital,Permanent Nursing,Fshc  1St Floor,1032.51, 15-Apr-2014
1019,Revenue,CCHD,Bed Purchasing - Frenchay Hospital,Permanent Residential,Fshc  1St Floor,924.81, 15-Apr-2014
1020,Revenue,CCHD,Bed Purchasing - Southmead Hospital,Permanent Nursing,Fshc  1St Floor,980.4, 15-Apr-2014
1021,Revenue,CCHD,Bed Purchasing - Frenchay Hospital,Permanent Nursing,Fshc  1St Floor,833.01, 15-Apr-2014
1022,Revenue,CCHD,Bed Purchasing - Southmead Hospital,Permanent Nursing,Fshc  1St Floor,2052.65, 15-Apr-2014
1023,Revenue,CCHD,Bed Purchasing - Southmead Hospital,Permanent Nursing,Fshc  1St Floor,947.43, 15-Apr-2014
1024,Revenue,CCHD,Bed Purchasing - Southmead Hospital,Permanent Nursing,Fshc  1St Floor,1100.43, 15-Apr-2014
1025,Revenue,CCHD,Bed purchasing - Elderly S117 - South,Permanent Nursing,Fshc  1St Floor,1494, 15-Apr-2014
1026,Revenue,CCHD,Bed Purchasing - Frenchay Hospital,Permanent Nursing,Fshc  1St Floor,713.01, 15-Apr-2014
1027,Revenue,CCHD,Bed Purchasing - Elderly S117- North,Permanent Nursing,Fshc  1St Floor,1494, 15-Apr-2014
1028,Revenue,CCHD,Bed Purchasing - Elderly - North,Permanent Residential,Fshc  1St Floor,1074.15, 15-Apr-2014
1029,Revenue,CCHD,Bed Purchasing - Frenchay Hospital,Permanent Nursing,Fshc  1St Floor,825.33, 15-Apr-2014
1030,Revenue,CCHD,Bed Purchasing - Elderly - South,Permanent Residential,Fshc  1St Floor,1355.89, 15-Apr-2014
1031,Revenue,CCHD,Bed Purchasing - Southmead Hospital,Permanent Residential,FSHC 1st Floor,805.9, 15-Apr-2014
1032,Revenue,CCHD,Section 117 Placements MH Younger,Permanent Residential,Gladstone House,2752.09, 15-Apr-2014
1033,Revenue,CCHD,Bed purchasing - Elderly MH - North,Permanent Residential,Glebe House Nursing Home,1355.55, 15-Apr-2014
1034,Revenue,CCHD,South Glos Users in South Glos Homes,Permanent Nursing,Glebe House Nursing Home,643.06, 15-Apr-2014
1035,Revenue,CCHD,Bed Purchasing - Elderly - South,Respite Emergency - Residential,Glebe House Nursing Home,3277, 15-Apr-2014
1036,Revenue,CCHD,Bed purchasing - Elderly MH - North,Permanent Residential,Glebe House Nursing Home,1533.06, 15-Apr-2014
1037,Revenue,CCHD,Bed purchasing - Elderly MH - North,Permanent Residential,Glebe House Nursing Home,501.9, 15-Apr-2014
1038,Revenue,CCHD,Bed Purchasing - Elderly - North,Permanent Nursing,Glebe House Nursing Home,1046.88, 15-Apr-2014
1039,Revenue,CCHD,Bed Purchasing - Frenchay Hospital,Permanent Nursing,Glebe House Nursing Home,671.52, 15-Apr-2014
1040,Revenue,CCHD,Bed Purchasing - Elderly - North,Permanent Residential,Glebe House Nursing Home,880.38, 15-Apr-2014
1041,Revenue,CCHD,Bed Purchasing - Elderly - North,Permanent Residential,Glebe House Nursing Home,8142.86, 15-Apr-2014
1042,Revenue,CCHD,Bed Purchasing - Elderly - North,Permanent Residential,Glebe House Nursing Home,2283.3, 15-Apr-2014
1043,Revenue,CCHD,Bed Purchasing - Elderly - North,Permanent Residential,Glebe House Nursing Home,750, 15-Apr-2014
1044,Revenue,CCHD,Bed Purchasing - Elderly - North,Permanent Nursing,Glebe House Nursing Home,1374.39, 15-Apr-2014
1045,Revenue,CCHD,South Glos Users in South Glos Homes,Permanent Nursing,Glebe House Nursing Home,2133.06, 15-Apr-2014
1046,Revenue,CCHD,Bed Purchasing - Elderly - North,Permanent Nursing,Glebe House Nursing Home,1624.17, 15-Apr-2014
1047,Revenue,CCHD,Bed Purchasing - Elderly - North,Permanent Nursing,Glebe House Nursing Home,533.43, 15-Apr-2014
1048,Revenue,CCHD,Bed Purchasing - Elderly - South,Permanent Residential,Glebe House Nursing Home,1503.33, 15-Apr-2014
1049,Revenue,CCHD,Bed Purchasing - Elderly - North,Permanent Residential,Glebe House Nursing Home,1944.75, 15-Apr-2014
1050,Revenue,CCHD,Bed Purchasing - Elderly - North,Permanent Residential,Glebe House Nursing Home,637.98, 15-Apr-2014
1051,Revenue,CCHD,Bed Purchasing - Under 65s PWLD - South,Permanent Residential,Gordena Care Home,1585.23, 15-Apr-2014
1052,Revenue,CCHD,Bed Purchasing - Under 65s PWLD - South,Permanent Residential,Gordena Care Home,520.59, 15-Apr-2014
1053,Revenue,CCHD,Bed purchasing - Elderly PWLD - South,Permanent Residential,Gordena Care Home,3599.88, 15-Apr-2014
1054,Revenue,CCHD,Bed purchasing - Elderly PWLD - South,Permanent Residential,Gordena Care Home,1183.1, 15-Apr-2014
1055,Revenue,CCHD,Bed purchasing - Elderly PWLD - South,Permanent Residential,Gordena Care Home,2369.82, 15-Apr-2014
1056,Revenue,CCHD,Bed purchasing - Elderly PWLD - South,Permanent Residential,Gordena Care Home,779.06, 15-Apr-2014
1057,Revenue,CCHD,Bed purchasing - Elderly PWLD - South,Permanent Residential,Gordena Care Home,2226.12, 15-Apr-2014
1058,Revenue,CCHD,Bed purchasing - Elderly PWLD - South,Permanent Residential,Gordena Care Home,731.86, 15-Apr-2014
1059,Revenue,CCHD,Bed Purchasing - Under 65s PWLD - South,Permanent Residential,Gordena Care Limited,3163.32, 15-Apr-2014
1060,Revenue,CCHD,Bed Purchasing - Under 65s PWLD - South,Permanent Residential,Gordena Care Limited,1039.64, 15-Apr-2014
1061,Revenue,CCHD,Bed purchasing - S28A Under 65 - South,Permanent Residential,Gordena Care Limited,3087, 15-Apr-2014
1062,Revenue,CCHD,Bed purchasing - S28A Under 65 - South,Permanent Residential,Gordena Care Limited,1013.95, 15-Apr-2014
1063,Revenue,CCHD,Bed purchasing - Under 65s PWLD - North,Permanent Residential,Gordena Care Limited,3164.22, 15-Apr-2014
1064,Revenue,CCHD,Bed purchasing - Under 65s PWLD - North,Permanent Residential,Gordena Care Limited,1040, 15-Apr-2014
1065,Revenue,CCHD,Bed Purchasing - Elderly - North,Permanent Residential,Greensleeves,1327.11, 15-Apr-2014
1066,Revenue,CCHD,Bed Purchasing - Elderly - North,Permanent Residential,Gwendoline House,665.88, 15-Apr-2014
1067,Revenue,CCHD,Bed Purchasing - Elderly - South,Permanent Residential,Gwendoline House,1132.5, 15-Apr-2014
1068,Revenue,CCHD,Bed Purchasing - Elderly - North,Permanent Residential,Gwendoline House,1246.47, 15-Apr-2014
1069,Revenue,CCHD,Bed Purchasing - Elderly MH - South,Permanent Residential,Gwendoline House,966.15, 15-Apr-2014
1070,Revenue,CCHD,Bed Purchasing - Elderly - South,Permanent Residential,Gwendoline House,857.67, 15-Apr-2014
1071,Revenue,CCHD,Supporting People Programme,Grants to Voluntary Bodies,Habinteg Housing Association,1358.58, 04-Apr-2014
1072,Revenue,CCHD,Public Health - Admin,Other Supplies & Services,Halcrow Group Limited,1000.99, 24-Apr-2014
1073,Revenue,CCHD,Breakthrough and Inclusion Work,Other Supplies & Services,Hambly`s Sport Matter Limited,1217.5, 17-Apr-2014
1074,Revenue,CCHD,Breakthrough and Inclusion Work,Other Supplies & Services,Hambly`s Sport Matter Limited,1362, 17-Apr-2014
1075,Revenue,CCHD,Tenancy Start Up Scheme,Other Supplies & Services,Individual,625, 14-Apr-2014
1076,Revenue,CCHD,Tenancy Start Up Scheme,Other Supplies & Services,Individual,625, 14-Apr-2014
1077,Revenue,CCHD,Bed Purchasing - Elderly - South,Permanent Residential,Harefield Hall,1010.34, 15-Apr-2014
1078,Revenue,CCHD,Bed Purchasing - Elderly - South,Permanent Residential,Harefield Hall,1500.09, 15-Apr-2014
1079,Revenue,CCHD,Bed Purchasing - Elderly - South,Permanent Residential,Harefield Hall,836.49, 15-Apr-2014
1080,Revenue,CCHD,Bed Purchasing - Elderly - South,Permanent Residential,Harefield Hall,1353.99, 15-Apr-2014
1081,Revenue,CCHD,Bed Purchasing - Elderly MH - South,Permanent Residential,Harefield Hall,774, 15-Apr-2014
1082,Revenue,CCHD,Bed Purchasing - Elderly - South,Permanent Residential,Harefield Hall,978.36, 15-Apr-2014
1083,Revenue,CCHD,Bed Purchasing - Elderly - North,Permanent Nursing,Hc-One Ltd,1119.27, 15-Apr-2014
1084,Revenue,CCHD,Bed Purchasing - Elderly - North,Permanent Nursing,Hc-One Ltd,1150.17, 15-Apr-2014
1085,Revenue,CCHD,Bed Purchasing - Elderly - North,Permanent Residential,Hc-One Ltd,1490.25, 15-Apr-2014
1086,Revenue,CCHD,Bed Purchasing - Elderly - North,Permanent Nursing,Hc-One Ltd,1138.95, 15-Apr-2014
1087,Revenue,CCHD,Bed purchasing - Elderly PWLD - South,Permanent Nursing,Hc-One Ltd,1466.94, 15-Apr-2014
1088,Revenue,CCHD,Bed purchasing - Elderly MH - North,Permanent Nursing,Hc-One Ltd,1122.15, 15-Apr-2014
1089,Revenue,CCHD,Bed purchasing - Elderly MH - North,Permanent Nursing,Hc-One Ltd,929.46, 15-Apr-2014
1090,Revenue,CCHD,Bed Purchasing - Elderly - South,Permanent Nursing,Hc-One Ltd,864.36, 15-Apr-2014
1091,Revenue,CCHD,Bed purchasing - Elderly MH - North,Permanent Nursing,Hc-One Ltd,898.08, 15-Apr-2014
1092,Revenue,CCHD,Bed Purchasing - Elderly S117- North,Permanent Nursing,Hc-One Ltd,1482.42, 15-Apr-2014
1093,Revenue,CCHD,Day Care - South,Private & Voluntary Day Care,Headway Bristol,508.23, 04-Apr-2014
1094,Revenue,CCHD,Day Care - South,Private & Voluntary Day Care,Headway Bristol,526.23, 28-Apr-2014
1095,Revenue,CCHD,Day Care - South,Private & Voluntary Day Care,Headway Bristol,574.11, 28-Apr-2014
1096,Revenue,CCHD,Home Care - Elderly - South,Other Small Contracts,Helping Hands Homecare,574.77, 09-Apr-2014
1097,Revenue,CCHD,Home Care - Elderly - North,Other Small Contracts,Helping Hands Homecare,1501.44, 09-Apr-2014
1098,Revenue,CCHD,Day Care - North,Private & Voluntary Day Care,Helping Hands Homecare,125.12, 09-Apr-2014
1099,Revenue,CCHD,Under 65s -MH  Home Care Purch,Other Small Contracts,Helping Hands Homecare,31.28, 09-Apr-2014
1100,Revenue,CCHD,Home care - Elderly MH - North,Other Small Contracts,Helping Hands Homecare,62.56, 09-Apr-2014
1101,Revenue,CCHD,Home Care - Elderly - South,Other Small Contracts,Helping Hands Homecare,547.4, 17-Apr-2014
1102,Revenue,CCHD,Home Care - Elderly - North,Other Small Contracts,Helping Hands Homecare,1470.16, 17-Apr-2014
1103,Revenue,CCHD,Day Care - North,Private & Voluntary Day Care,Helping Hands Homecare,93.84, 17-Apr-2014
1104,Revenue,CCHD,Under 65s -MH  Home Care Purch,Other Small Contracts,Helping Hands Homecare,31.28, 17-Apr-2014
1105,Revenue,CCHD,Home care - Elderly MH - North,Other Small Contracts,Helping Hands Homecare,62.56, 17-Apr-2014
1106,Revenue,CCHD,Home Care - Elderly - South,Other Small Contracts,Helping Hands Homecare,547.4, 17-Apr-2014
1107,Revenue,CCHD,Home Care - Elderly - North,Other Small Contracts,Helping Hands Homecare,1564, 17-Apr-2014
1108,Revenue,CCHD,Day Care - North,Private & Voluntary Day Care,Helping Hands Homecare,125.12, 17-Apr-2014
1109,Revenue,CCHD,Under 65s -MH  Home Care Purch,Other Small Contracts,Helping Hands Homecare,31.28, 17-Apr-2014
1110,Revenue,CCHD,Home care - Elderly MH - North,Other Small Contracts,Helping Hands Homecare,62.56, 17-Apr-2014
1111,Revenue,CCHD,S117 Placements PCT,Permanent Residential,Hesley Hall,18143.13, 15-Apr-2014
1112,Revenue,CCHD,Bed Purchasing - Southmead Hospital,Permanent Residential,High Border Lodge,1443.27, 15-Apr-2014
1113,Revenue,CCHD,Bed Purchasing - Frenchay Hospital,Permanent Residential,Highfield House,1225.8, 15-Apr-2014
1114,Revenue,CCHD,Bed Purchasing - Southmead Hospital,Permanent Residential,Highgate Studios,4672.91, 15-Apr-2014
1115,Revenue,CCHD,Bed purchasing - Under 65s PWLD - North,Permanent Residential,Holmleigh Care Homes Ltd,4044.92, 15-Apr-2014
1116,Revenue,CCHD,Bed Purchasing - Under 65s PWLD - South,Permanent Residential,Holmleigh Care Homes Ltd,5083.88, 15-Apr-2014
1117,Revenue,CCHD,Bed purchasing - Under 65s PWLD - North,Permanent Residential,Home Farm Trust Ltd  5-6 Brook Office Pa,2139.06, 15-Apr-2014
1118,Revenue,CCHD,Bed purchasing - Under 65s PWLD - North,Permanent Residential,Home Farm Trust Ltd  5-6 Brook Office Pa,702.51, 15-Apr-2014
1119,Revenue,CCHD,Bed purchasing - Elderly PWLD - South,Permanent Residential,Home Farm Trust Ltd  5-6 Brook Office Pa,3835.8, 15-Apr-2014
1120,Revenue,CCHD,Bed purchasing - Elderly PWLD - South,Permanent Residential,Home Farm Trust Ltd  5-6 Brook Office Pa,1262.58, 15-Apr-2014
1121,Revenue,CCHD,Bed purchasing - Under 65s PWLD - North,Permanent Residential,Home Farm Trust Ltd  5-6 Brook Office Pa,2582.04, 15-Apr-2014
1122,Revenue,CCHD,Bed purchasing - Under 65s PWLD - North,Permanent Residential,Home Farm Trust Ltd  5-6 Brook Office Pa,849, 15-Apr-2014
1123,Revenue,CCHD,Bed Purchasing - Under 65s PWLD - South,Permanent Residential,Home Farm Trust Ltd  5-6 Brook Office Pa,3429.12, 15-Apr-2014
1124,Revenue,CCHD,Bed Purchasing - Under 65s PWLD - South,Permanent Residential,Home Farm Trust Ltd  5-6 Brook Office Pa,1126.26, 15-Apr-2014
1125,Revenue,CCHD,Bed purchasing - Under 65s PWLD - North,Permanent Residential,Home From Home Care Ltd,8955.53, 15-Apr-2014
1126,Revenue,CCHD,Social Lettings Agency,Fees - General,Home Turf Lettings,10, 11-Apr-2014
1127,Revenue,CCHD,Social Lettings Agency,Other Supplies & Services,Home Turf Lettings,565, 11-Apr-2014
1128,Revenue,CCHD,Bed purchasing - Under 65s PWLD - North,Permanent Residential,Homes Caring For Autism Ltd  Churchill H,9860.19, 15-Apr-2014
1129,Revenue,CCHD,Bed Purchasing - Under 65s PWLD - South,Permanent Residential,Homes Caring For Autism Ltd  Churchill H,12856.77, 15-Apr-2014
1130,Revenue,CCHD,Bed purchasing - Under 65s PWLD - North,Permanent Residential,Homes Caring For Autism Ltd  Churchill H,12547.43, 15-Apr-2014
1131,Revenue,CCHD,Bed Purchasing - Elderly - South,Permanent Nursing,Horfield Care Limited,1348.59, 24-Apr-2014
1132,Revenue,CCHD,Bed Purchasing - Elderly - North,Permanent Nursing,Horfield Care Limited,2892.52, 24-Apr-2014
1133,Revenue,CCHD,Bed Purchasing - Frenchay Hospital,Permanent Nursing,Horfield Care Limited,2564.14, 24-Apr-2014
1134,Revenue,CCHD,Bed Purchasing - Frenchay Hospital,Respite Emergency - Nursing,Horfield Care Limited,1216.84, 24-Apr-2014
1135,Revenue,CCHD,Bed Purchasing - Southmead Hospital,Permanent Nursing,Horfield Care Limited,8133.67, 24-Apr-2014
1136,Revenue,CCHD,Bed Purchasing - Southmead Hospital,Respite Emergency - Nursing,Horfield Care Limited,2233.55, 24-Apr-2014
1137,Revenue,CCHD,Supporting People Programme,Grants to Voluntary Bodies,Housing 21,616.42, 04-Apr-2014
1138,Revenue,CCHD,Supporting People Programme,Grants to Voluntary Bodies,Housing 21,935, 04-Apr-2014
1139,Revenue,CCHD,Home Care - Elderly - North,Private & Voluntary Home Care,Housing 21,37580.45, 10-Apr-2014
1140,Revenue,CCHD,Home Care - Elderly - South,Private & Voluntary Home Care,Housing 21,24011, 01-Apr-2014
1141,Revenue,CCHD,Home Care - Elderly - South,Private & Voluntary Home Care,Housing 21,1738.8, 02-Apr-2014
1142,Revenue,CCHD,Home Care - Elderly - South,Private & Voluntary Home Care,Housing 21,1412.88, 02-Apr-2014
1143,Revenue,CCHD,Information Systems - Software,Software Support & Maintenance,Housing Partners Limited,16000, 04-Apr-2014
1144,Revenue,CCHD,Care Management Team - South,Agency Staff (Operational)/PCT Pay,IPE,1998.76, 11-Apr-2014
1145,Revenue,CCHD,Care Management Team - South,Agency Staff (Operational)/PCT Pay,IPE,3147.85, 09-Apr-2014
1146,Revenue,CCHD,Care Management Team - South,Agency Staff (Operational)/PCT Pay,IPE,1348.76, 11-Apr-2014
1147,Revenue,CCHD,Care Management Team - South,Agency Staff (Operational)/PCT Pay,IPE,1348.76, 11-Apr-2014
1148,Revenue,CCHD,Care Management Team - South,Agency Staff (Operational)/PCT Pay,IPE,1779.38, 04-Apr-2014
1149,Revenue,CCHD,Social Lettings Agency,Fees - General,Individual,11.6, 11-Apr-2014
1150,Revenue,CCHD,Social Lettings Agency,Other Supplies & Services,Individual,655.41, 11-Apr-2014
1151,Revenue,CCHD,Bed Purchasing - Elderly - North,Permanent Residential,Jah Jireh Charity Homes,1148.68, 15-Apr-2014
1152,Revenue,CCHD,Homeless - Private Sector Leasing,Other Supplies & Services,Jill Collins,594, 15-Apr-2014
1153,Revenue,CCHD,Training - Adult Services,Training Expenses,JK Training,2000, 25-Apr-2014
1154,Revenue,CCHD,Training - Adult Services,Training Expenses,Jo Williams,663, 07-Apr-2014
1155,Revenue,CCHD,Training - Adult Services,Training Expenses,Jonathan Coles,600, 04-Apr-2014
1156,Revenue,CCHD,Bed Purchasing - Under 65s PWLD - South,Permanent Residential,Julia Simone- Supp. Ind.,2970.39, 15-Apr-2014
1157,Revenue,CCHD,Bed Purchasing - Under 65s PWLD - South,Permanent Residential,Julia Simone- Supp. Ind.,975.58, 15-Apr-2014
1158,Revenue,CCHD,Bed purchasing -S28A  Under 65 - North,Permanent Residential,Julia Simone- Supp. Ind.,2620.89, 15-Apr-2014
1159,Revenue,CCHD,Bed purchasing -S28A  Under 65 - North,Permanent Residential,Julia Simone- Supp. Ind.,860.77, 15-Apr-2014
1160,Revenue,CCHD,Tenancy Start Up Scheme,Other Supplies & Services,Just Lets,1340, 28-Apr-2014
1161,Revenue,CCHD,Bed Purchasing - Elderly - South,Permanent Residential,Karenza Ltd,1750, 15-Apr-2014
1162,Revenue,CCHD,Bed Purchasing - Elderly - South,Permanent Residential,Kenver House Residential Home,1176.51, 15-Apr-2014
1163,Revenue,CCHD,Bed Purchasing - Frenchay Hospital,Permanent Residential,Kenver House Residential Home,839.52, 15-Apr-2014
1164,Revenue,CCHD,Bed Purchasing - Frenchay Hospital,Permanent Residential,Kenver House Residential Home,1232.79, 15-Apr-2014
1165,Revenue,CCHD,Bed Purchasing - Southmead Hospital,Permanent Residential,Kenver House Residential Home,1472.57, 15-Apr-2014
1166,Revenue,CCHD,Bed Purchasing - Southmead Hospital,Permanent Residential,Kenver House Residential Home,1253.31, 15-Apr-2014
1167,Revenue,CCHD,Bed Purchasing - Elderly - South,Permanent Residential,Kenver House Residential Home,1145.76, 15-Apr-2014
1168,Revenue,CCHD,Bed Purchasing - Elderly - South,Permanent Residential,Kenver House Residential Home,5570.13, 15-Apr-2014
1169,Revenue,CCHD,Swift Dump Code,Permanent Residential,Kenver House Residential Home,1470.43, 15-Apr-2014
1170,Revenue,CCHD,Bed Purchasing - Elderly - South,Permanent Residential,Kenver House Residential Home,852.51, 15-Apr-2014
1171,Revenue,CCHD,Bed Purchasing - Elderly MH - South,Permanent Residential,Kenver House Residential Home,980.64, 15-Apr-2014
1172,Revenue,CCHD,Bed purchasing - Elderly MH - North,Respite Emergency - Residential,Kenver House Residential Home,794.82, 15-Apr-2014
1173,Revenue,CCHD,Bed Purchasing - Elderly - South,Permanent Residential,Kenver House Residential Home,1268.31, 15-Apr-2014
1174,Revenue,CCHD,Bed Purchasing - Elderly - South,Permanent Residential,Kenver House Residential Home,1625.16, 15-Apr-2014
1175,Revenue,CCHD,Bed Purchasing - Elderly - South,Permanent Residential,Kenver House Residential Home,533.82, 15-Apr-2014
1176,Revenue,CCHD,Bed Purchasing - Elderly - South,Permanent Residential,Kenver House Residential Home,1202.25, 15-Apr-2014
1177,Revenue,CCHD,Bed Purchasing - Southmead Hospital,Permanent Residential,Kenver House Residential Home,1253.25, 15-Apr-2014
1178,Revenue,CCHD,Bed Purchasing - Elderly - South,Permanent Residential,Kenver House Residential Home,1142.52, 15-Apr-2014
1179,Revenue,CCHD,Bed Purchasing - Elderly - South,Permanent Residential,Kenver House Residential Home,1253.31, 15-Apr-2014
1180,Revenue,CCHD,Bed Purchasing - Frenchay Hospital,Permanent Residential,Kenver House Residential Home,1171.8, 15-Apr-2014
1181,Revenue,CCHD,Supporting People Programme,Grants to Voluntary Bodies,Keyring Living Support Networks,2917, 04-Apr-2014
1182,Revenue,CCHD,Bed Purchasing - Elderly - North,Permanent Nursing,Kingfisher Lodge Care Centre,2507.4, 15-Apr-2014
1183,Revenue,CCHD,Supporting People Programme,Grants to Voluntary Bodies,Kingswood Young Homeless Project,16943.67, 04-Apr-2014
1184,Revenue,CCHD,Bed purchasing - Under 65s PWLD - North,Permanent Residential,Kisimul Group,11347.44, 15-Apr-2014
1185,Revenue,CCHD,Supporting People Programme,Grants to Voluntary Bodies,Knightstone Housing Association Limited,13513.75, 04-Apr-2014
1186,Revenue,CCHD,Supporting People Programme,Grants to Voluntary Bodies,Knightstone Housing Association Limited,8537.92, 04-Apr-2014
1187,Revenue,CCHD,Supporting People Programme,Grants to Voluntary Bodies,Knightstone Housing Association Limited,7602.5, 04-Apr-2014
1188,Revenue,CCHD,Supporting People Programme,Grants to Voluntary Bodies,Knightstone Housing Association Limited,1789.75, 04-Apr-2014
1189,Revenue,CCHD,Supporting People Programme,Grants to Voluntary Bodies,Knightstone Housing Association Limited,2482.75, 04-Apr-2014
1190,Revenue,CCHD,Supporting People Programme,Grants to Voluntary Bodies,Knightstone Housing Association Limited,2483.33, 04-Apr-2014
1191,Revenue,CCHD,Supporting People Programme,Grants to Voluntary Bodies,Knightstone Housing Association Limited,844.58, 04-Apr-2014
1192,Revenue,CCHD,Supporting People Programme,Grants to Voluntary Bodies,Knightstone Housing Association Limited,2227.17, 04-Apr-2014
1193,Revenue,CCHD,Home Care - Elderly - South,Other Small Contracts,Kumari Care Limited,3531.9, 30-Apr-2014
1194,Revenue,CCHD,Home Care - Elderly - North,Other Small Contracts,Kumari Care Limited,833.86, 30-Apr-2014
1195,Revenue,CCHD,Under 65s -MH  Home Care Purch,Other Small Contracts,Kumari Care Limited,254.76, 30-Apr-2014
1196,Revenue,CCHD,Home Care - Elderly - South,Other Small Contracts,Kumari Care Limited,3593.66, 30-Apr-2014
1197,Revenue,CCHD,Home Care - Elderly - North,Other Small Contracts,Kumari Care Limited,834.32, 30-Apr-2014
1198,Revenue,CCHD,Day Care - South,Private & Voluntary Day Care,Kumari Care Limited,96.5, 30-Apr-2014
1199,Revenue,CCHD,Under 65s -MH  Home Care Purch,Other Small Contracts,Kumari Care Limited,262.48, 30-Apr-2014
1200,Revenue,CCHD,Home Care - Elderly - South,Other Small Contracts,Kumari Care Limited,3516.46, 30-Apr-2014
1201,Revenue,CCHD,Home Care - Elderly - North,Other Small Contracts,Kumari Care Limited,833.86, 30-Apr-2014
1202,Revenue,CCHD,Day Care - South,Private & Voluntary Day Care,Kumari Care Limited,96.5, 30-Apr-2014
1203,Revenue,CCHD,Under 65s -MH  Home Care Purch,Other Small Contracts,Kumari Care Limited,262.48, 30-Apr-2014
1204,Revenue,CCHD,Public Health - Admin,Other Supplies & Services,Lee Cox,875, 07-Apr-2014
1205,Revenue,CCHD,Public Health - Admin,Other Supplies & Services,Lee Cox,1750, 07-Apr-2014
1206,Revenue,CCHD,Public Health - Admin,Other Supplies & Services,Lee Cox,1750, 07-Apr-2014
1207,Revenue,CCHD,Bed purchasing - Phys Dis - North,Permanent Nursing,Leonard Cheshire  National Account Centr,3777.36, 15-Apr-2014
1208,Revenue,CCHD,Bed purchasing - Phys Dis - North,Permanent Nursing,Leonard Cheshire  National Account Centr,1240.76, 15-Apr-2014
1209,Revenue,CCHD,Bed purchasing - Phys Dis - North,Permanent Residential,Leonard Cheshire  National Account Centr,2183.19, 15-Apr-2014
1210,Revenue,CCHD,Bed purchasing - Phys Dis - North,Permanent Residential,Leonard Cheshire  National Account Centr,717.22, 15-Apr-2014
1211,Revenue,CCHD,Bed Purchasing - Under 65s PWLD - South,Permanent Residential,Leonard Cheshire  National Account Centr,2252.79, 15-Apr-2014
1212,Revenue,CCHD,Bed Purchasing - Under 65s PWLD - South,Permanent Residential,Leonard Cheshire  National Account Centr,739.86, 15-Apr-2014
1213,Revenue,CCHD,Bed Purchasing - Elderly - North,Permanent Nursing,Leonard Cheshire  National Account Centr,2640.45, 15-Apr-2014
1214,Revenue,CCHD,Bed Purchasing - Elderly - North,Permanent Nursing,Leonard Cheshire  National Account Centr,867.2, 15-Apr-2014
1215,Revenue,CCHD,Bed purchasing - Phys Dis - North,Permanent Nursing,Leonard Cheshire  National Account Centr,2073.42, 15-Apr-2014
1216,Revenue,CCHD,Bed purchasing - Phys Dis - North,Permanent Nursing,Leonard Cheshire  National Account Centr,694.76, 15-Apr-2014
1217,Revenue,CCHD,Bed Purchasing - Elderly - North,Permanent Residential,Leonard Cheshire  National Account Centr,2397.39, 15-Apr-2014
1218,Revenue,CCHD,Bed Purchasing - Elderly - North,Permanent Residential,Leonard Cheshire  National Account Centr,787.58, 15-Apr-2014
1219,Revenue,CCHD,Bed purchasing - Under 65s PWLD - North,Permanent Residential,Leonard Cheshire  National Account Centr,4469.61, 15-Apr-2014
1220,Revenue,CCHD,Bed purchasing - Under 65s PWLD - North,Permanent Residential,Leonard Cheshire  National Account Centr,1468.03, 15-Apr-2014
1221,Revenue,CCHD,Bed purchasing - Under 65s PWLD - North,Permanent Residential,Leonard Cheshire  National Account Centr,4468.44, 15-Apr-2014
1222,Revenue,CCHD,Bed purchasing - Under 65s PWLD - North,Permanent Residential,Leonard Cheshire  National Account Centr,1467.64, 15-Apr-2014
1223,Revenue,CCHD,Bed Purchasing - Elderly - South,Permanent Residential,Leonard Cheshire  National Account Centr,3369.06, 15-Apr-2014
1224,Revenue,CCHD,Bed Purchasing - Elderly - South,Permanent Residential,Leonard Cheshire  National Account Centr,1108.26, 15-Apr-2014
1225,Revenue,CCHD,Bed purchasing - Phys Dis - North,Permanent Nursing,Leonard Cheshire  National Account Centr,2160.84, 15-Apr-2014
1226,Revenue,CCHD,Bed purchasing - Phys Dis - North,Permanent Nursing,Leonard Cheshire  National Account Centr,709.66, 15-Apr-2014
1227,Revenue,CCHD,Bed purchasing - Phys Dis - North,Permanent Nursing,Leonard Cheshire  National Account Centr,2901.99, 15-Apr-2014
1228,Revenue,CCHD,Bed purchasing - Phys Dis - North,Permanent Nursing,Leonard Cheshire  National Account Centr,953.11, 15-Apr-2014
1229,Revenue,CCHD,Bed purchasing - Phys Dis - North,Permanent Residential,Leonard Cheshire  National Account Centr,2199.48, 15-Apr-2014
1230,Revenue,CCHD,Bed purchasing - Phys Dis - North,Permanent Residential,Leonard Cheshire  National Account Centr,722.35, 15-Apr-2014
1231,Revenue,CCHD,Bed purchasing - Phys Dis - North,Permanent Nursing,Leonard Cheshire  National Account Centr,3401.25, 15-Apr-2014
1232,Revenue,CCHD,Bed purchasing - Phys Dis - North,Permanent Nursing,Leonard Cheshire  National Account Centr,1118.44, 15-Apr-2014
1233,Revenue,CCHD,Bed purchasing - Phys Dis - North,Permanent Nursing,Leonard Cheshire  National Account Centr,3259.59, 15-Apr-2014
1234,Revenue,CCHD,Bed purchasing - Phys Dis - North,Permanent Nursing,Leonard Cheshire  National Account Centr,4202.31, 15-Apr-2014
1235,Revenue,CCHD,Bed purchasing - Phys Dis - North,Permanent Nursing,Leonard Cheshire  National Account Centr,1380.34, 15-Apr-2014
1236,Revenue,CCHD,Bed Purchasing - Elderly - South,Permanent Nursing,Leonard Cheshire  National Account Centr,2181.45, 15-Apr-2014
1237,Revenue,CCHD,Bed Purchasing - Elderly - South,Permanent Nursing,Leonard Cheshire  National Account Centr,717.3, 15-Apr-2014
1238,Revenue,CCHD,Bed Purchasing - Southmead Hospital,Permanent Nursing,Leonard Cheshire  National Account Centr,3031.82, 15-Apr-2014
1239,Revenue,CCHD,South Glos Users in all other LA Homes,Permanent Nursing,Leonard Cheshire  National Account Centr,610.23, 15-Apr-2014
1240,Revenue,CCHD,Bed purchasing - Phys Dis - North,Permanent Nursing,Leonard Cheshire  National Account Centr,2518.98, 15-Apr-2014
1241,Revenue,CCHD,Bed purchasing - Phys Dis - North,Permanent Nursing,Leonard Cheshire  National Account Centr,827.3, 15-Apr-2014
1242,Revenue,CCHD,Bed purchasing - Phys Dis - North,Permanent Nursing,Leonard Cheshire  National Account Centr,3095.34, 15-Apr-2014
1243,Revenue,CCHD,Bed purchasing - Phys Dis - North,Permanent Nursing,Leonard Cheshire  National Account Centr,1016.62, 15-Apr-2014
1244,Revenue,CCHD,Bed Purchasing - Elderly - South,Permanent Nursing,Leonard Cheshire  National Account Centr,3327.66, 15-Apr-2014
1245,Revenue,CCHD,Bed Purchasing - Elderly - South,Permanent Nursing,Leonard Cheshire  National Account Centr,1092.4, 15-Apr-2014
1246,Revenue,CCHD,Bed Purchasing - Elderly S117- North,Permanent Nursing,Leonard Elms Care Home,2168.25, 15-Apr-2014
1247,Revenue,CCHD,Bed Purchasing - Elderly S117- North,Permanent Nursing,Leonard Elms Care Home,712.21, 15-Apr-2014
1248,Revenue,CCHD,Bed Purchasing - Elderly - South,Permanent Nursing,Leonard Elms Care Home,1172.07, 15-Apr-2014
1249,Revenue,CCHD,Supported Living - North,Private & Voluntary Home Care,Lifeways Community Care (Gloucester) Ltd,10990, 24-Apr-2014
1250,Revenue,CCHD,Bed Purchasing - Frenchay Hospital,Permanent Residential,Little Croft,951.15, 15-Apr-2014
1251,Revenue,CCHD,Bed Purchasing - Elderly - South,Permanent Residential,Little Croft,1177.95, 15-Apr-2014
1252,Revenue,CCHD,Bed Purchasing - Elderly - South,Permanent Residential,Little Croft,1201.98, 15-Apr-2014
1253,Revenue,CCHD,Bed Purchasing - Southmead Hospital,Permanent Residential,Little Croft,1311.57, 15-Apr-2014
1254,Revenue,CCHD,Bed Purchasing - Elderly - South,Permanent Residential,Little Croft,1412.61, 15-Apr-2014
1255,Revenue,CCHD,Bed Purchasing - Frenchay Hospital,Permanent Residential,Little Croft,892.29, 15-Apr-2014
1256,Revenue,CCHD,Bed Purchasing - Elderly MH - South,Permanent Residential,Little Croft,886.47, 15-Apr-2014
1257,Revenue,CCHD,Bed Purchasing - Elderly - South,Permanent Residential,Little Croft,1428.68, 15-Apr-2014
1258,Revenue,CCHD,Bed Purchasing - Elderly - South,Permanent Residential,Little Croft,787.77, 15-Apr-2014
1259,Revenue,CCHD,Bed Purchasing - Elderly MH - South,Permanent Residential,Little Croft,1224.9, 15-Apr-2014
1260,Revenue,CCHD,Bed Purchasing - Southmead Hospital,Permanent Residential,Little Croft,945.15, 15-Apr-2014
1261,Revenue,CCHD,Bed Purchasing - Elderly - North,Permanent Residential,Little Croft,1018.89, 15-Apr-2014
1262,Revenue,CCHD,Bed Purchasing - Southmead Hospital,Permanent Residential,Little Croft,945.15, 15-Apr-2014
1263,Revenue,CCHD,Bed purchasing - Under 65s PWLD - North,Permanent Residential,Littlecroft Residential Homes  Longcroft,6457.53, 15-Apr-2014
1264,Revenue,CCHD,Home Care - Elderly - North,Other Small Contracts,Lloyds TSB Commercial Finance Limited,6486.69, 16-Apr-2014
1265,Revenue,CCHD,Day Care - North,Private & Voluntary Day Care,Lloyds TSB Commercial Finance Limited,93.84, 16-Apr-2014
1266,Revenue,CCHD,Supported Living - South,Private & Voluntary Home Care,Lloyds TSB Commercial Finance Limited,3773.05, 28-Apr-2014
1267,Revenue,CCHD,Supported Living - South,Private & Voluntary Home Care,Lloyds TSB Commercial Finance Limited,9506.62, 17-Apr-2014
1268,Revenue,CCHD,Supported Living - South,Private & Voluntary Home Care,Lloyds TSB Commercial Finance Limited,3933.64, 28-Apr-2014
1269,Revenue,CCHD,Supported Living - South,Private & Voluntary Home Care,Lloyds TSB Commercial Finance Limited,8220.86, 28-Apr-2014
1270,Revenue,CCHD,Supported Living - North,Private & Voluntary Home Care,Lloyds TSB Commercial Finance Limited,9666.52, 24-Apr-2014
1271,Revenue,CCHD,Supported Living - South,Private & Voluntary Home Care,Lloyds TSB Commercial Finance Limited,4184.64, 23-Apr-2014
1272,Revenue,CCHD,Supported Living - South,Private & Voluntary Home Care,Lloyds TSB Commercial Finance Limited,3616.85, 17-Apr-2014
1273,Revenue,CCHD,Supported Living - South,Private & Voluntary Home Care,Lloyds TSB Commercial Finance Limited,3735.87, 17-Apr-2014
1274,Revenue,CCHD,Supported Living - South,Private & Voluntary Home Care,Lloyds TSB Commercial Finance Limited,6138.61, 23-Apr-2014
1275,Revenue,CCHD,Supported Living - South,Private & Voluntary Home Care,Lloyds TSB Commercial Finance Limited,3591.96, 17-Apr-2014
1276,Revenue,CCHD,Supported Living - South,Private & Voluntary Home Care,Lloyds TSB Commercial Finance Limited,3657.07, 28-Apr-2014
1277,Revenue,CCHD,Supported Living - North,Private & Voluntary Home Care,Lloyds TSB Commercial Finance Limited,8291, 29-Apr-2014
1278,Revenue,CCHD,Supported Living - South,Private & Voluntary Home Care,Lloyds TSB Commercial Finance Limited,3533.95, 16-Apr-2014
1279,Revenue,CCHD,Research & Conferences,Other Supplies & Services,Local Government Association,450, 25-Apr-2014
1280,Revenue,CCHD,Supported Living - South,Private & Voluntary Home Care,Loga Care Ltd (T/A Logacare),3428.04, 03-Apr-2014
1281,Revenue,CCHD,Social Lettings Agency,Fees - General,Individual,10, 01-Apr-2014
1282,Revenue,CCHD,Social Lettings Agency,Other Supplies & Services,Individual,565, 01-Apr-2014
1283,Revenue,CCHD,Day Care - North,Private & Voluntary Day Care,Lower Kilcott,1099.5, 15-Apr-2014
1284,Revenue,CCHD,Home Care - Elderly - North,Other Small Contracts,Lower Kilcott,778.86, 15-Apr-2014
1285,Revenue,CCHD,TSG Practice Placements,Training Expenses,M Harris,730.4, 17-Apr-2014
1286,Revenue,CCHD,Bed Purchasing - Southmead Hospital,Permanent Nursing,Majestic 3 Limited,999.65, 15-Apr-2014
1287,Revenue,CCHD,Home Care - Elderly - South,Other Small Contracts,Manor Community Domiciliary Care Agency,468.62, 03-Apr-2014
1288,Revenue,CCHD,Under 65s -MH  Home Care Purch,Other Small Contracts,Manor Community Domiciliary Care Agency,93.5, 03-Apr-2014
1289,Revenue,CCHD,Elderly MH Day Care North,Private & Voluntary Day Care,Manor Community Domiciliary Care Agency,44.88, 03-Apr-2014
1290,Revenue,CCHD,Home Care - Elderly - South,Other Small Contracts,Manor Community Domiciliary Care Agency,456.5, 03-Apr-2014
1291,Revenue,CCHD,Under 65s -MH  Home Care Purch,Other Small Contracts,Manor Community Domiciliary Care Agency,89.76, 03-Apr-2014
1292,Revenue,CCHD,Elderly MH Day Care North,Private & Voluntary Day Care,Manor Community Domiciliary Care Agency,44.88, 03-Apr-2014
1293,Revenue,CCHD,Home Care - Elderly - South,Other Small Contracts,Manor Community Domiciliary Care Agency,427.48, 16-Apr-2014
1294,Revenue,CCHD,Under 65s -MH  Home Care Purch,Other Small Contracts,Manor Community Domiciliary Care Agency,93.5, 16-Apr-2014
1295,Revenue,CCHD,Elderly MH Day Care North,Private & Voluntary Day Care,Manor Community Domiciliary Care Agency,44.88, 16-Apr-2014
1296,Revenue,CCHD,Home Care - Elderly - South,Other Small Contracts,Manor Community Domiciliary Care Agency,457.4, 17-Apr-2014
1297,Revenue,CCHD,Under 65s -MH  Home Care Purch,Other Small Contracts,Manor Community Domiciliary Care Agency,93.5, 17-Apr-2014
1298,Revenue,CCHD,Elderly MH Day Care North,Private & Voluntary Day Care,Manor Community Domiciliary Care Agency,44.88, 17-Apr-2014
1299,Revenue,CCHD,Home Care - Elderly - South,Other Small Contracts,Manor Community Domiciliary Care Agency,468.64, 25-Apr-2014
1300,Revenue,CCHD,Under 65s -MH  Home Care Purch,Other Small Contracts,Manor Community Domiciliary Care Agency,89.76, 25-Apr-2014
1301,Revenue,CCHD,Elderly MH Day Care North,Private & Voluntary Day Care,Manor Community Domiciliary Care Agency,44.88, 25-Apr-2014
1302,Revenue,CCHD,Bed Purchasing - Elderly - North,Permanent Residential,Manor Cottage,1667.91, 15-Apr-2014
1303,Revenue,CCHD,Bed Purchasing - Elderly - North,Permanent Residential,Manor Cottage,548.07, 15-Apr-2014
1304,Revenue,CCHD,Bed Purchasing - Frenchay Hospital,Permanent Residential,Manor Cottage,2937, 15-Apr-2014
1305,Revenue,CCHD,Bed Purchasing - Frenchay Hospital,Permanent Residential,Manor Cottage,945.15, 15-Apr-2014
1306,Revenue,CCHD,Bed Purchasing - Elderly - South,Permanent Residential,Manor Cottage,1092.39, 15-Apr-2014
1307,Revenue,CCHD,Bed Purchasing - Southmead Hospital,Permanent Residential,Manor Cottage,945.15, 15-Apr-2014
1308,Revenue,CCHD,Bed Purchasing - Elderly - North,Permanent Residential,Manton Hall Residential Home,1515.31, 15-Apr-2014
1309,Revenue,CCHD,Section 117 Placements MH Younger,Private & Voluntary Day Care,Maples Community Care Limited,798, 11-Apr-2014
1310,Revenue,CCHD,Section 117 Placements MH Younger,Private & Voluntary Day Care,Maples Community Care Limited,2597, 11-Apr-2014
1311,Revenue,CCHD,Younger MH non-res purchasing,Private & Voluntary Day Care,Maples Community Care Limited,2597, 11-Apr-2014
1312,Revenue,CCHD,Section 117 Placements MH Younger,Private & Voluntary Day Care,Maples Community Care Limited,2597, 11-Apr-2014
1313,Revenue,CCHD,Supporting People Programme,Grants to Voluntary Bodies,Maples Community Housing Limited,2717.25, 04-Apr-2014
1314,Revenue,CCHD,Social Lettings Agency,Fees - General,Individual,11.6, 17-Apr-2014
1315,Revenue,CCHD,Social Lettings Agency,Other Supplies & Services,Individual,655.41, 17-Apr-2014
1316,Revenue,CCHD,Bed Purchasing - Under 65s PWLD - South,Permanent Residential,Marsden Healthcare Limited,911.04, 03-Apr-2014
1317,Revenue,CCHD,Bed Purchasing - Under 65s PWLD - South,Permanent Residential,Marsden Healthcare Limited,685.29, 11-Apr-2014
1318,Revenue,CCHD,Bed purchasing - Elderly PWLD - South,Permanent Residential,Marsden Healthcare Limited,3203, 03-Apr-2014
1319,Revenue,CCHD,Bed purchasing - Elderly PWLD - South,Permanent Residential,Marsden Healthcare Limited,2435.85, 11-Apr-2014
1320,Revenue,CCHD,Bed purchasing - Elderly PWLD - South,Permanent Residential,Marsden Healthcare Limited,800.75, 11-Apr-2014
1321,Revenue,CCHD,Bed purchasing - Elderly PWLD - South,Permanent Residential,Marsden Healthcare Limited,1505.96, 03-Apr-2014
1322,Revenue,CCHD,Bed purchasing - Elderly PWLD - South,Permanent Residential,Marsden Healthcare Limited,1144.23, 11-Apr-2014
1323,Revenue,CCHD,Bed Purchasing - Elderly - South,Permanent Nursing,Meadow Care Home,1864.95, 15-Apr-2014
1324,Revenue,CCHD,Home Care - Elderly - South,Other Small Contracts,Mears Care,519.75, 11-Apr-2014
1325,Revenue,CCHD,Home Care - Elderly - North,Other Small Contracts,Mears Care,4885.65, 11-Apr-2014
1326,Revenue,CCHD,Day Care - North,Private & Voluntary Day Care,Mears Care,119.35, 11-Apr-2014
1327,Revenue,CCHD,Under 65s -MH  Home Care Purch,Other Small Contracts,Mears Care,115.5, 11-Apr-2014
1328,Revenue,CCHD,Home Care - Elderly LD - KH,Private & Voluntary Home Care,Mears Care,57.75, 11-Apr-2014
1329,Revenue,CCHD,Home Care - Elderly - South,Other Small Contracts,Mears Care,527.45, 11-Apr-2014
1330,Revenue,CCHD,Home Care - Elderly - North,Other Small Contracts,Mears Care,4581.5, 11-Apr-2014
1331,Revenue,CCHD,Day Care - North,Private & Voluntary Day Care,Mears Care,119.35, 11-Apr-2014
1332,Revenue,CCHD,Under 65s -MH  Home Care Purch,Other Small Contracts,Mears Care,115.5, 11-Apr-2014
1333,Revenue,CCHD,Home Care - Elderly LD - KH,Private & Voluntary Home Care,Mears Care,50.05, 11-Apr-2014
1334,Revenue,CCHD,Home Care - Elderly - South,Other Small Contracts,Mears Care,508.2, 11-Apr-2014
1335,Revenue,CCHD,Home Care - Elderly - North,Other Small Contracts,Mears Care,4662.26, 11-Apr-2014
1336,Revenue,CCHD,Day Care - North,Private & Voluntary Day Care,Mears Care,138.6, 11-Apr-2014
1337,Revenue,CCHD,Under 65s -MH  Home Care Purch,Other Small Contracts,Mears Care,115.5, 11-Apr-2014
1338,Revenue,CCHD,Home Care - Elderly LD - KH,Private & Voluntary Home Care,Mears Care,53.9, 11-Apr-2014
1339,Revenue,CCHD,Home Care - Elderly - South,Private & Voluntary Home Care,Mears Care,48544, 28-Apr-2014
1340,Revenue,CCHD,Alexandra Way,Prop.Serv. General Repairs,Mechanical Engineering Svcs (Avon) Ltd,1401.26, 30-Apr-2014
1341,Revenue,CCHD,Home Care - Elderly - South,Other Small Contracts,Medacs Home Care,252, 30-Apr-2014
1342,Revenue,CCHD,Home Care - Elderly - North,Other Small Contracts,Medacs Home Care,633.2, 30-Apr-2014
1343,Revenue,CCHD,Home care - Elderly MH - North,Other Small Contracts,Medacs Home Care,94.5, 30-Apr-2014
1344,Revenue,CCHD,Home Care - Elderly - South,Other Small Contracts,Medacs Home Care,252, 30-Apr-2014
1345,Revenue,CCHD,Home Care - Elderly - North,Other Small Contracts,Medacs Home Care,640.2, 30-Apr-2014
1346,Revenue,CCHD,Home care - Elderly MH - North,Other Small Contracts,Medacs Home Care,87.5, 30-Apr-2014
1347,Revenue,CCHD,Home Care - Elderly - South,Other Small Contracts,Medacs Home Care,248.5, 30-Apr-2014
1348,Revenue,CCHD,Home Care - Elderly - North,Other Small Contracts,Medacs Home Care,626.5, 30-Apr-2014
1349,Revenue,CCHD,Home care - Elderly MH - North,Other Small Contracts,Medacs Home Care,91, 30-Apr-2014
1350,Revenue,CCHD,Home Care - Elderly - South,Other Small Contracts,Medacs Home Care,262.5, 30-Apr-2014
1351,Revenue,CCHD,Home Care - Elderly - North,Other Small Contracts,Medacs Home Care,608.7, 30-Apr-2014
1352,Revenue,CCHD,Home care - Elderly MH - North,Other Small Contracts,Medacs Home Care,91, 30-Apr-2014
1353,Revenue,CCHD,Home Care - Elderly - South,Other Small Contracts,Medacs Home Care,255.5, 30-Apr-2014
1354,Revenue,CCHD,Home Care - Elderly - North,Other Small Contracts,Medacs Home Care,570.3, 30-Apr-2014
1355,Revenue,CCHD,Home care - Elderly MH - North,Other Small Contracts,Medacs Home Care,94.5, 30-Apr-2014
1356,Revenue,CCHD,Bed Purchasing - Under 65s PWLD - South,Permanent Residential,Mencap,554.79, 15-Apr-2014
1357,Revenue,CCHD,Learning Difficulties Development Fund,Other Supplies & Services,Mencap Employment,1024, 22-Apr-2014
1358,Revenue,CCHD,Supporting People Programme,Grants to Voluntary Bodies,Merlin Housing Society,14628.5, 04-Apr-2014
1359,Revenue,CCHD,Supporting People Programme,Grants to Voluntary Bodies,Merlin Housing Society,2458.92, 04-Apr-2014
1360,Revenue,CCHD,Supporting People Programme,Grants to Voluntary Bodies,Merlin Housing Society,39319.5, 04-Apr-2014
1361,Revenue,CCHD,Supporting People Programme,Grants to Voluntary Bodies,Merlin Housing Society,1041.83, 04-Apr-2014
1362,Revenue,CCHD,Intermediate Care Accommodation,Other Supplies & Services,Merlin Housing Society,1209.59, 11-Apr-2014
1363,Revenue,CCHD,Home Care - Elderly - South,Other Small Contracts,MiHomecare,1416.45, 22-Apr-2014
1364,Revenue,CCHD,Home Care - Elderly - North,Other Small Contracts,MiHomecare,2760.18, 22-Apr-2014
1365,Revenue,CCHD,Day Care - North,Private & Voluntary Day Care,MiHomecare,27.93, 22-Apr-2014
1366,Revenue,CCHD,Home care - Elderly MH - North,Other Small Contracts,MiHomecare,15.96, 22-Apr-2014
1367,Revenue,CCHD,Home Care - Elderly - South,Other Small Contracts,MiHomecare,1432.41, 24-Apr-2014
1368,Revenue,CCHD,Home Care - Elderly - North,Other Small Contracts,MiHomecare,2661.9, 24-Apr-2014
1369,Revenue,CCHD,Home care - Elderly MH - North,Other Small Contracts,MiHomecare,15.96, 24-Apr-2014
1370,Revenue,CCHD,Home Care - Elderly - South,Other Small Contracts,MiHomecare,1576.05, 30-Apr-2014
1371,Revenue,CCHD,Home Care - Elderly - North,Other Small Contracts,MiHomecare,2893.32, 30-Apr-2014
1372,Revenue,CCHD,Day Care - North,Private & Voluntary Day Care,MiHomecare,27.93, 30-Apr-2014
1373,Revenue,CCHD,Bed Purchasing - Frenchay Hospital,Permanent Residential,Milburn Finance,1051.61, 15-Apr-2014
1374,Revenue,CCHD,Home Care - Elderly - South,Other Small Contracts,Milestones Homecare & Dementia Service,1144.6, 11-Apr-2014
1375,Revenue,CCHD,Home Care - Elderly - North,Other Small Contracts,Milestones Homecare & Dementia Service,2137.88, 11-Apr-2014
1376,Revenue,CCHD,Home care - Elderly MH - North,Other Small Contracts,Milestones Homecare & Dementia Service,54.32, 11-Apr-2014
1377,Revenue,CCHD,Home Care - Elderly - South,Other Small Contracts,Milestones Supported Living Services,942.35, 03-Apr-2014
1378,Revenue,CCHD,Day Care - South,Private & Voluntary Day Care,Milestones Supported Living Services,96.24, 03-Apr-2014
1379,Revenue,CCHD,Day Care - North,Private & Voluntary Day Care,Milestones Supported Living Services,189.25, 03-Apr-2014
1380,Revenue,CCHD,Younger MH non-res purchasing,Private & Voluntary Day Care,Milestones Supported Living Services,32.08, 03-Apr-2014
1381,Revenue,CCHD,Home care - Elderly MH - North,Other Small Contracts,Milestones Supported Living Services,68.17, 03-Apr-2014
1382,Revenue,CCHD,Home Care - Elderly - South,Other Small Contracts,Milestones Supported Living Services,930.32, 10-Apr-2014
1383,Revenue,CCHD,Home Care - Elderly - North,Other Small Contracts,Milestones Supported Living Services,48.12, 10-Apr-2014
1384,Revenue,CCHD,Day Care - South,Private & Voluntary Day Care,Milestones Supported Living Services,64.16, 10-Apr-2014
1385,Revenue,CCHD,Day Care - North,Private & Voluntary Day Care,Milestones Supported Living Services,229.35, 10-Apr-2014
1386,Revenue,CCHD,Younger MH non-res purchasing,Private & Voluntary Day Care,Milestones Supported Living Services,32.08, 10-Apr-2014
1387,Revenue,CCHD,Home care - Elderly MH - North,Other Small Contracts,Milestones Supported Living Services,64.16, 10-Apr-2014
1388,Revenue,CCHD,Home Care - Elderly - South,Other Small Contracts,Milestones Supported Living Services,930.32, 17-Apr-2014
1389,Revenue,CCHD,Home Care - Elderly - North,Other Small Contracts,Milestones Supported Living Services,44.11, 17-Apr-2014
1390,Revenue,CCHD,Day Care - North,Private & Voluntary Day Care,Milestones Supported Living Services,239.96, 17-Apr-2014
1391,Revenue,CCHD,Younger MH non-res purchasing,Private & Voluntary Day Care,Milestones Supported Living Services,32.08, 17-Apr-2014
1392,Revenue,CCHD,Home care - Elderly MH - North,Other Small Contracts,Milestones Supported Living Services,64.16, 17-Apr-2014
1393,Revenue,CCHD,Supported Living - South,Private & Voluntary Home Care,Milestones Supported Living Services,1799, 17-Apr-2014
1394,Revenue,CCHD,Purchase of Non-Res Care - South,Private & Voluntary Day Care,Milestones Trust,1423.5, 15-Apr-2014
1395,Revenue,CCHD,Elderly MH Day Care North,Private & Voluntary Day Care,Milestones Trust,656.96, 02-Apr-2014
1396,Revenue,CCHD,Purchase of Non-Res Care - South,Private & Voluntary Day Care,Milestones Trust,586.72, 01-Apr-2014
1397,Revenue,CCHD,Supported Living (S28a) South,Private & Voluntary Home Care,Milestones Trust,5926.08, 01-Apr-2014
1398,Revenue,CCHD,Supported Living - South,Private & Voluntary Home Care,Milestones Trust,573.39, 01-Apr-2014
1399,Revenue,CCHD,Supported Living - North,Private & Voluntary Home Care,Milestones Trust,532.4, 07-Apr-2014
1400,Revenue,CCHD,Supported Living - South,Private & Voluntary Home Care,Milestones Trust,532.95, 01-Apr-2014
1401,Revenue,CCHD,Purchase of Non-Res Care - South,Private & Voluntary Day Care,Milestones Trust,505.8, 01-Apr-2014
1402,Revenue,CCHD,Supported Living - South,Private & Voluntary Home Care,Milestones Trust,993.37, 01-Apr-2014
1403,Revenue,CCHD,Supported Living - South,Private & Voluntary Home Care,Milestones Trust,1420.72, 01-Apr-2014
1404,Revenue,CCHD,Supported Living - South,Private & Voluntary Home Care,Milestones Trust,663.92, 01-Apr-2014
1405,Revenue,CCHD,Supported Living - South,Private & Voluntary Home Care,Milestones Trust,3132.49, 01-Apr-2014
1406,Revenue,CCHD,Supported Living - North,Private & Voluntary Home Care,Milestones Trust,1692.5, 07-Apr-2014
1407,Revenue,CCHD,Purchase of Non-Res Care - South,Private & Voluntary Day Care,Milestones Trust,1687.97, 01-Apr-2014
1408,Revenue,CCHD,Purchase of Non-Res Care - South,Private & Voluntary Day Care,Milestones Trust,1550.75, 01-Apr-2014
1409,Revenue,CCHD,Purchase of Non-Res Care - South,Private & Voluntary Day Care,Milestones Trust,1265.42, 01-Apr-2014
1410,Revenue,CCHD,Purchase of Non-Res Care - South,Private & Voluntary Day Care,Milestones Trust,1431.82, 01-Apr-2014
1411,Revenue,CCHD,Purchase of Non-Res Care - South,Private & Voluntary Day Care,Milestones Trust,1376.15, 01-Apr-2014
1412,Revenue,CCHD,Purchase of Non-Res Care - South,Private & Voluntary Day Care,Milestones Trust,1727.23, 01-Apr-2014
1413,Revenue,CCHD,Purchase of Non-Res Care - South,Private & Voluntary Day Care,Milestones Trust,3642.12, 28-Apr-2014
1414,Revenue,CCHD,Supported Living - South,Private & Voluntary Home Care,Milestones Trust,1773.18, 01-Apr-2014
1415,Revenue,CCHD,Purchase of Non-Res Care - South,Private & Voluntary Day Care,Milestones Trust,1564.09, 01-Apr-2014
1416,Revenue,CCHD,Purchase of Non-Res Care - South,Private & Voluntary Day Care,Milestones Trust,1457.69, 01-Apr-2014
1417,Revenue,CCHD,Purchase of Non-Res Care - South,Private & Voluntary Day Care,Milestones Trust,754.4, 01-Apr-2014
1418,Revenue,CCHD,Purchase of Non-Res Care - South,Private & Voluntary Day Care,Milestones Trust,1265.81, 01-Apr-2014
1419,Revenue,CCHD,Purchase of Non-Res Care - South,Private & Voluntary Day Care,Milestones Trust,1508.14, 01-Apr-2014
1420,Revenue,CCHD,Supported Living - South,Private & Voluntary Home Care,Milestones Trust,744.38, 02-Apr-2014
1421,Revenue,CCHD,Elderly MH Day Care North,Private & Voluntary Day Care,Milestones Trust,656.96, 11-Apr-2014
1422,Revenue,CCHD,Supported Living - South,Private & Voluntary Home Care,Milestones Trust,3517.68, 29-Apr-2014
1423,Revenue,CCHD,Supported Living - South,Private & Voluntary Home Care,Milestones Trust,2198.55, 29-Apr-2014
1424,Revenue,CCHD,Supported Living - South,Private & Voluntary Home Care,Milestones Trust,3664.45, 29-Apr-2014
1425,Revenue,CCHD,Supported Living - South,Private & Voluntary Home Care,Milestones Trust,5276.52, 29-Apr-2014
1426,Revenue,CCHD,Supported Living - North,Private & Voluntary Home Care,Milestones Trust,5686.74, 29-Apr-2014
1427,Revenue,CCHD,Supported Living - South,Private & Voluntary Home Care,Milestones Trust,3207.58, 29-Apr-2014
1428,Revenue,CCHD,Supported Living - South,Private & Voluntary Home Care,Milestones Trust,1804.37, 28-Apr-2014
1429,Revenue,CCHD,Supported Living - South,Private & Voluntary Home Care,Milestones Trust,654.4, 29-Apr-2014
1430,Revenue,CCHD,Supported Living - South,Private & Voluntary Home Care,Milestones Trust,1373.24, 28-Apr-2014
1431,Revenue,CCHD,Supported Living - South,Private & Voluntary Home Care,Milestones Trust,680.76, 29-Apr-2014
1432,Revenue,CCHD,Supported Living - South,Private & Voluntary Home Care,Milestones Trust,594.44, 29-Apr-2014
1433,Revenue,CCHD,Purchase of Non-Res Care - South,Private & Voluntary Day Care,Milestones Trust,617.6, 29-Apr-2014
1434,Revenue,CCHD,Supported Living - South,Private & Voluntary Home Care,Milestones Trust,1249.24, 29-Apr-2014
1435,Revenue,CCHD,Supported Living - South,Private & Voluntary Home Care,Milestones Trust,600.98, 29-Apr-2014
1436,Revenue,CCHD,Supported Living - North,Private & Voluntary Home Care,Milestones Trust,1478.5, 29-Apr-2014
1437,Revenue,CCHD,Supported Living - North,Private & Voluntary Home Care,Milestones Trust,529.63, 29-Apr-2014
1438,Revenue,CCHD,Supported Living - South,Private & Voluntary Home Care,Milestones Trust,536.84, 29-Apr-2014
1439,Revenue,CCHD,Supported Living - South,Private & Voluntary Home Care,Milestones Trust,786.25, 29-Apr-2014
1440,Revenue,CCHD,Tenancy Start Up Scheme,Other Supplies & Services,Individual,625, 14-Apr-2014
1441,Revenue,CCHD,SLA Grants - Support Serv,Grants to Voluntary Bodies,Mo Dymond Support Groups,500, 14-Apr-2014
1442,Revenue,CCHD,SLA Grants - Support Serv,Grants to Voluntary Bodies,Mo Dymond Support Groups,500, 14-Apr-2014
1443,Revenue,CCHD,SLA Grants - Support Serv,Grants to Voluntary Bodies,Mo Dymond Support Groups,500, 14-Apr-2014
1444,Revenue,CCHD,Bed Purchasing - Frenchay Hospital,Permanent Residential,Mostyn Lodge Residential Home,850.11, 15-Apr-2014
1445,Revenue,CCHD,Bed purchasing - Elderly S117 - South,Permanent Residential,Mostyn Lodge Residential Home,1446, 15-Apr-2014
1446,Revenue,CCHD,Older People's Commissioned Se,Grants to Voluntary Bodies,Mothers for Mothers,2155.25, 10-Apr-2014
1447,Revenue,CCHD,Purchase of Non-Res Care - South,Private & Voluntary Day Care,Moving On,3419.95, 30-Apr-2014
1448,Revenue,CCHD,Purchase of Non-Res Care - South,Private & Voluntary Day Care,Moving On,3110.64, 30-Apr-2014
1449,Revenue,CCHD,Purchase of Non-Res Care - South,Private & Voluntary Day Care,Moving On,3444.76, 30-Apr-2014
1450,Revenue,CCHD,Supported Living - South,Private & Voluntary Home Care,Moving On,1115.78, 24-Apr-2014
1451,Revenue,CCHD,Supported Living - South,Private & Voluntary Home Care,Moving On,991.8, 24-Apr-2014
1452,Revenue,CCHD,Supported Living - South,Private & Voluntary Home Care,Moving On,1049.66, 29-Apr-2014
1453,Revenue,CCHD,Supported Living - South,Private & Voluntary Home Care,Moving On,5556.41, 24-Apr-2014
1454,Revenue,CCHD,Supported Living - South,Private & Voluntary Home Care,Moving On,5019.76, 24-Apr-2014
1455,Revenue,CCHD,Supported Living - South,Private & Voluntary Home Care,Moving On,5583.02, 29-Apr-2014
1456,Revenue,CCHD,Day Care - South,Private & Voluntary Day Care,Moving On,1090.98, 25-Apr-2014
1457,Revenue,CCHD,Day Care - South,Private & Voluntary Day Care,Moving On,991.8, 25-Apr-2014
1458,Revenue,CCHD,Social Lettings Agency,Fees - General,Individual,10, 07-Apr-2014
1459,Revenue,CCHD,Social Lettings Agency,Other Supplies & Services,Individual,565, 07-Apr-2014
1460,Revenue,CCHD,Social Lettings Agency,Fees - General,Individual,10, 17-Apr-2014
1461,Revenue,CCHD,Social Lettings Agency,Other Supplies & Services,Individual,565, 17-Apr-2014
1462,Revenue,CCHD,Social Lettings Agency,Fees - General,Individual,8.6, 22-Apr-2014
1463,Revenue,CCHD,Social Lettings Agency,Other Supplies & Services,Individual,582, 22-Apr-2014
1464,Revenue,CCHD,Social Lettings Agency,Fees - General,Individual,11.6, 01-Apr-2014
1465,Revenue,CCHD,Social Lettings Agency,Other Supplies & Services,Individual,543.81, 01-Apr-2014
1466,Revenue,CCHD,Social Lettings Agency,Other Supplies & Services,Individual,850, 11-Apr-2014
1467,Revenue,CCHD,Homelessness Grant,Other Supplies & Services,Mr D Cleverley,650, 22-Apr-2014
1468,Revenue,CCHD,Homeless - Private Sector Leasing,Other Supplies & Services,Mr D G & Mrs L K Jenkins,565, 23-Apr-2014
1469,Revenue,CCHD,Tenancy Start Up Scheme,Other Supplies & Services,Individual,1510, 22-Apr-2014
1470,Revenue,CCHD,Social Lettings Agency,Fees - General,Individual,10, 08-Apr-2014
1471,Revenue,CCHD,Social Lettings Agency,Other Supplies & Services,Individual,565, 08-Apr-2014
1472,Revenue,CCHD,Social Lettings Agency,Fees - General,Individual,11.2, 17-Apr-2014
1473,Revenue,CCHD,Social Lettings Agency,Other Supplies & Services,Individual,632.81, 17-Apr-2014
1474,Revenue,CCHD,Social Lettings Agency,Fees - General,Individual,10, 08-Apr-2014
1475,Revenue,CCHD,Social Lettings Agency,Other Supplies & Services,Individual,565, 08-Apr-2014
1476,Revenue,CCHD,Social Lettings Agency,Fees - General,Individual,10, 01-Apr-2014
1477,Revenue,CCHD,Social Lettings Agency,Other Supplies & Services,Individual,565, 01-Apr-2014
1478,Revenue,CCHD,Social Lettings Agency,Fees - General,Individual,8.7, 16-Apr-2014
1479,Revenue,CCHD,Social Lettings Agency,Other Supplies & Services,Individual,672.8, 16-Apr-2014
1480,Revenue,CCHD,Social Lettings Agency,Fees - General,Individual,10, 30-Apr-2014
1481,Revenue,CCHD,Social Lettings Agency,Other Supplies & Services,Individual,565, 30-Apr-2014
1482,Revenue,CCHD,Social Lettings Agency,Fees - General,Individual,7.5, 04-Apr-2014
1483,Revenue,CCHD,Social Lettings Agency,Other Supplies & Services,Individual,587.25, 04-Apr-2014
1484,Revenue,CCHD,Younger MH non-res purchasing,One-off Planned Direct Payment,Mr Timothy Richard Dunton,2292, 25-Apr-2014
1485,Revenue,CCHD,Home Care - Elderly - South,Other Small Contracts,Mrs B Kimber -  CM2000,11804.43, 11-Apr-2014
1486,Revenue,CCHD,Home Care - Elderly - North,Other Small Contracts,Mrs B Kimber -  CM2000,5740.88, 11-Apr-2014
1487,Revenue,CCHD,Day Care - South,Private & Voluntary Day Care,Mrs B Kimber -  CM2000,493.2, 11-Apr-2014
1488,Revenue,CCHD,Day Care - North,Private & Voluntary Day Care,Mrs B Kimber -  CM2000,98.64, 11-Apr-2014
1489,Revenue,CCHD,Under 65s -MH  Home Care Purch,Other Small Contracts,Mrs B Kimber -  CM2000,65.76, 11-Apr-2014
1490,Revenue,CCHD,Elderly MH Day Care North,Private & Voluntary Day Care,Mrs B Kimber -  CM2000,98.64, 11-Apr-2014
1491,Revenue,CCHD,Home Care - Elderly - South,Other Small Contracts,Mrs B Kimber -  CM2000,11511.28, 11-Apr-2014
1492,Revenue,CCHD,Home Care - Elderly - North,Other Small Contracts,Mrs B Kimber -  CM2000,5486.85, 11-Apr-2014
1493,Revenue,CCHD,Day Care - South,Private & Voluntary Day Care,Mrs B Kimber -  CM2000,493.2, 11-Apr-2014
1494,Revenue,CCHD,Day Care - North,Private & Voluntary Day Care,Mrs B Kimber -  CM2000,32.88, 11-Apr-2014
1495,Revenue,CCHD,Under 65s -MH  Home Care Purch,Other Small Contracts,Mrs B Kimber -  CM2000,65.76, 11-Apr-2014
1496,Revenue,CCHD,Elderly MH Day Care North,Private & Voluntary Day Care,Mrs B Kimber -  CM2000,98.64, 11-Apr-2014
1497,Revenue,CCHD,Home Care - Elderly - South,Other Small Contracts,Mrs B Kimber -  CM2000,10808.66, 30-Apr-2014
1498,Revenue,CCHD,Home Care - Elderly - North,Other Small Contracts,Mrs B Kimber -  CM2000,6111.57, 30-Apr-2014
1499,Revenue,CCHD,Day Care - South,Private & Voluntary Day Care,Mrs B Kimber -  CM2000,493.2, 30-Apr-2014
1500,Revenue,CCHD,Day Care - North,Private & Voluntary Day Care,Mrs B Kimber -  CM2000,98.64, 30-Apr-2014
1501,Revenue,CCHD,Under 65s -MH  Home Care Purch,Other Small Contracts,Mrs B Kimber -  CM2000,65.76, 30-Apr-2014
1502,Revenue,CCHD,Elderly MH Day Care North,Private & Voluntary Day Care,Mrs B Kimber -  CM2000,98.64, 30-Apr-2014
1503,Revenue,CCHD,Home Care - Elderly - South,Other Small Contracts,Mrs B Kimber -  CM2000,11445.38, 30-Apr-2014
1504,Revenue,CCHD,Home Care - Elderly - North,Other Small Contracts,Mrs B Kimber -  CM2000,5634.81, 30-Apr-2014
1505,Revenue,CCHD,Day Care - South,Private & Voluntary Day Care,Mrs B Kimber -  CM2000,394.56, 30-Apr-2014
1506,Revenue,CCHD,Day Care - North,Private & Voluntary Day Care,Mrs B Kimber -  CM2000,32.88, 30-Apr-2014
1507,Revenue,CCHD,Under 65s -MH  Home Care Purch,Other Small Contracts,Mrs B Kimber -  CM2000,65.76, 30-Apr-2014
1508,Revenue,CCHD,Elderly MH Day Care North,Private & Voluntary Day Care,Mrs B Kimber -  CM2000,98.64, 30-Apr-2014
1509,Revenue,CCHD,Social Lettings Agency,Fees - General,Individual,10, 17-Apr-2014
1510,Revenue,CCHD,Social Lettings Agency,Other Supplies & Services,Individual,565, 17-Apr-2014
1511,Revenue,CCHD,Social Lettings Agency,Fees - General,Individual,10, 14-Apr-2014
1512,Revenue,CCHD,Social Lettings Agency,Other Supplies & Services,Individual,565, 14-Apr-2014
1513,Revenue,CCHD,Social Lettings Agency,Fees - General,Individual,10, 24-Apr-2014
1514,Revenue,CCHD,Social Lettings Agency,Other Supplies & Services,Individual,565, 24-Apr-2014
1515,Revenue,CCHD,Social Lettings Agency,Fees - General,Individual,10, 01-Apr-2014
1516,Revenue,CCHD,Social Lettings Agency,Other Supplies & Services,Individual,565, 01-Apr-2014
1517,Revenue,CCHD,Supported Living - North,Permanent Residential,Mrs I M Bowerman,1080.26, 03-Apr-2014
1518,Revenue,CCHD,Social Lettings Agency,Fees - General,Individual,10, 11-Apr-2014
1519,Revenue,CCHD,Social Lettings Agency,Other Supplies & Services,Individual,565, 11-Apr-2014
1520,Revenue,CCHD,Supported Living - North,Permanent Residential,Mrs Julie Taylor,1037.29, 07-Apr-2014
1521,Revenue,CCHD,Social Lettings Agency,Fees - General,Individual,11.6, 16-Apr-2014
1522,Revenue,CCHD,Social Lettings Agency,Other Supplies & Services,Individual,655.41, 16-Apr-2014
1523,Revenue,CCHD,Social Lettings Agency,Fees - General,Individual,10, 08-Apr-2014
1524,Revenue,CCHD,Social Lettings Agency,Other Supplies & Services,Individual,565, 08-Apr-2014
1525,Revenue,CCHD,Social Lettings Agency,Fees - General,Individual,15.53, 11-Apr-2014
1526,Revenue,CCHD,Social Lettings Agency,Other Supplies & Services,Individual,877.68, 11-Apr-2014
1527,Revenue,CCHD,Alexandra Way,Cleaning & Domestic Services,Muzzell Healthcare,461.7, 30-Apr-2014
1528,Revenue,CCHD,Alexandra Way,Cleaning & Domestic Services,Muzzell Healthcare,504.7, 04-Apr-2014
1529,Revenue,CCHD,Day Care - North,Private & Voluntary Day Care,NAS Services Limited,840.4, 17-Apr-2014
1530,Revenue,CCHD,Day Care - South,Private & Voluntary Day Care,NAS Services Limited,595.55, 17-Apr-2014
1531,Revenue,CCHD,Day Care - South,Private & Voluntary Day Care,NAS Services Limited,753.8, 17-Apr-2014
1532,Revenue,CCHD,Younger MH non-res purchasing,Private & Voluntary Day Care,NAS Services Limited,666.4, 17-Apr-2014
1533,Revenue,CCHD,Younger MH non-res purchasing,Private & Voluntary Day Care,NAS Services Limited,782.9, 23-Apr-2014
1534,Revenue,CCHD,Bed Purchasing - Under 65s PWLD - South,Permanent Residential,National Star College,4598.21, 15-Apr-2014
1535,Revenue,CCHD,Home Care - Elderly - South,Other Small Contracts,Nestor T/A Allied Healthcare,3249, 04-Apr-2014
1536,Revenue,CCHD,Home Care - Elderly - North,One-off Planned Direct Payment,Nestor T/A Allied Healthcare,114, 04-Apr-2014
1537,Revenue,CCHD,Home Care - Elderly - North,Other Small Contracts,Nestor T/A Allied Healthcare,8255.64, 04-Apr-2014
1538,Revenue,CCHD,Day Care - North,Private & Voluntary Day Care,Nestor T/A Allied Healthcare,228, 04-Apr-2014
1539,Revenue,CCHD,Home care - Elderly MH - North,Other Small Contracts,Nestor T/A Allied Healthcare,53.2, 04-Apr-2014
1540,Revenue,CCHD,Home Care - Elderly - South,Other Small Contracts,Nestor T/A Allied Healthcare,3384.17, 17-Apr-2014
1541,Revenue,CCHD,Home Care - Elderly - North,Other Small Contracts,Nestor T/A Allied Healthcare,7722.39, 17-Apr-2014
1542,Revenue,CCHD,Day Care - North,Private & Voluntary Day Care,Nestor T/A Allied Healthcare,273.6, 17-Apr-2014
1543,Revenue,CCHD,Home care - Elderly MH - North,Other Small Contracts,Nestor T/A Allied Healthcare,57, 17-Apr-2014
1544,Revenue,CCHD,Home Care - Elderly - South,Other Small Contracts,Nestor T/A Allied Healthcare,3207.75, 01-Apr-2014
1545,Revenue,CCHD,Home Care - Elderly - North,Other Small Contracts,Nestor T/A Allied Healthcare,5957.24, 01-Apr-2014
1546,Revenue,CCHD,Home Care - Elderly - South,Other Small Contracts,Network Health & Social Care,1489.87, 01-Apr-2014
1547,Revenue,CCHD,Home Care - Elderly - North,Other Small Contracts,Network Health & Social Care,4734.13, 01-Apr-2014
1548,Revenue,CCHD,Home Care - Elderly - South,Other Small Contracts,Network Health & Social Care,1495.06, 01-Apr-2014
1549,Revenue,CCHD,Home Care - Elderly - North,Other Small Contracts,Network Health & Social Care,4710.03, 01-Apr-2014
1550,Revenue,CCHD,Home Care - Elderly - South,Other Small Contracts,Network Health & Social Care,1459.23, 01-Apr-2014
1551,Revenue,CCHD,Home Care - Elderly - North,Other Small Contracts,Network Health & Social Care,4607.49, 01-Apr-2014
1552,Revenue,CCHD,Home Care - Elderly - South,Other Small Contracts,Network Health & Social Care,1489.87, 01-Apr-2014
1553,Revenue,CCHD,Home Care - Elderly - North,Other Small Contracts,Network Health & Social Care,4580.68, 01-Apr-2014
1554,Revenue,CCHD,Home Care - Elderly - South,Other Small Contracts,Network Health & Social Care,1505.19, 01-Apr-2014
1555,Revenue,CCHD,Home Care - Elderly - North,Other Small Contracts,Network Health & Social Care,4377.69, 01-Apr-2014
1556,Revenue,CCHD,Home Care - Elderly - South,Other Small Contracts,Network Health & Social Care,1512.85, 01-Apr-2014
1557,Revenue,CCHD,Home Care - Elderly - North,Other Small Contracts,Network Health & Social Care,4538.55, 01-Apr-2014
1558,Revenue,CCHD,Home Care - Elderly - South,Other Small Contracts,Network Health & Social Care,1478.38, 25-Apr-2014
1559,Revenue,CCHD,Home Care - Elderly - North,Other Small Contracts,Network Health & Social Care,4607.49, 25-Apr-2014
1560,Revenue,CCHD,Home Care - Elderly - South,Other Small Contracts,Network Health & Social Care,1152.83, 25-Apr-2014
1561,Revenue,CCHD,Home Care - Elderly - North,Other Small Contracts,Network Health & Social Care,4611.32, 25-Apr-2014
1562,Revenue,CCHD,Home Care - Elderly - South,Other Small Contracts,Network Health & Social Care,1179.64, 25-Apr-2014
1563,Revenue,CCHD,Home Care - Elderly - North,Other Small Contracts,Network Health & Social Care,4645.79, 25-Apr-2014
1564,Revenue,CCHD,Social Lettings Agency,Fees - General,Individual,10, 04-Apr-2014
1565,Revenue,CCHD,Social Lettings Agency,Other Supplies & Services,Individual,565, 04-Apr-2014
1566,Revenue,CCHD,Public Health - Admin,Other Supplies & Services,NHS South Gloucestershire CCG,90243, 02-Apr-2014
1567,Revenue,CCHD,Public Health - Admin,Other Supplies & Services,NHS South Gloucestershire CCG,90243, 02-Apr-2014
1568,Revenue,CCHD,Public Health - Admin,Other Supplies & Services,NHS South Gloucestershire CCG,435984, 02-Apr-2014
1569,Revenue,CCHD,Miscellaneous,Other Supplies & Services,NHS South West CSU,16050, 03-Apr-2014
1570,Revenue,CCHD,Miscellaneous,Other Supplies & Services,NHS South West CSU,2006.25, 01-Apr-2014
1571,Revenue,CCHD,Miscellaneous,Other Supplies & Services,NHS South West CSU,2006.25, 03-Apr-2014
1572,Revenue,CCHD,Miscellaneous,Other Supplies & Services,NHS South West CSU,2006.25, 03-Apr-2014
1573,Revenue,CCHD,Miscellaneous,Other Supplies & Services,NHS South West CSU,2006.25, 01-Apr-2014
1574,Revenue,CCHD,Bed Purchasing - Under 65s PWLD - South,Permanent Residential,Nightingale Nursing Home,3140.19, 15-Apr-2014
1575,Revenue,CCHD,"Sexual Health Services - Advice, Prevent",Other Supplies & Services,North Bristol NHS Trust,22573.56, 11-Apr-2014
1576,Revenue,CCHD,Children 5-19 Public Health Programmes,Other Supplies & Services,North Bristol NHS Trust,490539, 10-Apr-2014
1577,Revenue,CCHD,SLA Grants - Support Serv,Grants to Voluntary Bodies,North Bristol NHS Trust,4350, 10-Apr-2014
1578,Revenue,CCHD,Information Systems - Software,Software Support & Maintenance,Northgate Information Solutions UK Limited,77727.49, 17-Apr-2014
1579,Revenue,CCHD,Bed Purchasing - Under 65s PWLD - South,Permanent Residential,Norwood   Broadway House,4954.16, 15-Apr-2014
1580,Revenue,CCHD,Bed Purchasing - Elderly MH - South,Permanent Residential,Notaro Homes Ltd  Queensmead Court,1413.6, 15-Apr-2014
1581,Revenue,CCHD,Bed Purchasing - Southmead Hospital,Permanent Residential,Notaro Homes Ltd  Queensmead Court,1041.75, 15-Apr-2014
1582,Revenue,CCHD,Bed Purchasing - Elderly - South,Permanent Residential,Nova House Care Home,947.04, 15-Apr-2014
1583,Revenue,CCHD,Woodleaze,Agency Staff (Admin/Support Staff) Pay,Nurse Plus and Carer Plus (UK) Limited,782.79, 02-Apr-2014
1584,Revenue,CCHD,Woodleaze,Agency Staff (Admin/Support Staff) Pay,Nurse Plus and Carer Plus (UK) Limited,615.72, 22-Apr-2014
1585,Revenue,CCHD,Woodleaze,Agency Staff (Admin/Support Staff) Pay,Nurse Plus and Carer Plus (UK) Limited,834.8, 25-Apr-2014
1586,Revenue,CCHD,Home Care - Elderly - South,Other Small Contracts,Nursing Solutions Limited,3002.72, 30-Apr-2014
1587,Revenue,CCHD,Home Care - Elderly - North,Other Small Contracts,Nursing Solutions Limited,454.72, 30-Apr-2014
1588,Revenue,CCHD,Home Care - Elderly - South,Other Small Contracts,Nursing Solutions Limited,3296.72, 30-Apr-2014
1589,Revenue,CCHD,Home Care - Elderly - North,Other Small Contracts,Nursing Solutions Limited,540.96, 30-Apr-2014
1590,Revenue,CCHD,Home Care - Elderly - South,Other Small Contracts,Nursing Solutions Limited,3433.92, 30-Apr-2014
1591,Revenue,CCHD,Home Care - Elderly - North,Other Small Contracts,Nursing Solutions Limited,552.72, 30-Apr-2014
1592,Revenue,CCHD,Home Care - Elderly - South,Other Small Contracts,Nursing Solutions Limited,3418.24, 30-Apr-2014
1593,Revenue,CCHD,Home Care - Elderly - North,Other Small Contracts,Nursing Solutions Limited,537.04, 30-Apr-2014
1594,Revenue,CCHD,Section 117 Placements MH Younger,Permanent Nursing,Oaklands,6066.6, 15-Apr-2014
1595,Revenue,CCHD,Kingswood Centre - Maple Suite,Contract Hire & Operational Leases,OCS Group UK Ltd,483.6, 04-Apr-2014
1596,Revenue,CCHD,Bed purchasing -S28A  Under 65 - North,Permanent Residential,Orchard End Limited,7535.19, 15-Apr-2014
1597,Revenue,CCHD,Turnberries,"Provisions (Food, etc)",Origin Cafe,543.4, 29-Apr-2014
1598,Revenue,CCHD,Bed purchasing - Elderly S117 - South,Permanent Residential,Osbourne Court,2328.96, 15-Apr-2014
1599,Revenue,CCHD,Bed purchasing - Elderly S117 - South,Permanent Residential,Osbourne Court,765, 15-Apr-2014
1600,Revenue,CCHD,Bed Purchasing - Elderly - North,Respite Planned - Residential,Osbourne Court,6557.14, 15-Apr-2014
1601,Revenue,CCHD,Bed Purchasing - Elderly - North,Permanent Residential,Osbourne Court,1347.3, 15-Apr-2014
1602,Revenue,CCHD,Bed Purchasing - Elderly - North,Permanent Residential,Osbourne Court,614.34, 15-Apr-2014
1603,Revenue,CCHD,Bed Purchasing - Elderly - South,Permanent Residential,Osbourne Court,613.8, 15-Apr-2014
1604,Revenue,CCHD,Bed Purchasing - Elderly - North,Permanent Residential,Osbourne Court,850, 15-Apr-2014
1605,Revenue,CCHD,Bed Purchasing - Elderly S117- North,Permanent Residential,Osbourne Court,1446, 15-Apr-2014
1606,Revenue,CCHD,Bed Purchasing - Elderly - North,Permanent Residential,Osbourne Court,1917.99, 15-Apr-2014
1607,Revenue,CCHD,Bed Purchasing - Elderly - North,Permanent Residential,Osbourne Court,629.82, 15-Apr-2014
1608,Revenue,CCHD,Bed Purchasing - Under 65s PWLD - South,Permanent Residential,Osprey Court,5812.68, 15-Apr-2014
1609,Revenue,CCHD,Bed Purchasing - Under 65s PWLD - South,Permanent Residential,Osprey Court,1909.19, 15-Apr-2014
1610,Revenue,CCHD,Bed purchasing - S28A Under 65 - South,Permanent Residential,Osprey Court,3242.16, 15-Apr-2014
1611,Revenue,CCHD,Bed purchasing - S28A Under 65 - South,Permanent Residential,Osprey Court,1064.84, 15-Apr-2014
1612,Revenue,CCHD,Bed purchasing - S28A Under 65 - South,Permanent Residential,Osprey Court,6373.36, 15-Apr-2014
1613,Revenue,CCHD,Bed Purchasing - PWLD S 117 Placements,Permanent Residential,Osprey Court,11163.36, 15-Apr-2014
1614,Revenue,CCHD,Bed Purchasing - PWLD S 117 Placements,Permanent Residential,Osprey Court,11163.36, 15-Apr-2014
1615,Revenue,CCHD,Bed Purchasing - PWLD S 117 Placements,Permanent Residential,Osprey Court,11163.36, 15-Apr-2014
1616,Revenue,CCHD,Bed Purchasing - PWLD S 117 Placements,Permanent Residential,Osprey Court,11287.26, 15-Apr-2014
1617,Revenue,CCHD,Management & Support costs,Other Supplies & Services,Oxford Brookes Enterprises Limited,3250, 16-Apr-2014
1618,Revenue,CCHD,Bed Purchasing - Southmead Hospital,Permanent Nursing,Palm Court Nursing Home,1515.33, 15-Apr-2014
1619,Revenue,CCHD,Bed Purchasing - Elderly MH - South,Permanent Residential,Park Farm House,1008.42, 15-Apr-2014
1620,Revenue,CCHD,Bed Purchasing - Elderly MH - South,Permanent Residential,Park Farm House,1210.62, 15-Apr-2014
1621,Revenue,CCHD,Bed Purchasing - Under 65s PWLD - South,Permanent Residential,Park Hall,5613.98, 15-Apr-2014
1622,Revenue,CCHD,Bed purchasing - Under 65s PWLD - North,Permanent Residential,Park Hall,5184.5, 15-Apr-2014
1623,Revenue,CCHD,Bed Purchasing - Under 65s PWLD - South,Permanent Residential,Park Hall,4996.04, 15-Apr-2014
1624,Revenue,CCHD,Bed purchasing - Elderly PWLD - South,Permanent Residential,Park Hall,2547, 15-Apr-2014
1625,Revenue,CCHD,Bed purchasing - Elderly PWLD - North,Permanent Residential,Park Hall,3725.76, 15-Apr-2014
1626,Revenue,CCHD,Bed purchasing - Elderly PWLD - North,Permanent Residential,Park Hall,1224.45, 15-Apr-2014
1627,Revenue,CCHD,Bed purchasing - S28A Under 65 - South,Permanent Residential,Park Hall,3512.19, 15-Apr-2014
1628,Revenue,CCHD,Bed purchasing - S28A Under 65 - South,Permanent Residential,Park Hall,1153.54, 15-Apr-2014
1629,Revenue,CCHD,Bed Purchasing - Under 65s PWLD - South,Permanent Residential,Park Hall,3742.8, 15-Apr-2014
1630,Revenue,CCHD,Bed Purchasing - Under 65s PWLD - South,Permanent Residential,Park Hall,1229.29, 15-Apr-2014
1631,Revenue,CCHD,Bed purchasing - Under 65s PWLD - North,Permanent Residential,Park Hall,3254.46, 15-Apr-2014
1632,Revenue,CCHD,Bed purchasing - Under 65s PWLD - North,Permanent Residential,Park Hall,1069.71, 15-Apr-2014
1633,Revenue,CCHD,Bed Purchasing - S28A - Over 65- North,Permanent Residential,Park Hall,4037.13, 15-Apr-2014
1634,Revenue,CCHD,Bed Purchasing - S28A - Over 65- North,Permanent Residential,Park Hall,1321.7, 15-Apr-2014
1635,Revenue,CCHD,Bed Purchasing - Under 65s PWLD - South,Permanent Residential,Park Hall,10728.7, 15-Apr-2014
1636,Revenue,CCHD,Bed purchasing -S28A  Under 65 - North,Permanent Residential,Park Hall,5909.38, 15-Apr-2014
1637,Revenue,CCHD,Bed purchasing - S28A Under 65 - South,Permanent Residential,Park Hall,5625.45, 15-Apr-2014
1638,Revenue,CCHD,Bed Purchasing - Under 65s PWLD - South,Permanent Residential,Park Hall,7156.52, 15-Apr-2014
1639,Revenue,CCHD,Social Lettings Agency,Fees - General,Individual,10, 25-Apr-2014
1640,Revenue,CCHD,Social Lettings Agency,Other Supplies & Services,Individual,565, 25-Apr-2014
1641,Revenue,CCHD,Day Care - South,Private & Voluntary Day Care,Pauls Place,519.75, 15-Apr-2014
1642,Revenue,CCHD,Alexandra Way,Medical Fees,Pearce Bros Mobility Centre,824.8, 04-Apr-2014
1643,Revenue,CCHD,Bed Purchasing - Under 65s PWLD - South,Permanent Residential,Penleigh House Care Home,3420.36, 15-Apr-2014
1644,Revenue,CCHD,Bed Purchasing - Under 65s PWLD - South,Permanent Residential,Penleigh House Care Home,1123.38, 15-Apr-2014
1645,Revenue,CCHD,Bed Purchasing - Under 65s PWLD - South,Permanent Residential,Penleigh House Care Home,4822.98, 15-Apr-2014
1646,Revenue,CCHD,Bed Purchasing - Under 65s PWLD - South,Permanent Residential,Penleigh House Care Home,1584.1, 15-Apr-2014
1647,Revenue,CCHD,Bed purchasing - Elderly PWLD - South,Permanent Residential,Penleigh House Care Home,3239.16, 15-Apr-2014
1648,Revenue,CCHD,Bed purchasing - Elderly PWLD - South,Permanent Residential,Penleigh House Care Home,1064.62, 15-Apr-2014
1649,Revenue,CCHD,Bed purchasing - S28A Under 65 - South,Permanent Residential,Penleigh House Care Home,1354.26, 15-Apr-2014
1650,Revenue,CCHD,Bed Purchasing - Under 65s PWLD - South,Permanent Residential,Penleigh House Care Home,3724.62, 15-Apr-2014
1651,Revenue,CCHD,Bed Purchasing - Under 65s PWLD - South,Permanent Residential,Penleigh House Care Home,1223.32, 15-Apr-2014
1652,Revenue,CCHD,Training - Adult Services,Training Expenses,Penny McLellan,1010.4, 07-Apr-2014
1653,Revenue,CCHD,Kingswood Centre - Maple Suite,Contract Hire & Operational Leases,PHS Group Plc,770.16, 24-Apr-2014
1654,Revenue,CCHD,Breakthrough and Inclusion Work,Other Supplies & Services,Platinum Fitness,1342, 02-Apr-2014
1655,Revenue,CCHD,Breakthrough and Inclusion Work,Other Supplies & Services,Platinum Fitness,1738, 02-Apr-2014
1656,Revenue,CCHD,Public Health - Admin,Other Supplies & Services,Pollenn CIC,1133.33, 17-Apr-2014
1657,Revenue,CCHD,Home Care - Elderly - South,Other Small Contracts,Premier Homecare Limited,104.88, 01-Apr-2014
1658,Revenue,CCHD,Home Care - Elderly - North,Other Small Contracts,Premier Homecare Limited,8278.11, 01-Apr-2014
1659,Revenue,CCHD,Home care - Elderly MH - North,Other Small Contracts,Premier Homecare Limited,127.68, 01-Apr-2014
1660,Revenue,CCHD,Elderly MH Day Care North,Private & Voluntary Day Care,Premier Homecare Limited,127.68, 01-Apr-2014
1661,Revenue,CCHD,Home Care - Elderly - South,Other Small Contracts,Premier Homecare Limited,114, 07-Apr-2014
1662,Revenue,CCHD,Home Care - Elderly - North,Other Small Contracts,Premier Homecare Limited,8481.6, 07-Apr-2014
1663,Revenue,CCHD,Day Care - North,Private & Voluntary Day Care,Premier Homecare Limited,13.68, 07-Apr-2014
1664,Revenue,CCHD,Home care - Elderly MH - North,Other Small Contracts,Premier Homecare Limited,127.68, 07-Apr-2014
1665,Revenue,CCHD,Elderly MH Day Care North,Private & Voluntary Day Care,Premier Homecare Limited,127.68, 07-Apr-2014
1666,Revenue,CCHD,Home Care - Elderly - South,Other Small Contracts,Premier Homecare Limited,95.76, 16-Apr-2014
1667,Revenue,CCHD,Home Care - Elderly - North,Other Small Contracts,Premier Homecare Limited,7779.36, 16-Apr-2014
1668,Revenue,CCHD,Home care - Elderly MH - North,Other Small Contracts,Premier Homecare Limited,127.68, 16-Apr-2014
1669,Revenue,CCHD,Elderly MH Day Care North,Private & Voluntary Day Care,Premier Homecare Limited,127.68, 16-Apr-2014
1670,Revenue,CCHD,Home Care - Elderly - South,Other Small Contracts,Premier Homecare Limited,104.88, 25-Apr-2014
1671,Revenue,CCHD,Home Care - Elderly - North,Other Small Contracts,Premier Homecare Limited,7662.51, 25-Apr-2014
1672,Revenue,CCHD,Home care - Elderly MH - North,Other Small Contracts,Premier Homecare Limited,127.68, 25-Apr-2014
1673,Revenue,CCHD,Elderly MH Day Care North,Private & Voluntary Day Care,Premier Homecare Limited,127.68, 25-Apr-2014
1674,Revenue,CCHD,Home Care - Elderly - South,Other Small Contracts,Premier Homecare Limited,82.08, 30-Apr-2014
1675,Revenue,CCHD,Home Care - Elderly - North,Other Small Contracts,Premier Homecare Limited,8045.55, 30-Apr-2014
1676,Revenue,CCHD,Home care - Elderly MH - North,Other Small Contracts,Premier Homecare Limited,127.68, 30-Apr-2014
1677,Revenue,CCHD,Elderly MH Day Care North,Private & Voluntary Day Care,Premier Homecare Limited,72.96, 30-Apr-2014
1678,Revenue,CCHD,Home Care - Elderly - North,Other Small Contracts,Premier Homecare Limited,1258.56, 24-Apr-2014
1679,Revenue,CCHD,Minor Adaptations Service,Premises Maintenance by Contractor,Premier Service & Installation,779.21, 09-Apr-2014
1680,Revenue,CCHD,Home Care - Elderly - South,Other Small Contracts,Prestige Nursing,963.6, 30-Apr-2014
1681,Revenue,CCHD,Home Care - Elderly - North,Other Small Contracts,Prestige Nursing,3015.68, 30-Apr-2014
1682,Revenue,CCHD,Day Care - South,Private & Voluntary Day Care,Prestige Nursing,122.64, 30-Apr-2014
1683,Revenue,CCHD,Day Care - North,Private & Voluntary Day Care,Prestige Nursing,394.2, 30-Apr-2014
1684,Revenue,CCHD,Home Care - Elderly - South,Other Small Contracts,Prestige Nursing,928.56, 30-Apr-2014
1685,Revenue,CCHD,Home Care - Elderly - North,Other Small Contracts,Prestige Nursing,3205.24, 30-Apr-2014
1686,Revenue,CCHD,Day Care - South,Private & Voluntary Day Care,Prestige Nursing,122.64, 30-Apr-2014
1687,Revenue,CCHD,Day Care - North,Private & Voluntary Day Care,Prestige Nursing,394.2, 30-Apr-2014
1688,Revenue,CCHD,Alexandra Way,Agency Staff (Admin/Support Staff) Pay,Prestige Nursing,463.44, 23-Apr-2014
1689,Revenue,CCHD,SLA Grants - Support Serv,Grants to Voluntary Bodies,Princess Royal Trust Carers Centre,50299.25, 25-Apr-2014
1690,Revenue,CCHD,Older People's Commissioned Se,Grants to Voluntary Bodies,Princess Royal Trust Carers Centre,1930.75, 25-Apr-2014
1691,Revenue,CCHD,Alexandra Way,Equipment Maintenance,Professional Hygiene Ltd,542, 23-Apr-2014
1692,Revenue,CCHD,Bed Purchasing - Frenchay Hospital,Permanent Nursing,Ravenswood,3443.89, 15-Apr-2014
1693,Revenue,CCHD,Bed Purchasing - Frenchay Hospital,Permanent Nursing,Ravenswood,518.8, 15-Apr-2014
1694,Revenue,CCHD,Bed purchasing - Elderly MH - North,Permanent Nursing,Ravenswood,959.28, 15-Apr-2014
1695,Revenue,CCHD,Bed Purchasing - PWLD S 117 Placements,Permanent Residential,Real Life Options,8068.51, 15-Apr-2014
1696,Revenue,CCHD,Breakthrough and Inclusion Work,Other Supplies & Services,Redefine Mentoring Ltd,2486.13, 08-Apr-2014
1697,Revenue,CCHD,Bed Purchasing - Elderly S117- North,Permanent Nursing,Redholme Memory Care Limited,1984.58, 15-Apr-2014
1698,Revenue,CCHD,Bed Purchasing - Elderly - South,Permanent Nursing,Regent House,1691.46, 15-Apr-2014
1699,Revenue,CCHD,Bed Purchasing - Elderly - South,Permanent Nursing,Regent House,556.24, 15-Apr-2014
1700,Revenue,CCHD,Bed Purchasing - Elderly - South,Permanent Nursing,Regent House,1793.28, 15-Apr-2014
1701,Revenue,CCHD,Bed Purchasing - Elderly - South,Permanent Nursing,Regent House,589.71, 15-Apr-2014
1702,Revenue,CCHD,Bed Purchasing - Elderly - South,Permanent Nursing,Regent House,1253.16, 15-Apr-2014
1703,Revenue,CCHD,Bed Purchasing - Elderly - South,Permanent Nursing,Regent House,1483.8, 15-Apr-2014
1704,Revenue,CCHD,Bed Purchasing - Elderly MH - South,Permanent Nursing,Regent House,1506.33, 15-Apr-2014
1705,Revenue,CCHD,Bed Purchasing - Elderly - South,Permanent Nursing,Regent House,1295.07, 15-Apr-2014
1706,Revenue,CCHD,Bed Purchasing - Elderly - South,Permanent Nursing,Regent House,1421.19, 15-Apr-2014
1707,Revenue,CCHD,Bed Purchasing - Elderly - South,Permanent Nursing,Regent House,1787.28, 15-Apr-2014
1708,Revenue,CCHD,Bed Purchasing - Elderly - South,Permanent Nursing,Regent House,587.71, 15-Apr-2014
1709,Revenue,CCHD,Bed Purchasing - Elderly - North,Permanent Nursing,Regent House,1415.88, 15-Apr-2014
1710,Revenue,CCHD,Bed Purchasing - Southmead Hospital,Permanent Nursing,Regent House,1200.57, 15-Apr-2014
1711,Revenue,CCHD,South Glos Users in South Glos Homes,Permanent Nursing,Regent House,956.74, 15-Apr-2014
1712,Revenue,CCHD,Bed Purchasing - Elderly - South,Permanent Nursing,Regent House,1369.65, 15-Apr-2014
1713,Revenue,CCHD,Bed Purchasing - Elderly - South,Permanent Nursing,Regent House,1256.76, 15-Apr-2014
1714,Revenue,CCHD,Bed Purchasing - Southmead Hospital,Permanent Nursing,Regent House,1054.83, 15-Apr-2014
1715,Revenue,CCHD,Bed Purchasing - Elderly - South,Permanent Nursing,Regent House,1251.09, 15-Apr-2014
1716,Revenue,CCHD,Swift Dump Code,Permanent Residential,Regent House,3202.98, 15-Apr-2014
1717,Revenue,CCHD,Bed Purchasing - Southmead Hospital,Permanent Nursing,Regent House,1494, 15-Apr-2014
1718,Revenue,CCHD,South Glos Users in South Glos Homes,Permanent Nursing,Regent House,1050.85, 15-Apr-2014
1719,Revenue,CCHD,Bed Purchasing - Elderly MH - South,Permanent Nursing,Regent House,898.2, 15-Apr-2014
1720,Revenue,CCHD,Bed purchasing - Elderly MH - North,Permanent Nursing,Regent House,962.88, 15-Apr-2014
1721,Revenue,CCHD,Bed Purchasing - Under 65s PWLD - South,Permanent Residential,Ridgeway House,3489.2, 15-Apr-2014
1722,Revenue,CCHD,Tenancy Start Up Scheme,Other Supplies & Services,Rigsby Property Management t/a,1197.6, 08-Apr-2014
1723,Revenue,CCHD,Bed Purchasing - Under 65s PWLD - South,Permanent Residential,Riverside House,3597.76, 15-Apr-2014
1724,Revenue,CCHD,Bed Purchasing - Frenchay Hospital,Permanent Nursing,Riversway Nursing Home,2675.37, 15-Apr-2014
1725,Revenue,CCHD,Bed purchasing - Elderly PWLD - South,Permanent Residential,Rockleaze,1070.1, 15-Apr-2014
1726,Revenue,CCHD,Bed Purchasing - LD S28A- Over 65- South,Permanent Residential,Rockleaze,1561.53, 15-Apr-2014
1727,Revenue,CCHD,Bed Purchasing - LD S28A- Over 65- South,Permanent Residential,Rockleaze,513.56, 15-Apr-2014
1728,Revenue,CCHD,Bed purchasing - Elderly PWLD - South,Permanent Residential,Rockleaze,1811.22, 15-Apr-2014
1729,Revenue,CCHD,Bed purchasing - Elderly PWLD - South,Permanent Residential,Rockleaze,595.58, 15-Apr-2014
1730,Revenue,CCHD,Bed purchasing - Elderly PWLD - South,Permanent Residential,Rockleaze,1070.1, 15-Apr-2014
1731,Revenue,CCHD,Bed Purchasing - Frenchay Hospital,Permanent Residential,Rodney House Residential Home,2841.65, 15-Apr-2014
1732,Revenue,CCHD,Bed Purchasing - Under 65s PWLD - South,Permanent Residential,Rosewood Lodge & Brook House,4552.94, 15-Apr-2014
1733,Revenue,CCHD,Bed Purchasing - Elderly MH - South,Permanent Residential,Ross Healthcare,1307.11, 15-Apr-2014
1734,Revenue,CCHD,Bed Purchasing - Frenchay Hospital,Permanent Nursing,Saffron Gardens,1389.84, 15-Apr-2014
1735,Revenue,CCHD,South Glos Users in South Glos Homes,Permanent Nursing,Saffron Gardens,1568.43, 15-Apr-2014
1736,Revenue,CCHD,Bed Purchasing - Frenchay Hospital,Respite Planned - Nursing,Saffron Gardens,3193.38, 15-Apr-2014
1737,Revenue,CCHD,Bed Purchasing - Southmead Hospital,Permanent Residential,Saffron Gardens,943.17, 15-Apr-2014
1738,Revenue,CCHD,Bed Purchasing - Elderly MH - South,Permanent Nursing,Saffron Gardens,1554.24, 15-Apr-2014
1739,Revenue,CCHD,Bed Purchasing - Elderly MH - South,Permanent Nursing,Saffron Gardens,511.17, 15-Apr-2014
1740,Revenue,CCHD,Bed Purchasing - Southmead Hospital,Permanent Nursing,Saffron Gardens,1043.79, 15-Apr-2014
1741,Revenue,CCHD,Bed Purchasing - Elderly - North,Permanent Nursing,Saffron Gardens,739.98, 15-Apr-2014
1742,Revenue,CCHD,Bed Purchasing - Elderly - South,Permanent Nursing,Saffron Gardens,1426.74, 15-Apr-2014
1743,Revenue,CCHD,Bed Purchasing - Elderly - South,Permanent Residential,Saffron Gardens,972.63, 15-Apr-2014
1744,Revenue,CCHD,Bed Purchasing - Under 65s PWLD - South,Permanent Residential,Salters Hill Barn,2033.15, 15-Apr-2014
1745,Revenue,CCHD,Bed Purchasing - Southmead Hospital,Permanent Residential,Sanctuary Care Ltd,1280.65, 15-Apr-2014
1746,Revenue,CCHD,Bed Purchasing - Elderly - North,Respite Planned - Residential,Sanctuary Care Ltd,765, 15-Apr-2014
1747,Revenue,CCHD,Learning Difficulties PSL,Rent,Individual,1650, 01-Apr-2014
1748,Revenue,CCHD,Woodleaze,"Provisions (Food, etc)",School Milk Services Limited,821.28, 30-Apr-2014
1749,Revenue,CCHD,Bed purchasing - Under 65s PWLD - North,Permanent Residential,Scope   Accounts Dept,5011.9, 15-Apr-2014
1750,Revenue,CCHD,Bed Purchasing - Under 65s PWLD - South,Permanent Residential,Scope   Accounts Dept,3061.84, 15-Apr-2014
1751,Revenue,CCHD,Supported Living - North,Private & Voluntary Home Care,SeeAbility,6177.24, 30-Apr-2014
1752,Revenue,CCHD,Supported Living - North,Private & Voluntary Home Care,SeeAbility,1341.86, 29-Apr-2014
1753,Revenue,CCHD,Supported Living - North,Private & Voluntary Home Care,SeeAbility,7610.1, 30-Apr-2014
1754,Revenue,CCHD,Supported Living - North,Private & Voluntary Home Care,SeeAbility,1254.26, 29-Apr-2014
1755,Revenue,CCHD,Supported Living (S28a) South,Private & Voluntary Home Care,Selborne Care Ltd,3326.68, 01-Apr-2014
1756,Revenue,CCHD,Supported Living - South,Private & Voluntary Home Care,Selborne Care Ltd,2563.02, 24-Apr-2014
1757,Revenue,CCHD,Supported Living - South,Private & Voluntary Home Care,Selborne Care Ltd,643.6, 24-Apr-2014
1758,Revenue,CCHD,Purchase of Non-Res Care - North,Private & Voluntary Day Care,Selborne Care Ltd,1939.45, 29-Apr-2014
1759,Revenue,CCHD,Supported Living - South,Private & Voluntary Home Care,Selborne Care Ltd,5128.68, 24-Apr-2014
1760,Revenue,CCHD,Purchase of Non-Res Care - North,Private & Voluntary Day Care,Selborne Care Ltd,901.04, 29-Apr-2014
1761,Revenue,CCHD,Supported Living - South,Private & Voluntary Home Care,Selborne Care Ltd,1147.62, 28-Apr-2014
1762,Revenue,CCHD,Supported Living - South,Private & Voluntary Home Care,Selborne Care Ltd,514.88, 28-Apr-2014
1763,Revenue,CCHD,Supported Living - South,Private & Voluntary Home Care,Selborne Care Ltd,4639.08, 24-Apr-2014
1764,Revenue,CCHD,Purchase of Non-Res Care - North,Private & Voluntary Day Care,Selborne Care Ltd,786.36, 29-Apr-2014
1765,Revenue,CCHD,Supported Living - South,Private & Voluntary Home Care,Selborne Care Ltd,554.56, 28-Apr-2014
1766,Revenue,CCHD,Supported Living - South,Private & Voluntary Home Care,Selborne Care Ltd,1967.59, 24-Apr-2014
1767,Revenue,CCHD,Purchase of Non-Res Care - North,Private & Voluntary Day Care,Selborne Care Ltd,748.72, 29-Apr-2014
1768,Revenue,CCHD,Bed Purchasing - Under 65s PWLD - South,Permanent Residential,Shaldon House (Positive Care Ltd),2218.69, 15-Apr-2014
1769,Revenue,CCHD,Bed Purchasing - Elderly S117- North,Permanent Nursing,Shaw Healthcare Ltd,1985.97, 15-Apr-2014
1770,Revenue,CCHD,Bed Purchasing - Elderly S117- North,Permanent Nursing,Shaw Healthcare Ltd,652.34, 15-Apr-2014
1771,Revenue,CCHD,Bed purchasing - Elderly S117 - South,Permanent Nursing,Shaw Healthcare Ltd,2008.41, 15-Apr-2014
1772,Revenue,CCHD,Bed purchasing - Elderly S117 - South,Permanent Nursing,Shaw Healthcare Ltd,659.71, 15-Apr-2014
1773,Revenue,CCHD,Bed purchasing - Elderly MH - North,Permanent Nursing,Shaw Healthcare Ltd,1563.99, 15-Apr-2014
1774,Revenue,CCHD,Bed purchasing - Elderly MH - North,Permanent Nursing,Shaw Healthcare Ltd,516.24, 15-Apr-2014
